Workbook

Sheet leeg invulscherm2 (hidden)
N1: 4
D3: 2 | E3: 9 | G3: 2 | H3: 4 | J3: 11 | K3: 12 | L3: 13 | N3: 6 | O3: 7 | Q3: 17 | R3: 16 | T3: 14
J4: Tarieven:
A6: Initialisatie lijn | B6: Aard ondersteuning | F6: Naam: | H6: Eenheid: | I6: Gemiddeld maandaantal | J6: Minimum | K6: Maximum | L6: Richtprijs | M6: Reële prijs | N6: Factor | P6: Raming kostprijs | Q6: exta kosten per jaar | S6: op budget? | T6: jaarlimiet
N7: 1 | O7: 2 | R7: op budget?
B8: Assistenten | N8: =IF(ISERROR(VLOOKUP(C8,basisgegevens!$A$1:$AB$50,$N$3,FALSE)),"",IF(VLOOKUP(C8,basisgegevens!$A$1:$AB$50,$N$3,FALSE)=0,"",VLOOKUP(C8,basisgegevens!$A$1:$AB$50,$N$3,FALSE))) -> 
C9: =IF('keuzelijst assistent'!$B$1="","",CONCATENATE('keuzelijst assistent'!$B$1)) ->  | D9: =IF(ISERROR(VLOOKUP(C9,basisgegevens!$A$1:$AB$50,$D$3,FALSE)),"",VLOOKUP(C9,basisgegevens!$A$1:$AB$404,$D$3,FALSE)) ->  | E9: =IF(ISERROR(VLOOKUP(C9,basisgegevens!$A$1:$ZL$50,$E$3,FALSE)),"",VLOOKUP(C9,basisgegevens!$A$1:$AB$50,$E$3,FALSE)) ->  | G9: =IF(C9="","",CONCATENATE(D9," ",F9)) ->  | H9: =IF(ISERROR(VLOOKUP(C9,basisgegevens!$A$1:$AB$50,$H$3,FALSE)),"",VLOOKUP(C9,basisgegevens!$A$1:$AB$50,$H$3,FALSE)) ->  | J9: =IF(ISERROR(VLOOKUP(C9,basisgegevens!$A$1:$AB$50,$J$3,FALSE)),"",VLOOKUP(C9,basisgegevens!$A$1:$AB$50,$J$3,FALSE)) ->  | K9: =IF(ISERROR(VLOOKUP(C9,basisgegevens!$A$1:$AB$50,$K$3,FALSE)),"",VLOOKUP(C9,basisgegevens!$A$1:$AB$50,$K$3,FALSE)) ->  | L9: =IF(ISERROR(VLOOKUP(C9,basisgegevens!$A$1:$AB$50,$L$3,FALSE)),"",VLOOKUP(C9,basisgegevens!$A$1:$AB$50,$L$3,FALSE)) ->  | M9: =IF(L9="","",L9) ->  | N9: =IF(ISERROR(VLOOKUP(C9,basisgegevens!$A$1:$AB$50,$N$3,FALSE)),"",IF(VLOOKUP(C9,basisgegevens!$A$1:$AB$50,$N$3,FALSE)=0,"",VLOOKUP(C9,basisgegevens!$A$1:$AB$50,$N$3,FALSE))) ->  | O9: =IF(ISERROR(VLOOKUP(C9,basisgegevens!$A$1:$AB$50,$O$3,FALSE)),"",VLOOKUP(C9,basisgegevens!$A$1:$AB$50,$O$3,FALSE)) ->  | P9: =IF(M9="","",IF(M9=0,0,IF(N9="+",M9+O9,IF(N9="*",M9*O9,M9)))) ->  | Q9: =IF(ISERROR(VLOOKUP(C9,basisgegevens!$A$1:$AB$50,$Q$3,FALSE)),"",VLOOKUP(C9,basisgegevens!$A$1:$AB$50,$Q$3,FALSE)) ->  | R9: =IF(ISERROR(VLOOKUP(C9,basisgegevens!$A$1:$AB$50,$R$3,FALSE)),"",VLOOKUP(C9,basisgegevens!$A$1:$AB$409,$R$3,FALSE)) ->  | S9: =R9 ->  | T9: =IF(ISERROR(VLOOKUP(C9,basisgegevens!$A$1:$AB$50,$T$3,FALSE)),"",VLOOKUP(C9,basisgegevens!$A$1:$AB$409,$T$3,FALSE)) -> 
C10: =IF('keuzelijst assistent'!$C$1="","",CONCATENATE('keuzelijst assistent'!$C$1)) ->  | D10: =IF(ISERROR(VLOOKUP(C10,basisgegevens!$A$1:$AB$50,$D$3,FALSE)),"",VLOOKUP(C10,basisgegevens!$A$1:$AB$404,$D$3,FALSE)) ->  | E10: =IF(ISERROR(VLOOKUP(C10,basisgegevens!$A$1:$ZL$50,$E$3,FALSE)),"",VLOOKUP(C10,basisgegevens!$A$1:$AB$50,$E$3,FALSE)) ->  | G10: =IF(C10="","",CONCATENATE(D10," ",F10)) ->  | H10: =IF(ISERROR(VLOOKUP(C10,basisgegevens!$A$1:$AB$50,$H$3,FALSE)),"",VLOOKUP(C10,basisgegevens!$A$1:$AB$50,$H$3,FALSE)) ->  | J10: =IF(ISERROR(VLOOKUP(C10,basisgegevens!$A$1:$AB$50,$J$3,FALSE)),"",VLOOKUP(C10,basisgegevens!$A$1:$AB$50,$J$3,FALSE)) ->  | K10: =IF(ISERROR(VLOOKUP(C10,basisgegevens!$A$1:$AB$50,$K$3,FALSE)),"",VLOOKUP(C10,basisgegevens!$A$1:$AB$50,$K$3,FALSE)) ->  | L10: =IF(ISERROR(VLOOKUP(C10,basisgegevens!$A$1:$AB$50,$L$3,FALSE)),"",VLOOKUP(C10,basisgegevens!$A$1:$AB$50,$L$3,FALSE)) ->  | M10: =IF(L10="","",L10) ->  | N10: =IF(ISERROR(VLOOKUP(C10,basisgegevens!$A$1:$AB$50,$N$3,FALSE)),"",IF(VLOOKUP(C10,basisgegevens!$A$1:$AB$50,$N$3,FALSE)=0,"",VLOOKUP(C10,basisgegevens!$A$1:$AB$50,$N$3,FALSE))) ->  | O10: =IF(ISERROR(VLOOKUP(C10,basisgegevens!$A$1:$AB$50,$O$3,FALSE)),"",VLOOKUP(C10,basisgegevens!$A$1:$AB$50,$O$3,FALSE)) ->  | P10: =IF(M10="","",IF(M10=0,0,IF(N10="+",M10+O10,IF(N10="*",M10*O10,M10)))) ->  | Q10: =IF(ISERROR(VLOOKUP(C10,basisgegevens!$A$1:$AB$50,$Q$3,FALSE)),"",VLOOKUP(C10,basisgegevens!$A$1:$AB$50,$Q$3,FALSE)) ->  | R10: =IF(ISERROR(VLOOKUP(C10,basisgegevens!$A$1:$AB$50,$R$3,FALSE)),"",VLOOKUP(C10,basisgegevens!$A$1:$AB$409,$R$3,FALSE)) ->  | S10: =R10 ->  | T10: =IF(ISERROR(VLOOKUP(C10,basisgegevens!$A$1:$AB$50,$T$3,FALSE)),"",VLOOKUP(C10,basisgegevens!$A$1:$AB$409,$T$3,FALSE)) -> 
C11: =IF('keuzelijst assistent'!$D$1="","",CONCATENATE('keuzelijst assistent'!$D$1)) ->  | D11: =IF(ISERROR(VLOOKUP(C11,basisgegevens!$A$1:$AB$50,$D$3,FALSE)),"",VLOOKUP(C11,basisgegevens!$A$1:$AB$404,$D$3,FALSE)) ->  | E11: =IF(ISERROR(VLOOKUP(C11,basisgegevens!$A$1:$ZL$50,$E$3,FALSE)),"",VLOOKUP(C11,basisgegevens!$A$1:$AB$50,$E$3,FALSE)) ->  | H11: =IF(ISERROR(VLOOKUP(C11,basisgegevens!$A$1:$AB$50,$H$3,FALSE)),"",VLOOKUP(C11,basisgegevens!$A$1:$AB$50,$H$3,FALSE)) ->  | J11: =IF(ISERROR(VLOOKUP(C11,basisgegevens!$A$1:$AB$50,$J$3,FALSE)),"",VLOOKUP(C11,basisgegevens!$A$1:$AB$50,$J$3,FALSE)) ->  | K11: =IF(ISERROR(VLOOKUP(C11,basisgegevens!$A$1:$AB$50,$K$3,FALSE)),"",VLOOKUP(C11,basisgegevens!$A$1:$AB$50,$K$3,FALSE)) ->  | L11: =IF(ISERROR(VLOOKUP(C11,basisgegevens!$A$1:$AB$50,$L$3,FALSE)),"",VLOOKUP(C11,basisgegevens!$A$1:$AB$50,$L$3,FALSE)) ->  | N11: =IF(ISERROR(VLOOKUP(C11,basisgegevens!$A$1:$AB$50,$N$3,FALSE)),"",IF(VLOOKUP(C11,basisgegevens!$A$1:$AB$50,$N$3,FALSE)=0,"",VLOOKUP(C11,basisgegevens!$A$1:$AB$50,$N$3,FALSE))) ->  | O11: =IF(ISERROR(VLOOKUP(C11,basisgegevens!$A$1:$AB$50,$O$3,FALSE)),"",VLOOKUP(C11,basisgegevens!$A$1:$AB$50,$O$3,FALSE)) ->  | Q11: =IF(ISERROR(VLOOKUP(C11,basisgegevens!$A$1:$AB$50,$Q$3,FALSE)),"",VLOOKUP(C11,basisgegevens!$A$1:$AB$50,$Q$3,FALSE)) ->  | R11: =IF(ISERROR(VLOOKUP(C11,basisgegevens!$A$1:$AB$50,$R$3,FALSE)),"",VLOOKUP(C11,basisgegevens!$A$1:$AB$409,$R$3,FALSE)) ->  | T11: =IF(ISERROR(VLOOKUP(C11,basisgegevens!$A$1:$AB$50,$T$3,FALSE)),"",VLOOKUP(C11,basisgegevens!$A$1:$AB$409,$T$3,FALSE)) -> 
C12: =IF('keuzelijst assistent'!$E$1="","",CONCATENATE('keuzelijst assistent'!$E$1)) ->  | D12: =IF(ISERROR(VLOOKUP(C12,basisgegevens!$A$1:$AB$50,$D$3,FALSE)),"",VLOOKUP(C12,basisgegevens!$A$1:$AB$404,$D$3,FALSE)) ->  | E12: =IF(ISERROR(VLOOKUP(C12,basisgegevens!$A$1:$ZL$50,$E$3,FALSE)),"",VLOOKUP(C12,basisgegevens!$A$1:$AB$50,$E$3,FALSE)) ->  | H12: =IF(ISERROR(VLOOKUP(C12,basisgegevens!$A$1:$AB$50,$H$3,FALSE)),"",VLOOKUP(C12,basisgegevens!$A$1:$AB$50,$H$3,FALSE)) ->  | J12: =IF(ISERROR(VLOOKUP(C12,basisgegevens!$A$1:$AB$50,$J$3,FALSE)),"",VLOOKUP(C12,basisgegevens!$A$1:$AB$50,$J$3,FALSE)) ->  | K12: =IF(ISERROR(VLOOKUP(C12,basisgegevens!$A$1:$AB$50,$K$3,FALSE)),"",VLOOKUP(C12,basisgegevens!$A$1:$AB$50,$K$3,FALSE)) ->  | L12: =IF(ISERROR(VLOOKUP(C12,basisgegevens!$A$1:$AB$50,$L$3,FALSE)),"",VLOOKUP(C12,basisgegevens!$A$1:$AB$50,$L$3,FALSE)) ->  | N12: =IF(ISERROR(VLOOKUP(C12,basisgegevens!$A$1:$AB$50,$N$3,FALSE)),"",IF(VLOOKUP(C12,basisgegevens!$A$1:$AB$50,$N$3,FALSE)=0,"",VLOOKUP(C12,basisgegevens!$A$1:$AB$50,$N$3,FALSE))) ->  | O12: =IF(ISERROR(VLOOKUP(C12,basisgegevens!$A$1:$AB$50,$O$3,FALSE)),"",VLOOKUP(C12,basisgegevens!$A$1:$AB$50,$O$3,FALSE)) ->  | Q12: =IF(ISERROR(VLOOKUP(C12,basisgegevens!$A$1:$AB$50,$Q$3,FALSE)),"",VLOOKUP(C12,basisgegevens!$A$1:$AB$50,$Q$3,FALSE)) ->  | R12: =IF(ISERROR(VLOOKUP(C12,basisgegevens!$A$1:$AB$50,$R$3,FALSE)),"",VLOOKUP(C12,basisgegevens!$A$1:$AB$409,$R$3,FALSE)) ->  | T12: =IF(ISERROR(VLOOKUP(C12,basisgegevens!$A$1:$AB$50,$T$3,FALSE)),"",VLOOKUP(C12,basisgegevens!$A$1:$AB$409,$T$3,FALSE)) -> 
C13: =IF('keuzelijst assistent'!$F$1="","",CONCATENATE('keuzelijst assistent'!$F$1)) ->  | D13: =IF(ISERROR(VLOOKUP(C13,basisgegevens!$A$1:$AB$50,$D$3,FALSE)),"",VLOOKUP(C13,basisgegevens!$A$1:$AB$404,$D$3,FALSE)) ->  | E13: =IF(ISERROR(VLOOKUP(C13,basisgegevens!$A$1:$ZL$50,$E$3,FALSE)),"",VLOOKUP(C13,basisgegevens!$A$1:$AB$50,$E$3,FALSE)) ->  | H13: =IF(ISERROR(VLOOKUP(C13,basisgegevens!$A$1:$AB$50,$H$3,FALSE)),"",VLOOKUP(C13,basisgegevens!$A$1:$AB$50,$H$3,FALSE)) ->  | J13: =IF(ISERROR(VLOOKUP(C13,basisgegevens!$A$1:$AB$50,$J$3,FALSE)),"",VLOOKUP(C13,basisgegevens!$A$1:$AB$50,$J$3,FALSE)) ->  | K13: =IF(ISERROR(VLOOKUP(C13,basisgegevens!$A$1:$AB$50,$K$3,FALSE)),"",VLOOKUP(C13,basisgegevens!$A$1:$AB$50,$K$3,FALSE)) ->  | L13: =IF(ISERROR(VLOOKUP(C13,basisgegevens!$A$1:$AB$50,$L$3,FALSE)),"",VLOOKUP(C13,basisgegevens!$A$1:$AB$50,$L$3,FALSE)) ->  | N13: =IF(ISERROR(VLOOKUP(C13,basisgegevens!$A$1:$AB$50,$N$3,FALSE)),"",IF(VLOOKUP(C13,basisgegevens!$A$1:$AB$50,$N$3,FALSE)=0,"",VLOOKUP(C13,basisgegevens!$A$1:$AB$50,$N$3,FALSE))) ->  | O13: =IF(ISERROR(VLOOKUP(C13,basisgegevens!$A$1:$AB$50,$O$3,FALSE)),"",VLOOKUP(C13,basisgegevens!$A$1:$AB$50,$O$3,FALSE)) ->  | Q13: =IF(ISERROR(VLOOKUP(C13,basisgegevens!$A$1:$AB$50,$Q$3,FALSE)),"",VLOOKUP(C13,basisgegevens!$A$1:$AB$50,$Q$3,FALSE)) ->  | R13: =IF(ISERROR(VLOOKUP(C13,basisgegevens!$A$1:$AB$50,$R$3,FALSE)),"",VLOOKUP(C13,basisgegevens!$A$1:$AB$409,$R$3,FALSE)) ->  | T13: =IF(ISERROR(VLOOKUP(C13,basisgegevens!$A$1:$AB$50,$T$3,FALSE)),"",VLOOKUP(C13,basisgegevens!$A$1:$AB$409,$T$3,FALSE)) -> 
C14: =IF('keuzelijst assistent'!$G$1="","",CONCATENATE('keuzelijst assistent'!$G$1)) ->  | D14: =IF(ISERROR(VLOOKUP(C14,basisgegevens!$A$1:$AB$50,$D$3,FALSE)),"",VLOOKUP(C14,basisgegevens!$A$1:$AB$404,$D$3,FALSE)) ->  | E14: =IF(ISERROR(VLOOKUP(C14,basisgegevens!$A$1:$ZL$50,$E$3,FALSE)),"",VLOOKUP(C14,basisgegevens!$A$1:$AB$50,$E$3,FALSE)) ->  | H14: =IF(ISERROR(VLOOKUP(C14,basisgegevens!$A$1:$AB$50,$H$3,FALSE)),"",VLOOKUP(C14,basisgegevens!$A$1:$AB$50,$H$3,FALSE)) ->  | J14: =IF(ISERROR(VLOOKUP(C14,basisgegevens!$A$1:$AB$50,$J$3,FALSE)),"",VLOOKUP(C14,basisgegevens!$A$1:$AB$50,$J$3,FALSE)) ->  | K14: =IF(ISERROR(VLOOKUP(C14,basisgegevens!$A$1:$AB$50,$K$3,FALSE)),"",VLOOKUP(C14,basisgegevens!$A$1:$AB$50,$K$3,FALSE)) ->  | L14: =IF(ISERROR(VLOOKUP(C14,basisgegevens!$A$1:$AB$50,$L$3,FALSE)),"",VLOOKUP(C14,basisgegevens!$A$1:$AB$50,$L$3,FALSE)) ->  | N14: =IF(ISERROR(VLOOKUP(C14,basisgegevens!$A$1:$AB$50,$N$3,FALSE)),"",IF(VLOOKUP(C14,basisgegevens!$A$1:$AB$50,$N$3,FALSE)=0,"",VLOOKUP(C14,basisgegevens!$A$1:$AB$50,$N$3,FALSE))) ->  | O14: =IF(ISERROR(VLOOKUP(C14,basisgegevens!$A$1:$AB$50,$O$3,FALSE)),"",VLOOKUP(C14,basisgegevens!$A$1:$AB$50,$O$3,FALSE)) ->  | Q14: =IF(ISERROR(VLOOKUP(C14,basisgegevens!$A$1:$AB$50,$Q$3,FALSE)),"",VLOOKUP(C14,basisgegevens!$A$1:$AB$50,$Q$3,FALSE)) ->  | R14: =IF(ISERROR(VLOOKUP(C14,basisgegevens!$A$1:$AB$50,$R$3,FALSE)),"",VLOOKUP(C14,basisgegevens!$A$1:$AB$409,$R$3,FALSE)) ->  | T14: =IF(ISERROR(VLOOKUP(C14,basisgegevens!$A$1:$AB$50,$T$3,FALSE)),"",VLOOKUP(C14,basisgegevens!$A$1:$AB$409,$T$3,FALSE)) -> 
C15: =IF('keuzelijst assistent'!$H$1="","",CONCATENATE('keuzelijst assistent'!$H$1)) ->  | D15: =IF(ISERROR(VLOOKUP(C15,basisgegevens!$A$1:$AB$50,$D$3,FALSE)),"",VLOOKUP(C15,basisgegevens!$A$1:$AB$404,$D$3,FALSE)) ->  | E15: =IF(ISERROR(VLOOKUP(C15,basisgegevens!$A$1:$ZL$50,$E$3,FALSE)),"",VLOOKUP(C15,basisgegevens!$A$1:$AB$50,$E$3,FALSE)) ->  | H15: =IF(ISERROR(VLOOKUP(C15,basisgegevens!$A$1:$AB$50,$H$3,FALSE)),"",VLOOKUP(C15,basisgegevens!$A$1:$AB$50,$H$3,FALSE)) ->  | J15: =IF(ISERROR(VLOOKUP(C15,basisgegevens!$A$1:$AB$50,$J$3,FALSE)),"",VLOOKUP(C15,basisgegevens!$A$1:$AB$50,$J$3,FALSE)) ->  | K15: =IF(ISERROR(VLOOKUP(C15,basisgegevens!$A$1:$AB$50,$K$3,FALSE)),"",VLOOKUP(C15,basisgegevens!$A$1:$AB$50,$K$3,FALSE)) ->  | L15: =IF(ISERROR(VLOOKUP(C15,basisgegevens!$A$1:$AB$50,$L$3,FALSE)),"",VLOOKUP(C15,basisgegevens!$A$1:$AB$50,$L$3,FALSE)) ->  | N15: =IF(ISERROR(VLOOKUP(C15,basisgegevens!$A$1:$AB$50,$N$3,FALSE)),"",IF(VLOOKUP(C15,basisgegevens!$A$1:$AB$50,$N$3,FALSE)=0,"",VLOOKUP(C15,basisgegevens!$A$1:$AB$50,$N$3,FALSE))) ->  | O15: =IF(ISERROR(VLOOKUP(C15,basisgegevens!$A$1:$AB$50,$O$3,FALSE)),"",VLOOKUP(C15,basisgegevens!$A$1:$AB$50,$O$3,FALSE)) ->  | Q15: =IF(ISERROR(VLOOKUP(C15,basisgegevens!$A$1:$AB$50,$Q$3,FALSE)),"",VLOOKUP(C15,basisgegevens!$A$1:$AB$50,$Q$3,FALSE)) ->  | R15: =IF(ISERROR(VLOOKUP(C15,basisgegevens!$A$1:$AB$50,$R$3,FALSE)),"",VLOOKUP(C15,basisgegevens!$A$1:$AB$409,$R$3,FALSE)) ->  | T15: =IF(ISERROR(VLOOKUP(C15,basisgegevens!$A$1:$AB$50,$T$3,FALSE)),"",VLOOKUP(C15,basisgegevens!$A$1:$AB$409,$T$3,FALSE)) -> 
C16: =IF('keuzelijst assistent'!$I$1="","",CONCATENATE('keuzelijst assistent'!$I$1)) ->  | D16: =IF(ISERROR(VLOOKUP(C16,basisgegevens!$A$1:$AB$50,$D$3,FALSE)),"",VLOOKUP(C16,basisgegevens!$A$1:$AB$404,$D$3,FALSE)) ->  | E16: =IF(ISERROR(VLOOKUP(C16,basisgegevens!$A$1:$ZL$50,$E$3,FALSE)),"",VLOOKUP(C16,basisgegevens!$A$1:$AB$50,$E$3,FALSE)) ->  | H16: =IF(ISERROR(VLOOKUP(C16,basisgegevens!$A$1:$AB$50,$H$3,FALSE)),"",VLOOKUP(C16,basisgegevens!$A$1:$AB$50,$H$3,FALSE)) ->  | J16: =IF(ISERROR(VLOOKUP(C16,basisgegevens!$A$1:$AB$50,$J$3,FALSE)),"",VLOOKUP(C16,basisgegevens!$A$1:$AB$50,$J$3,FALSE)) ->  | K16: =IF(ISERROR(VLOOKUP(C16,basisgegevens!$A$1:$AB$50,$K$3,FALSE)),"",VLOOKUP(C16,basisgegevens!$A$1:$AB$50,$K$3,FALSE)) ->  | L16: =IF(ISERROR(VLOOKUP(C16,basisgegevens!$A$1:$AB$50,$L$3,FALSE)),"",VLOOKUP(C16,basisgegevens!$A$1:$AB$50,$L$3,FALSE)) ->  | N16: =IF(ISERROR(VLOOKUP(C16,basisgegevens!$A$1:$AB$50,$N$3,FALSE)),"",IF(VLOOKUP(C16,basisgegevens!$A$1:$AB$50,$N$3,FALSE)=0,"",VLOOKUP(C16,basisgegevens!$A$1:$AB$50,$N$3,FALSE))) ->  | O16: =IF(ISERROR(VLOOKUP(C16,basisgegevens!$A$1:$AB$50,$O$3,FALSE)),"",VLOOKUP(C16,basisgegevens!$A$1:$AB$50,$O$3,FALSE)) ->  | Q16: =IF(ISERROR(VLOOKUP(C16,basisgegevens!$A$1:$AB$50,$Q$3,FALSE)),"",VLOOKUP(C16,basisgegevens!$A$1:$AB$50,$Q$3,FALSE)) ->  | R16: =IF(ISERROR(VLOOKUP(C16,basisgegevens!$A$1:$AB$50,$R$3,FALSE)),"",VLOOKUP(C16,basisgegevens!$A$1:$AB$409,$R$3,FALSE)) ->  | T16: =IF(ISERROR(VLOOKUP(C16,basisgegevens!$A$1:$AB$50,$T$3,FALSE)),"",VLOOKUP(C16,basisgegevens!$A$1:$AB$409,$T$3,FALSE)) -> 
C17: =IF('keuzelijst assistent'!$J$1="","",CONCATENATE('keuzelijst assistent'!$J$1)) ->  | D17: =IF(ISERROR(VLOOKUP(C17,basisgegevens!$A$1:$AB$50,$D$3,FALSE)),"",VLOOKUP(C17,basisgegevens!$A$1:$AB$404,$D$3,FALSE)) ->  | E17: =IF(ISERROR(VLOOKUP(C17,basisgegevens!$A$1:$ZL$50,$E$3,FALSE)),"",VLOOKUP(C17,basisgegevens!$A$1:$AB$50,$E$3,FALSE)) ->  | H17: =IF(ISERROR(VLOOKUP(C17,basisgegevens!$A$1:$AB$50,$H$3,FALSE)),"",VLOOKUP(C17,basisgegevens!$A$1:$AB$50,$H$3,FALSE)) ->  | J17: =IF(ISERROR(VLOOKUP(C17,basisgegevens!$A$1:$AB$50,$J$3,FALSE)),"",VLOOKUP(C17,basisgegevens!$A$1:$AB$50,$J$3,FALSE)) ->  | K17: =IF(ISERROR(VLOOKUP(C17,basisgegevens!$A$1:$AB$50,$K$3,FALSE)),"",VLOOKUP(C17,basisgegevens!$A$1:$AB$50,$K$3,FALSE)) ->  | L17: =IF(ISERROR(VLOOKUP(C17,basisgegevens!$A$1:$AB$50,$L$3,FALSE)),"",VLOOKUP(C17,basisgegevens!$A$1:$AB$50,$L$3,FALSE)) ->  | N17: =IF(ISERROR(VLOOKUP(C17,basisgegevens!$A$1:$AB$50,$N$3,FALSE)),"",IF(VLOOKUP(C17,basisgegevens!$A$1:$AB$50,$N$3,FALSE)=0,"",VLOOKUP(C17,basisgegevens!$A$1:$AB$50,$N$3,FALSE))) ->  | O17: =IF(ISERROR(VLOOKUP(C17,basisgegevens!$A$1:$AB$50,$O$3,FALSE)),"",VLOOKUP(C17,basisgegevens!$A$1:$AB$50,$O$3,FALSE)) ->  | Q17: =IF(ISERROR(VLOOKUP(C17,basisgegevens!$A$1:$AB$50,$Q$3,FALSE)),"",VLOOKUP(C17,basisgegevens!$A$1:$AB$50,$Q$3,FALSE)) ->  | R17: =IF(ISERROR(VLOOKUP(C17,basisgegevens!$A$1:$AB$50,$R$3,FALSE)),"",VLOOKUP(C17,basisgegevens!$A$1:$AB$409,$R$3,FALSE)) ->  | T17: =IF(ISERROR(VLOOKUP(C17,basisgegevens!$A$1:$AB$50,$T$3,FALSE)),"",VLOOKUP(C17,basisgegevens!$A$1:$AB$409,$T$3,FALSE)) -> 
C18: =IF('keuzelijst assistent'!$K$1="","",CONCATENATE('keuzelijst assistent'!$K$1)) ->  | D18: =IF(ISERROR(VLOOKUP(C18,basisgegevens!$A$1:$AB$50,$D$3,FALSE)),"",VLOOKUP(C18,basisgegevens!$A$1:$AB$404,$D$3,FALSE)) ->  | E18: =IF(ISERROR(VLOOKUP(C18,basisgegevens!$A$1:$ZL$50,$E$3,FALSE)),"",VLOOKUP(C18,basisgegevens!$A$1:$AB$50,$E$3,FALSE)) ->  | H18: =IF(ISERROR(VLOOKUP(C18,basisgegevens!$A$1:$AB$50,$H$3,FALSE)),"",VLOOKUP(C18,basisgegevens!$A$1:$AB$50,$H$3,FALSE)) ->  | J18: =IF(ISERROR(VLOOKUP(C18,basisgegevens!$A$1:$AB$50,$J$3,FALSE)),"",VLOOKUP(C18,basisgegevens!$A$1:$AB$50,$J$3,FALSE)) ->  | K18: =IF(ISERROR(VLOOKUP(C18,basisgegevens!$A$1:$AB$50,$K$3,FALSE)),"",VLOOKUP(C18,basisgegevens!$A$1:$AB$50,$K$3,FALSE)) ->  | L18: =IF(ISERROR(VLOOKUP(C18,basisgegevens!$A$1:$AB$50,$L$3,FALSE)),"",VLOOKUP(C18,basisgegevens!$A$1:$AB$50,$L$3,FALSE)) ->  | N18: =IF(ISERROR(VLOOKUP(C18,basisgegevens!$A$1:$AB$50,$N$3,FALSE)),"",IF(VLOOKUP(C18,basisgegevens!$A$1:$AB$50,$N$3,FALSE)=0,"",VLOOKUP(C18,basisgegevens!$A$1:$AB$50,$N$3,FALSE))) ->  | O18: =IF(ISERROR(VLOOKUP(C18,basisgegevens!$A$1:$AB$50,$O$3,FALSE)),"",VLOOKUP(C18,basisgegevens!$A$1:$AB$50,$O$3,FALSE)) ->  | Q18: =IF(ISERROR(VLOOKUP(C18,basisgegevens!$A$1:$AB$50,$Q$3,FALSE)),"",VLOOKUP(C18,basisgegevens!$A$1:$AB$50,$Q$3,FALSE)) ->  | R18: =IF(ISERROR(VLOOKUP(C18,basisgegevens!$A$1:$AB$50,$R$3,FALSE)),"",VLOOKUP(C18,basisgegevens!$A$1:$AB$409,$R$3,FALSE)) ->  | T18: =IF(ISERROR(VLOOKUP(C18,basisgegevens!$A$1:$AB$50,$T$3,FALSE)),"",VLOOKUP(C18,basisgegevens!$A$1:$AB$409,$T$3,FALSE)) -> 
C19: =IF('keuzelijst assistent'!$L1="","",CONCATENATE('keuzelijst assistent'!$L$1)) ->  | D19: =IF(ISERROR(VLOOKUP(C19,basisgegevens!$A$1:$AB$50,$D$3,FALSE)),"",VLOOKUP(C19,basisgegevens!$A$1:$AB$404,$D$3,FALSE)) ->  | E19: =IF(ISERROR(VLOOKUP(C19,basisgegevens!$A$1:$ZL$50,$E$3,FALSE)),"",VLOOKUP(C19,basisgegevens!$A$1:$AB$50,$E$3,FALSE)) ->  | H19: =IF(ISERROR(VLOOKUP(C19,basisgegevens!$A$1:$AB$50,$H$3,FALSE)),"",VLOOKUP(C19,basisgegevens!$A$1:$AB$50,$H$3,FALSE)) ->  | J19: =IF(ISERROR(VLOOKUP(C19,basisgegevens!$A$1:$AB$50,$J$3,FALSE)),"",VLOOKUP(C19,basisgegevens!$A$1:$AB$50,$J$3,FALSE)) ->  | K19: =IF(ISERROR(VLOOKUP(C19,basisgegevens!$A$1:$AB$50,$K$3,FALSE)),"",VLOOKUP(C19,basisgegevens!$A$1:$AB$50,$K$3,FALSE)) ->  | L19: =IF(ISERROR(VLOOKUP(C19,basisgegevens!$A$1:$AB$50,$L$3,FALSE)),"",VLOOKUP(C19,basisgegevens!$A$1:$AB$50,$L$3,FALSE)) ->  | N19: =IF(ISERROR(VLOOKUP(C19,basisgegevens!$A$1:$AB$50,$N$3,FALSE)),"",IF(VLOOKUP(C19,basisgegevens!$A$1:$AB$50,$N$3,FALSE)=0,"",VLOOKUP(C19,basisgegevens!$A$1:$AB$50,$N$3,FALSE))) ->  | O19: =IF(ISERROR(VLOOKUP(C19,basisgegevens!$A$1:$AB$50,$O$3,FALSE)),"",VLOOKUP(C19,basisgegevens!$A$1:$AB$50,$O$3,FALSE)) ->  | Q19: =IF(ISERROR(VLOOKUP(C19,basisgegevens!$A$1:$AB$50,$Q$3,FALSE)),"",VLOOKUP(C19,basisgegevens!$A$1:$AB$50,$Q$3,FALSE)) ->  | R19: =IF(ISERROR(VLOOKUP(C19,basisgegevens!$A$1:$AB$50,$R$3,FALSE)),"",VLOOKUP(C19,basisgegevens!$A$1:$AB$409,$R$3,FALSE)) ->  | T19: =IF(ISERROR(VLOOKUP(C19,basisgegevens!$A$1:$AB$50,$T$3,FALSE)),"",VLOOKUP(C19,basisgegevens!$A$1:$AB$409,$T$3,FALSE)) -> 
C20: =IF('keuzelijst assistent'!$B12="","",CONCATENATE('keuzelijst assistent'!$B12)) ->  | G20: =IF(C20="","",CONCATENATE(D20," ",F20)) ->  | H20: =IF(ISERROR(VLOOKUP(C20,basisgegevens!$A$1:$AB$50,$H$3,FALSE)),"",VLOOKUP(C20,basisgegevens!$A$1:$AB$50,$H$3,FALSE)) ->  | N20: =IF(ISERROR(VLOOKUP(C20,basisgegevens!$A$1:$AB$50,$N$3,FALSE)),"",IF(VLOOKUP(C20,basisgegevens!$A$1:$AB$50,$N$3,FALSE)=0,"",VLOOKUP(C20,basisgegevens!$A$1:$AB$50,$N$3,FALSE))) ->  | O20: =IF(ISERROR(VLOOKUP(C20,basisgegevens!$A$1:$AB$50,$O$3,FALSE)),"",VLOOKUP(C20,basisgegevens!$A$1:$AB$50,$O$3,FALSE)) ->  | T20: =IF(ISERROR(VLOOKUP(C20,basisgegevens!$A$1:$AB$50,$T$3,FALSE)),"",VLOOKUP(C20,basisgegevens!$A$1:$AB$409,$T$3,FALSE)) -> 
B21: Huishouden, verzorging | C21: =IF('keuzelijst assistent'!$B13="","",CONCATENATE('keuzelijst assistent'!$B13)) ->  | G21: =IF(C21="","",CONCATENATE(D21," ",F21)) ->  | T21: =IF(ISERROR(VLOOKUP(C21,basisgegevens!$A$1:$AB$50,$T$3,FALSE)),"",VLOOKUP(C21,basisgegevens!$A$1:$AB$409,$T$3,FALSE)) -> 
C22: =IF('keuzelijst huishouden'!$B$1="","",CONCATENATE('keuzelijst huishouden'!$B$1+13)) ->  | D22: =IF(ISERROR(VLOOKUP(C22,basisgegevens!$A$1:$AB$50,$D$3,FALSE)),"",VLOOKUP(C22,basisgegevens!$A$1:$AB$404,$D$3,FALSE)) ->  | E22: =IF(ISERROR(VLOOKUP(C22,basisgegevens!$A$1:$ZL$50,$E$3,FALSE)),"",VLOOKUP(C22,basisgegevens!$A$1:$AB$50,$E$3,FALSE)) ->  | G22: =IF(C22="","",CONCATENATE(D22," ",F22)) ->  | H22: =IF(ISERROR(VLOOKUP(C22,basisgegevens!$A$1:$AB$50,$H$3,FALSE)),"",VLOOKUP(C22,basisgegevens!$A$1:$AB$50,$H$3,FALSE)) ->  | J22: =IF(ISERROR(VLOOKUP(C22,basisgegevens!$A$1:$AB$50,$J$3,FALSE)),"",VLOOKUP(C22,basisgegevens!$A$1:$AB$50,$J$3,FALSE)) ->  | K22: =IF(ISERROR(VLOOKUP(C22,basisgegevens!$A$1:$AB$50,$K$3,FALSE)),"",VLOOKUP(C22,basisgegevens!$A$1:$AB$50,$K$3,FALSE)) ->  | N22: =IF(ISERROR(VLOOKUP(C22,basisgegevens!$A$1:$AB$50,$N$3,FALSE)),"",VLOOKUP(C22,basisgegevens!$A$1:$AB$50,$N$3,FALSE)) ->  | O22: =IF(ISERROR(VLOOKUP(C22,basisgegevens!$A$1:$AB$50,$O$3,FALSE)),"",VLOOKUP(C22,basisgegevens!$A$1:$AB$50,$O$3,FALSE)) ->  | P22: =IF(M22="","",IF(M22=0,0,IF(N22="+",M22+O22,IF(N22="*",M22*O22,M22)))) ->  | Q22: =IF(ISERROR(VLOOKUP(C22,basisgegevens!$A$1:$AB$50,$Q$3,FALSE)),"",VLOOKUP(C22,basisgegevens!$A$1:$AB$50,$Q$3,FALSE)) ->  | R22: =IF(ISERROR(VLOOKUP(C22,basisgegevens!$A$1:$AB$50,$R$3,FALSE)),"",VLOOKUP(C22,basisgegevens!$A$1:$AB$409,$R$3,FALSE)) ->  | S22: =R22 ->  | T22: =IF(ISERROR(VLOOKUP(C22,basisgegevens!$A$1:$AB$50,$T$3,FALSE)),"",VLOOKUP(C22,basisgegevens!$A$1:$AB$409,$T$3,FALSE)) -> 
C23: =IF('keuzelijst huishouden'!$C$1="","",CONCATENATE('keuzelijst huishouden'!$C$1+13)) ->  | D23: =IF(ISERROR(VLOOKUP(C23,basisgegevens!$A$1:$AB$50,$D$3,FALSE)),"",VLOOKUP(C23,basisgegevens!$A$1:$AB$404,$D$3,FALSE)) ->  | E23: =IF(ISERROR(VLOOKUP(C23,basisgegevens!$A$1:$ZL$50,$E$3,FALSE)),"",VLOOKUP(C23,basisgegevens!$A$1:$AB$50,$E$3,FALSE)) ->  | H23: =IF(ISERROR(VLOOKUP(C23,basisgegevens!$A$1:$AB$50,$H$3,FALSE)),"",VLOOKUP(C23,basisgegevens!$A$1:$AB$50,$H$3,FALSE)) ->  | J23: =IF(ISERROR(VLOOKUP(C23,basisgegevens!$A$1:$AB$50,$J$3,FALSE)),"",VLOOKUP(C23,basisgegevens!$A$1:$AB$50,$J$3,FALSE)) ->  | K23: =IF(ISERROR(VLOOKUP(C23,basisgegevens!$A$1:$AB$50,$K$3,FALSE)),"",VLOOKUP(C23,basisgegevens!$A$1:$AB$50,$K$3,FALSE)) ->  | N23: =IF(ISERROR(VLOOKUP(C23,basisgegevens!$A$1:$AB$50,$N$3,FALSE)),"",VLOOKUP(C23,basisgegevens!$A$1:$AB$50,$N$3,FALSE)) ->  | O23: =IF(ISERROR(VLOOKUP(C23,basisgegevens!$A$1:$AB$50,$O$3,FALSE)),"",VLOOKUP(C23,basisgegevens!$A$1:$AB$50,$O$3,FALSE)) ->  | P23: =IF(M23="","",IF(M23=0,0,IF(N23="+",M23+O23,IF(N23="*",M23*O23,M23)))) ->  | Q23: =IF(ISERROR(VLOOKUP(C23,basisgegevens!$A$1:$AB$50,$Q$3,FALSE)),"",VLOOKUP(C23,basisgegevens!$A$1:$AB$50,$Q$3,FALSE)) ->  | R23: =IF(ISERROR(VLOOKUP(C23,basisgegevens!$A$1:$AB$50,$R$3,FALSE)),"",VLOOKUP(C23,basisgegevens!$A$1:$AB$409,$R$3,FALSE)) ->  | T23: =IF(ISERROR(VLOOKUP(C23,basisgegevens!$A$1:$AB$50,$T$3,FALSE)),"",VLOOKUP(C23,basisgegevens!$A$1:$AB$409,$T$3,FALSE)) -> 
C24: =IF('keuzelijst huishouden'!$D$1="","",CONCATENATE('keuzelijst huishouden'!$D$1+13)) ->  | D24: =IF(ISERROR(VLOOKUP(C24,basisgegevens!$A$1:$AB$50,$D$3,FALSE)),"",VLOOKUP(C24,basisgegevens!$A$1:$AB$404,$D$3,FALSE)) ->  | E24: =IF(ISERROR(VLOOKUP(C24,basisgegevens!$A$1:$ZL$50,$E$3,FALSE)),"",VLOOKUP(C24,basisgegevens!$A$1:$AB$50,$E$3,FALSE)) ->  | H24: =IF(ISERROR(VLOOKUP(C24,basisgegevens!$A$1:$AB$50,$H$3,FALSE)),"",VLOOKUP(C24,basisgegevens!$A$1:$AB$50,$H$3,FALSE)) ->  | J24: =IF(ISERROR(VLOOKUP(C24,basisgegevens!$A$1:$AB$50,$J$3,FALSE)),"",VLOOKUP(C24,basisgegevens!$A$1:$AB$50,$J$3,FALSE)) ->  | K24: =IF(ISERROR(VLOOKUP(C24,basisgegevens!$A$1:$AB$50,$K$3,FALSE)),"",VLOOKUP(C24,basisgegevens!$A$1:$AB$50,$K$3,FALSE)) ->  | N24: =IF(ISERROR(VLOOKUP(C24,basisgegevens!$A$1:$AB$50,$N$3,FALSE)),"",VLOOKUP(C24,basisgegevens!$A$1:$AB$50,$N$3,FALSE)) ->  | O24: =IF(ISERROR(VLOOKUP(C24,basisgegevens!$A$1:$AB$50,$O$3,FALSE)),"",VLOOKUP(C24,basisgegevens!$A$1:$AB$50,$O$3,FALSE)) ->  | Q24: =IF(ISERROR(VLOOKUP(C24,basisgegevens!$A$1:$AB$50,$Q$3,FALSE)),"",VLOOKUP(C24,basisgegevens!$A$1:$AB$50,$Q$3,FALSE)) ->  | R24: =IF(ISERROR(VLOOKUP(C24,basisgegevens!$A$1:$AB$50,$R$3,FALSE)),"",VLOOKUP(C24,basisgegevens!$A$1:$AB$409,$R$3,FALSE)) ->  | T24: =IF(ISERROR(VLOOKUP(C24,basisgegevens!$A$1:$AB$50,$T$3,FALSE)),"",VLOOKUP(C24,basisgegevens!$A$1:$AB$409,$T$3,FALSE)) -> 
C25: =IF('keuzelijst huishouden'!$E$1="","",CONCATENATE('keuzelijst huishouden'!$E$1+13)) ->  | D25: =IF(ISERROR(VLOOKUP(C25,basisgegevens!$A$1:$AB$50,$D$3,FALSE)),"",VLOOKUP(C25,basisgegevens!$A$1:$AB$404,$D$3,FALSE)) ->  | E25: =IF(ISERROR(VLOOKUP(C25,basisgegevens!$A$1:$ZL$50,$E$3,FALSE)),"",VLOOKUP(C25,basisgegevens!$A$1:$AB$50,$E$3,FALSE)) ->  | H25: =IF(ISERROR(VLOOKUP(C25,basisgegevens!$A$1:$AB$50,$H$3,FALSE)),"",VLOOKUP(C25,basisgegevens!$A$1:$AB$50,$H$3,FALSE)) ->  | J25: =IF(ISERROR(VLOOKUP(C25,basisgegevens!$A$1:$AB$50,$J$3,FALSE)),"",VLOOKUP(C25,basisgegevens!$A$1:$AB$50,$J$3,FALSE)) ->  | K25: =IF(ISERROR(VLOOKUP(C25,basisgegevens!$A$1:$AB$50,$K$3,FALSE)),"",VLOOKUP(C25,basisgegevens!$A$1:$AB$50,$K$3,FALSE)) ->  | N25: =IF(ISERROR(VLOOKUP(C25,basisgegevens!$A$1:$AB$50,$N$3,FALSE)),"",VLOOKUP(C25,basisgegevens!$A$1:$AB$50,$N$3,FALSE)) ->  | O25: =IF(ISERROR(VLOOKUP(C25,basisgegevens!$A$1:$AB$50,$O$3,FALSE)),"",VLOOKUP(C25,basisgegevens!$A$1:$AB$50,$O$3,FALSE)) ->  | Q25: =IF(ISERROR(VLOOKUP(C25,basisgegevens!$A$1:$AB$50,$Q$3,FALSE)),"",VLOOKUP(C25,basisgegevens!$A$1:$AB$50,$Q$3,FALSE)) ->  | R25: =IF(ISERROR(VLOOKUP(C25,basisgegevens!$A$1:$AB$50,$R$3,FALSE)),"",VLOOKUP(C25,basisgegevens!$A$1:$AB$409,$R$3,FALSE)) ->  | T25: =IF(ISERROR(VLOOKUP(C25,basisgegevens!$A$1:$AB$50,$T$3,FALSE)),"",VLOOKUP(C25,basisgegevens!$A$1:$AB$409,$T$3,FALSE)) -> 
C26: =IF('keuzelijst huishouden'!$F$1="","",CONCATENATE('keuzelijst huishouden'!$F$1+13)) ->  | D26: =IF(ISERROR(VLOOKUP(C26,basisgegevens!$A$1:$AB$50,$D$3,FALSE)),"",VLOOKUP(C26,basisgegevens!$A$1:$AB$404,$D$3,FALSE)) ->  | E26: =IF(ISERROR(VLOOKUP(C26,basisgegevens!$A$1:$ZL$50,$E$3,FALSE)),"",VLOOKUP(C26,basisgegevens!$A$1:$AB$50,$E$3,FALSE)) ->  | H26: =IF(ISERROR(VLOOKUP(C26,basisgegevens!$A$1:$AB$50,$H$3,FALSE)),"",VLOOKUP(C26,basisgegevens!$A$1:$AB$50,$H$3,FALSE)) ->  | J26: =IF(ISERROR(VLOOKUP(C26,basisgegevens!$A$1:$AB$50,$J$3,FALSE)),"",VLOOKUP(C26,basisgegevens!$A$1:$AB$50,$J$3,FALSE)) ->  | K26: =IF(ISERROR(VLOOKUP(C26,basisgegevens!$A$1:$AB$50,$K$3,FALSE)),"",VLOOKUP(C26,basisgegevens!$A$1:$AB$50,$K$3,FALSE)) ->  | N26: =IF(ISERROR(VLOOKUP(C26,basisgegevens!$A$1:$AB$50,$N$3,FALSE)),"",VLOOKUP(C26,basisgegevens!$A$1:$AB$50,$N$3,FALSE)) ->  | O26: =IF(ISERROR(VLOOKUP(C26,basisgegevens!$A$1:$AB$50,$O$3,FALSE)),"",VLOOKUP(C26,basisgegevens!$A$1:$AB$50,$O$3,FALSE)) ->  | Q26: =IF(ISERROR(VLOOKUP(C26,basisgegevens!$A$1:$AB$50,$Q$3,FALSE)),"",VLOOKUP(C26,basisgegevens!$A$1:$AB$50,$Q$3,FALSE)) ->  | R26: =IF(ISERROR(VLOOKUP(C26,basisgegevens!$A$1:$AB$50,$R$3,FALSE)),"",VLOOKUP(C26,basisgegevens!$A$1:$AB$409,$R$3,FALSE)) ->  | T26: =IF(ISERROR(VLOOKUP(C26,basisgegevens!$A$1:$AB$50,$T$3,FALSE)),"",VLOOKUP(C26,basisgegevens!$A$1:$AB$409,$T$3,FALSE)) -> 
T27: =IF(ISERROR(VLOOKUP(C27,basisgegevens!$A$1:$AB$50,$T$3,FALSE)),"",VLOOKUP(C27,basisgegevens!$A$1:$AB$409,$T$3,FALSE)) -> 
B28: Vergunde zorgaanbieder | T28: =IF(ISERROR(VLOOKUP(C28,basisgegevens!$A$1:$AB$50,$T$3,FALSE)),"",VLOOKUP(C28,basisgegevens!$A$1:$AB$409,$T$3,FALSE)) -> 
C29: =IF('keuzelijst zorgaanbieder'!$B$1="","",CONCATENATE('keuzelijst zorgaanbieder'!$B$1+22)) ->  | D29: =IF(ISERROR(VLOOKUP(C29,basisgegevens!$A$1:$AB$50,$D$3,FALSE)),"",VLOOKUP(C29,basisgegevens!$A$1:$AB$404,$D$3,FALSE)) ->  | E29: =IF(ISERROR(VLOOKUP(C29,basisgegevens!$A$1:$ZL$50,$E$3,FALSE)),"",VLOOKUP(C29,basisgegevens!$A$1:$AB$50,$E$3,FALSE)) ->  | H29: =IF(ISERROR(VLOOKUP(C29,basisgegevens!$A$1:$AB$50,$H$3,FALSE)),"",VLOOKUP(C29,basisgegevens!$A$1:$AB$50,$H$3,FALSE)) ->  | J29: =IF(ISERROR(VLOOKUP(C29,basisgegevens!$A$1:$AB$50,$J$3,FALSE)),"",VLOOKUP(C29,basisgegevens!$A$1:$AB$50,$J$3,FALSE)) ->  | K29: =IF(ISERROR(VLOOKUP(C29,basisgegevens!$A$1:$AB$50,$K$3,FALSE)),"",VLOOKUP(C29,basisgegevens!$A$1:$AB$50,$K$3,FALSE)) ->  | N29: =IF(ISERROR(VLOOKUP(C29,basisgegevens!$A$1:$AB$50,$N$3,FALSE)),"",VLOOKUP(C29,basisgegevens!$A$1:$AB$50,$N$3,FALSE)) ->  | O29: =IF(ISERROR(VLOOKUP(C29,basisgegevens!$A$1:$AB$50,$O$3,FALSE)),"",VLOOKUP(C29,basisgegevens!$A$1:$AB$50,$O$3,FALSE)) ->  | P29: =IF(M29="","",IF(M29=0,0,IF(N29="+",M29+O29,IF(N29="*",M29*O29,M29)))) ->  | Q29: =IF(ISERROR(VLOOKUP(C29,basisgegevens!$A$1:$AB$50,$Q$3,FALSE)),"",VLOOKUP(C29,basisgegevens!$A$1:$AB$50,$Q$3,FALSE)) ->  | R29: =IF(ISERROR(VLOOKUP(C29,basisgegevens!$A$1:$AB$50,$R$3,FALSE)),"",VLOOKUP(C29,basisgegevens!$A$1:$AB$409,$R$3,FALSE)) ->  | S29: =R29 ->  | T29: =IF(ISERROR(VLOOKUP(C29,basisgegevens!$A$1:$AB$50,$T$3,FALSE)),"",VLOOKUP(C29,basisgegevens!$A$1:$AB$409,$T$3,FALSE)) -> 
C30: =IF('keuzelijst zorgaanbieder'!$C$1="","",CONCATENATE('keuzelijst zorgaanbieder'!$C$1+22)) ->  | D30: =IF(ISERROR(VLOOKUP(C30,basisgegevens!$A$1:$AB$50,$D$3,FALSE)),"",VLOOKUP(C30,basisgegevens!$A$1:$AB$404,$D$3,FALSE)) ->  | E30: =IF(ISERROR(VLOOKUP(C30,basisgegevens!$A$1:$ZL$50,$E$3,FALSE)),"",VLOOKUP(C30,basisgegevens!$A$1:$AB$50,$E$3,FALSE)) ->  | H30: =IF(ISERROR(VLOOKUP(C30,basisgegevens!$A$1:$AB$50,$H$3,FALSE)),"",VLOOKUP(C30,basisgegevens!$A$1:$AB$50,$H$3,FALSE)) ->  | J30: =IF(ISERROR(VLOOKUP(C30,basisgegevens!$A$1:$AB$50,$J$3,FALSE)),"",VLOOKUP(C30,basisgegevens!$A$1:$AB$50,$J$3,FALSE)) ->  | K30: =IF(ISERROR(VLOOKUP(C30,basisgegevens!$A$1:$AB$50,$K$3,FALSE)),"",VLOOKUP(C30,basisgegevens!$A$1:$AB$50,$K$3,FALSE)) ->  | N30: =IF(ISERROR(VLOOKUP(C30,basisgegevens!$A$1:$AB$50,$N$3,FALSE)),"",VLOOKUP(C30,basisgegevens!$A$1:$AB$50,$N$3,FALSE)) ->  | O30: =IF(ISERROR(VLOOKUP(C30,basisgegevens!$A$1:$AB$50,$O$3,FALSE)),"",VLOOKUP(C30,basisgegevens!$A$1:$AB$50,$O$3,FALSE)) ->  | P30: =IF(M30="","",IF(M30=0,0,IF(N30="+",M30+O30,IF(N30="*",M30*O30,M30)))) ->  | Q30: =IF(ISERROR(VLOOKUP(C30,basisgegevens!$A$1:$AB$50,$Q$3,FALSE)),"",VLOOKUP(C30,basisgegevens!$A$1:$AB$50,$Q$3,FALSE)) ->  | R30: =IF(ISERROR(VLOOKUP(C30,basisgegevens!$A$1:$AB$50,$R$3,FALSE)),"",VLOOKUP(C30,basisgegevens!$A$1:$AB$409,$R$3,FALSE)) ->  | T30: =IF(ISERROR(VLOOKUP(C30,basisgegevens!$A$1:$AB$50,$T$3,FALSE)),"",VLOOKUP(C30,basisgegevens!$A$1:$AB$409,$T$3,FALSE)) -> 
C31: =IF('keuzelijst zorgaanbieder'!$D$1="","",CONCATENATE('keuzelijst zorgaanbieder'!$D$1+22)) ->  | D31: =IF(ISERROR(VLOOKUP(C31,basisgegevens!$A$1:$AB$50,$D$3,FALSE)),"",VLOOKUP(C31,basisgegevens!$A$1:$AB$404,$D$3,FALSE)) ->  | E31: =IF(ISERROR(VLOOKUP(C31,basisgegevens!$A$1:$ZL$50,$E$3,FALSE)),"",VLOOKUP(C31,basisgegevens!$A$1:$AB$50,$E$3,FALSE)) ->  | H31: =IF(ISERROR(VLOOKUP(C31,basisgegevens!$A$1:$AB$50,$H$3,FALSE)),"",VLOOKUP(C31,basisgegevens!$A$1:$AB$50,$H$3,FALSE)) ->  | J31: =IF(ISERROR(VLOOKUP(C31,basisgegevens!$A$1:$AB$50,$J$3,FALSE)),"",VLOOKUP(C31,basisgegevens!$A$1:$AB$50,$J$3,FALSE)) ->  | K31: =IF(ISERROR(VLOOKUP(C31,basisgegevens!$A$1:$AB$50,$K$3,FALSE)),"",VLOOKUP(C31,basisgegevens!$A$1:$AB$50,$K$3,FALSE)) ->  | N31: =IF(ISERROR(VLOOKUP(C31,basisgegevens!$A$1:$AB$50,$N$3,FALSE)),"",VLOOKUP(C31,basisgegevens!$A$1:$AB$50,$N$3,FALSE)) ->  | O31: =IF(ISERROR(VLOOKUP(C31,basisgegevens!$A$1:$AB$50,$O$3,FALSE)),"",VLOOKUP(C31,basisgegevens!$A$1:$AB$50,$O$3,FALSE)) ->  | Q31: =IF(ISERROR(VLOOKUP(C31,basisgegevens!$A$1:$AB$50,$Q$3,FALSE)),"",VLOOKUP(C31,basisgegevens!$A$1:$AB$50,$Q$3,FALSE)) ->  | R31: =IF(ISERROR(VLOOKUP(C31,basisgegevens!$A$1:$AB$50,$R$3,FALSE)),"",VLOOKUP(C31,basisgegevens!$A$1:$AB$409,$R$3,FALSE)) ->  | T31: =IF(ISERROR(VLOOKUP(C31,basisgegevens!$A$1:$AB$50,$T$3,FALSE)),"",VLOOKUP(C31,basisgegevens!$A$1:$AB$409,$T$3,FALSE)) -> 
C32: =IF('keuzelijst zorgaanbieder'!$E$1="","",CONCATENATE('keuzelijst zorgaanbieder'!$E$1+22)) ->  | D32: =IF(ISERROR(VLOOKUP(C32,basisgegevens!$A$1:$AB$50,$D$3,FALSE)),"",VLOOKUP(C32,basisgegevens!$A$1:$AB$404,$D$3,FALSE)) ->  | E32: =IF(ISERROR(VLOOKUP(C32,basisgegevens!$A$1:$ZL$50,$E$3,FALSE)),"",VLOOKUP(C32,basisgegevens!$A$1:$AB$50,$E$3,FALSE)) ->  | H32: =IF(ISERROR(VLOOKUP(C32,basisgegevens!$A$1:$AB$50,$H$3,FALSE)),"",VLOOKUP(C32,basisgegevens!$A$1:$AB$50,$H$3,FALSE)) ->  | J32: =IF(ISERROR(VLOOKUP(C32,basisgegevens!$A$1:$AB$50,$J$3,FALSE)),"",VLOOKUP(C32,basisgegevens!$A$1:$AB$50,$J$3,FALSE)) ->  | K32: =IF(ISERROR(VLOOKUP(C32,basisgegevens!$A$1:$AB$50,$K$3,FALSE)),"",VLOOKUP(C32,basisgegevens!$A$1:$AB$50,$K$3,FALSE)) ->  | N32: =IF(ISERROR(VLOOKUP(C32,basisgegevens!$A$1:$AB$50,$N$3,FALSE)),"",VLOOKUP(C32,basisgegevens!$A$1:$AB$50,$N$3,FALSE)) ->  | O32: =IF(ISERROR(VLOOKUP(C32,basisgegevens!$A$1:$AB$50,$O$3,FALSE)),"",VLOOKUP(C32,basisgegevens!$A$1:$AB$50,$O$3,FALSE)) ->  | Q32: =IF(ISERROR(VLOOKUP(C32,basisgegevens!$A$1:$AB$50,$Q$3,FALSE)),"",VLOOKUP(C32,basisgegevens!$A$1:$AB$50,$Q$3,FALSE)) ->  | R32: =IF(ISERROR(VLOOKUP(C32,basisgegevens!$A$1:$AB$50,$R$3,FALSE)),"",VLOOKUP(C32,basisgegevens!$A$1:$AB$409,$R$3,FALSE)) ->  | T32: =IF(ISERROR(VLOOKUP(C32,basisgegevens!$A$1:$AB$50,$T$3,FALSE)),"",VLOOKUP(C32,basisgegevens!$A$1:$AB$409,$T$3,FALSE)) -> 
T33: =IF(ISERROR(VLOOKUP(C33,basisgegevens!$A$1:$AB$50,$T$3,FALSE)),"",VLOOKUP(C33,basisgegevens!$A$1:$AB$409,$T$3,FALSE)) -> 
B34: Bijstandsorganisatie | T34: =IF(ISERROR(VLOOKUP(C34,basisgegevens!$A$1:$AB$50,$T$3,FALSE)),"",VLOOKUP(C34,basisgegevens!$A$1:$AB$409,$T$3,FALSE)) -> 
C35: =IF('keuzelijst bijstand'!$A$1="","",CONCATENATE('keuzelijst bijstand'!$A$1+29)) ->  | D35: =IF(ISERROR(VLOOKUP(C35,basisgegevens!$A$1:$AB$89,$D$3,FALSE)),"",VLOOKUP(C35,basisgegevens!$A$1:$AB$404,$D$3,FALSE)) ->  | E35: =IF(ISERROR(VLOOKUP(C35,basisgegevens!$A$1:$ZL$50,$E$3,FALSE)),"",VLOOKUP(C35,basisgegevens!$A$1:$AB$50,$E$3,FALSE)) ->  | H35: =IF(ISERROR(VLOOKUP(C35,basisgegevens!$A$1:$AB$50,$H$3,FALSE)),"",VLOOKUP(C35,basisgegevens!$A$1:$AB$50,$H$3,FALSE)) ->  | J35: =IF(ISERROR(VLOOKUP(C35,basisgegevens!$A$1:$AB$50,$J$3,FALSE)),"",VLOOKUP(C35,basisgegevens!$A$1:$AB$50,$J$3,FALSE)) ->  | K35: =IF(ISERROR(VLOOKUP(C35,basisgegevens!$A$1:$AB$50,$K$3,FALSE)),"",VLOOKUP(C35,basisgegevens!$A$1:$AB$50,$K$3,FALSE)) ->  | N35: =IF(ISERROR(VLOOKUP(C35,basisgegevens!$A$1:$AB$50,$N$3,FALSE)),"",VLOOKUP(C35,basisgegevens!$A$1:$AB$50,$N$3,FALSE)) ->  | O35: =IF(ISERROR(VLOOKUP(C35,basisgegevens!$A$1:$AB$50,$O$3,FALSE)),"",VLOOKUP(C35,basisgegevens!$A$1:$AB$50,$O$3,FALSE)) ->  | P35: =IF(M35="","",IF(M35=0,0,IF(N35="+",M35+O35,IF(N35="*",M35*O35,M35)))) ->  | Q35: =IF(ISERROR(VLOOKUP(C35,basisgegevens!$A$1:$AB$50,$Q$3,FALSE)),"",VLOOKUP(C35,basisgegevens!$A$1:$AB$50,$Q$3,FALSE)) ->  | R35: =IF(ISERROR(VLOOKUP(C35,basisgegevens!$A$1:$AB$50,$R$3,FALSE)),"",VLOOKUP(C35,basisgegevens!$A$1:$AB$409,$R$3,FALSE)) ->  | S35: =R35 ->  | T35: =IF(ISERROR(VLOOKUP(C35,basisgegevens!$A$1:$AB$50,$T$3,FALSE)),"",VLOOKUP(C35,basisgegevens!$A$1:$AB$409,$T$3,FALSE)) -> 
T36: =IF(ISERROR(VLOOKUP(C36,basisgegevens!$A$1:$AB$50,$T$3,FALSE)),"",VLOOKUP(C36,basisgegevens!$A$1:$AB$409,$T$3,FALSE)) -> 
B37: Vervoer | H37: =IF(ISERROR(VLOOKUP(C37,basisgegevens!$A$1:$AB$50,$H$3,FALSE)),"",VLOOKUP(C37,basisgegevens!$A$1:$AB$50,$H$3,FALSE)) ->  | N37: =IF(ISERROR(VLOOKUP(C37,basisgegevens!$A$1:$AB$50,$N$3,FALSE)),"",IF(VLOOKUP(C37,basisgegevens!$A$1:$AB$50,$N$3,FALSE)=0,"",VLOOKUP(C37,basisgegevens!$A$1:$AB$50,$N$3,FALSE))) ->  | O37: =IF(ISERROR(VLOOKUP(C37,basisgegevens!$A$1:$AB$50,$O$3,FALSE)),"",VLOOKUP(C37,basisgegevens!$A$1:$AB$50,$O$3,FALSE)) ->  | T37: =IF(ISERROR(VLOOKUP(C37,basisgegevens!$A$1:$AB$50,$T$3,FALSE)),"",VLOOKUP(C37,basisgegevens!$A$1:$AB$409,$T$3,FALSE)) -> 
C38: =IF('keuzelijst vervoer'!$B$1="","",CONCATENATE('keuzelijst vervoer'!$B$1+34)) ->  | D38: =IF(ISERROR(VLOOKUP(C38,basisgegevens!$A$1:$AB$50,$D$3,FALSE)),"",VLOOKUP(C38,basisgegevens!$A$1:$AB$404,$D$3,FALSE)) ->  | E38: =IF(ISERROR(VLOOKUP(C38,basisgegevens!$A$1:$ZL$50,$E$3,FALSE)),"",VLOOKUP(C38,basisgegevens!$A$1:$AB$50,$E$3,FALSE)) ->  | H38: =IF(ISERROR(VLOOKUP(C38,basisgegevens!$A$1:$AB$50,$H$3,FALSE)),"",VLOOKUP(C38,basisgegevens!$A$1:$AB$50,$H$3,FALSE)) ->  | J38: =IF(ISERROR(VLOOKUP(C38,basisgegevens!$A$1:$AB$50,$J$3,FALSE)),"",VLOOKUP(C38,basisgegevens!$A$1:$AB$50,$J$3,FALSE)) ->  | K38: =IF(ISERROR(VLOOKUP(C38,basisgegevens!$A$1:$AB$50,$K$3,FALSE)),"",VLOOKUP(C38,basisgegevens!$A$1:$AB$50,$K$3,FALSE)) ->  | L38: =IF(ISERROR(VLOOKUP(C38,basisgegevens!$A$1:$AB$50,$L$3,FALSE)),"",VLOOKUP(C38,basisgegevens!$A$1:$AB$50,$L$3,FALSE)) ->  | N38: =IF(ISERROR(VLOOKUP(C38,basisgegevens!$A$1:$AB$50,$N$3,FALSE)),"",IF(VLOOKUP(C38,basisgegevens!$A$1:$AB$50,$N$3,FALSE)=0,"",VLOOKUP(C38,basisgegevens!$A$1:$AB$50,$N$3,FALSE))) ->  | O38: =IF(ISERROR(VLOOKUP(C38,basisgegevens!$A$1:$AB$50,$O$3,FALSE)),"",VLOOKUP(C38,basisgegevens!$A$1:$AB$50,$O$3,FALSE)) ->  | Q38: =IF(ISERROR(VLOOKUP(C38,basisgegevens!$A$1:$AB$50,$Q$3,FALSE)),"",VLOOKUP(C38,basisgegevens!$A$1:$AB$50,$Q$3,FALSE)) ->  | R38: =IF(ISERROR(VLOOKUP(C38,basisgegevens!$A$1:$AB$50,$R$3,FALSE)),"",VLOOKUP(C38,basisgegevens!$A$1:$AB$409,$R$3,FALSE)) ->  | S38: =R38 ->  | T38: =IF(ISERROR(VLOOKUP(C38,basisgegevens!$A$1:$AB$50,$T$3,FALSE)),"",VLOOKUP(C38,basisgegevens!$A$1:$AB$409,$T$3,FALSE)) -> 
C39: =IF('keuzelijst vervoer'!$C$1="","",CONCATENATE('keuzelijst vervoer'!$C$1+34)) ->  | D39: =IF(ISERROR(VLOOKUP(C39,basisgegevens!$A$1:$AB$50,$D$3,FALSE)),"",VLOOKUP(C39,basisgegevens!$A$1:$AB$404,$D$3,FALSE)) ->  | E39: =IF(ISERROR(VLOOKUP(C39,basisgegevens!$A$1:$ZL$50,$E$3,FALSE)),"",VLOOKUP(C39,basisgegevens!$A$1:$AB$50,$E$3,FALSE)) ->  | H39: =IF(ISERROR(VLOOKUP(C39,basisgegevens!$A$1:$AB$50,$H$3,FALSE)),"",VLOOKUP(C39,basisgegevens!$A$1:$AB$50,$H$3,FALSE)) ->  | J39: =IF(ISERROR(VLOOKUP(C39,basisgegevens!$A$1:$AB$50,$J$3,FALSE)),"",VLOOKUP(C39,basisgegevens!$A$1:$AB$50,$J$3,FALSE)) ->  | K39: =IF(ISERROR(VLOOKUP(C39,basisgegevens!$A$1:$AB$50,$K$3,FALSE)),"",VLOOKUP(C39,basisgegevens!$A$1:$AB$50,$K$3,FALSE)) ->  | L39: =IF(ISERROR(VLOOKUP(C39,basisgegevens!$A$1:$AB$50,$L$3,FALSE)),"",VLOOKUP(C39,basisgegevens!$A$1:$AB$50,$L$3,FALSE)) ->  | N39: =IF(ISERROR(VLOOKUP(C39,basisgegevens!$A$1:$AB$50,$N$3,FALSE)),"",IF(VLOOKUP(C39,basisgegevens!$A$1:$AB$50,$N$3,FALSE)=0,"",VLOOKUP(C39,basisgegevens!$A$1:$AB$50,$N$3,FALSE))) ->  | O39: =IF(ISERROR(VLOOKUP(C39,basisgegevens!$A$1:$AB$50,$O$3,FALSE)),"",VLOOKUP(C39,basisgegevens!$A$1:$AB$50,$O$3,FALSE)) ->  | Q39: =IF(ISERROR(VLOOKUP(C39,basisgegevens!$A$1:$AB$50,$Q$3,FALSE)),"",VLOOKUP(C39,basisgegevens!$A$1:$AB$50,$Q$3,FALSE)) ->  | R39: =IF(ISERROR(VLOOKUP(C39,basisgegevens!$A$1:$AB$50,$R$3,FALSE)),"",VLOOKUP(C39,basisgegevens!$A$1:$AB$409,$R$3,FALSE)) ->  | T39: =IF(ISERROR(VLOOKUP(C39,basisgegevens!$A$1:$AB$50,$T$3,FALSE)),"",VLOOKUP(C39,basisgegevens!$A$1:$AB$409,$T$3,FALSE)) -> 
C40: =IF('keuzelijst vervoer'!$D$1="","",CONCATENATE('keuzelijst vervoer'!$D$1+34)) ->  | D40: =IF(ISERROR(VLOOKUP(C40,basisgegevens!$A$1:$AB$50,$D$3,FALSE)),"",VLOOKUP(C40,basisgegevens!$A$1:$AB$404,$D$3,FALSE)) ->  | E40: =IF(ISERROR(VLOOKUP(C40,basisgegevens!$A$1:$ZL$50,$E$3,FALSE)),"",VLOOKUP(C40,basisgegevens!$A$1:$AB$50,$E$3,FALSE)) ->  | H40: =IF(ISERROR(VLOOKUP(C40,basisgegevens!$A$1:$AB$50,$H$3,FALSE)),"",VLOOKUP(C40,basisgegevens!$A$1:$AB$50,$H$3,FALSE)) ->  | J40: =IF(ISERROR(VLOOKUP(C40,basisgegevens!$A$1:$AB$50,$J$3,FALSE)),"",VLOOKUP(C40,basisgegevens!$A$1:$AB$50,$J$3,FALSE)) ->  | K40: =IF(ISERROR(VLOOKUP(C40,basisgegevens!$A$1:$AB$50,$K$3,FALSE)),"",VLOOKUP(C40,basisgegevens!$A$1:$AB$50,$K$3,FALSE)) ->  | L40: =IF(ISERROR(VLOOKUP(C40,basisgegevens!$A$1:$AB$50,$L$3,FALSE)),"",VLOOKUP(C40,basisgegevens!$A$1:$AB$50,$L$3,FALSE)) ->  | N40: =IF(ISERROR(VLOOKUP(C40,basisgegevens!$A$1:$AB$50,$N$3,FALSE)),"",IF(VLOOKUP(C40,basisgegevens!$A$1:$AB$50,$N$3,FALSE)=0,"",VLOOKUP(C40,basisgegevens!$A$1:$AB$50,$N$3,FALSE))) ->  | O40: =IF(ISERROR(VLOOKUP(C40,basisgegevens!$A$1:$AB$50,$O$3,FALSE)),"",VLOOKUP(C40,basisgegevens!$A$1:$AB$50,$O$3,FALSE)) ->  | Q40: =IF(ISERROR(VLOOKUP(C40,basisgegevens!$A$1:$AB$50,$Q$3,FALSE)),"",VLOOKUP(C40,basisgegevens!$A$1:$AB$50,$Q$3,FALSE)) ->  | R40: =IF(ISERROR(VLOOKUP(C40,basisgegevens!$A$1:$AB$50,$R$3,FALSE)),"",VLOOKUP(C40,basisgegevens!$A$1:$AB$409,$R$3,FALSE)) ->  | T40: =IF(ISERROR(VLOOKUP(C40,basisgegevens!$A$1:$AB$50,$T$3,FALSE)),"",VLOOKUP(C40,basisgegevens!$A$1:$AB$409,$T$3,FALSE)) -> 
C41: =IF('keuzelijst vervoer'!$E$1="","",CONCATENATE('keuzelijst vervoer'!$E$1+34)) ->  | D41: =IF(ISERROR(VLOOKUP(C41,basisgegevens!$A$1:$AB$50,$D$3,FALSE)),"",VLOOKUP(C41,basisgegevens!$A$1:$AB$404,$D$3,FALSE)) ->  | E41: =IF(ISERROR(VLOOKUP(C41,basisgegevens!$A$1:$ZL$50,$E$3,FALSE)),"",VLOOKUP(C41,basisgegevens!$A$1:$AB$50,$E$3,FALSE)) ->  | H41: =IF(ISERROR(VLOOKUP(C41,basisgegevens!$A$1:$AB$50,$H$3,FALSE)),"",VLOOKUP(C41,basisgegevens!$A$1:$AB$50,$H$3,FALSE)) ->  | J41: =IF(ISERROR(VLOOKUP(C41,basisgegevens!$A$1:$AB$50,$J$3,FALSE)),"",VLOOKUP(C41,basisgegevens!$A$1:$AB$50,$J$3,FALSE)) ->  | K41: =IF(ISERROR(VLOOKUP(C41,basisgegevens!$A$1:$AB$50,$K$3,FALSE)),"",VLOOKUP(C41,basisgegevens!$A$1:$AB$50,$K$3,FALSE)) ->  | L41: =IF(ISERROR(VLOOKUP(C41,basisgegevens!$A$1:$AB$50,$L$3,FALSE)),"",VLOOKUP(C41,basisgegevens!$A$1:$AB$50,$L$3,FALSE)) ->  | N41: =IF(ISERROR(VLOOKUP(C41,basisgegevens!$A$1:$AB$50,$N$3,FALSE)),"",IF(VLOOKUP(C41,basisgegevens!$A$1:$AB$50,$N$3,FALSE)=0,"",VLOOKUP(C41,basisgegevens!$A$1:$AB$50,$N$3,FALSE))) ->  | O41: =IF(ISERROR(VLOOKUP(C41,basisgegevens!$A$1:$AB$50,$O$3,FALSE)),"",VLOOKUP(C41,basisgegevens!$A$1:$AB$50,$O$3,FALSE)) ->  | Q41: =IF(ISERROR(VLOOKUP(C41,basisgegevens!$A$1:$AB$50,$Q$3,FALSE)),"",VLOOKUP(C41,basisgegevens!$A$1:$AB$50,$Q$3,FALSE)) ->  | R41: =IF(ISERROR(VLOOKUP(C41,basisgegevens!$A$1:$AB$50,$R$3,FALSE)),"",VLOOKUP(C41,basisgegevens!$A$1:$AB$409,$R$3,FALSE)) ->  | T41: =IF(ISERROR(VLOOKUP(C41,basisgegevens!$A$1:$AB$50,$T$3,FALSE)),"",VLOOKUP(C41,basisgegevens!$A$1:$AB$409,$T$3,FALSE)) -> 
B43: Andere
C44: =IF('keuzelijst Andere'!$B$1="","",CONCATENATE('keuzelijst Andere'!$B$1+39)) ->  | D44: =IF(ISERROR(VLOOKUP(C44,basisgegevens!$A$1:$AB$50,$D$3,FALSE)),"",VLOOKUP(C44,basisgegevens!$A$1:$AB$50,$D$3,FALSE)) ->  | G44: =IF(C44="","",CONCATENATE(D44," ",F44)) ->  | H44: =IF(ISERROR(VLOOKUP(C44,basisgegevens!$A$1:$AB$50,$H$3,FALSE)),"",VLOOKUP(C44,basisgegevens!$A$1:$AB$50,$H$3,FALSE)) ->  | J44: =IF(ISERROR(VLOOKUP(C44,basisgegevens!$A$1:$AB$50,$J$3,FALSE)),"",VLOOKUP(C44,basisgegevens!$A$1:$AB$50,$J$3,FALSE)) ->  | K44: =IF(ISERROR(VLOOKUP(C44,basisgegevens!$A$1:$AB$50,$K$3,FALSE)),"",VLOOKUP(C44,basisgegevens!$A$1:$AB$50,$K$3,FALSE)) ->  | L44: =IF(ISERROR(VLOOKUP(C44,basisgegevens!$A$1:$AB$50,$L$3,FALSE)),"",VLOOKUP(C44,basisgegevens!$A$1:$AB$50,$L$3,FALSE)) ->  | M44: =IF(L44="","",L44) ->  | N44: =IF(ISERROR(VLOOKUP(C44,basisgegevens!$A$1:$AB$50,$N$3,FALSE)),"",IF(VLOOKUP(C44,basisgegevens!$A$1:$AB$50,$N$3,FALSE)=0,"",VLOOKUP(C44,basisgegevens!$A$1:$AB$50,$N$3,FALSE))) ->  | O44: =IF(ISERROR(VLOOKUP(C44,basisgegevens!$A$1:$AB$50,$O$3,FALSE)),"",VLOOKUP(C44,basisgegevens!$A$1:$AB$50,$O$3,FALSE)) ->  | P44: =IF(M44="","",IF(M44=0,0,IF(N44="+",M44+O44,IF(N44="*",M44*O44,M44)))) ->  | Q44: =IF(ISERROR(VLOOKUP(C44,basisgegevens!$A$1:$AB$50,$Q$3,FALSE)),"",VLOOKUP(C44,basisgegevens!$A$1:$AB$50,$Q$3,FALSE)) ->  | R44: =IF(ISERROR(VLOOKUP(C44,basisgegevens!$A$1:$AB$50,$R$3,FALSE)),"",VLOOKUP(C44,basisgegevens!$A$1:$AB$409,$R$3,FALSE)) ->  | S44: =R44 ->  | T44: =IF(ISERROR(VLOOKUP(C44,basisgegevens!$A$1:$AB$50,$T$3,FALSE)),"",VLOOKUP(C44,basisgegevens!$A$1:$AB$409,$T$3,FALSE)) -> 
C45: =IF('keuzelijst Andere'!$C$1="","",CONCATENATE('keuzelijst Andere'!$C$1+39)) ->  | D45: =IF(ISERROR(VLOOKUP(C45,basisgegevens!$A$1:$AB$50,$D$3,FALSE)),"",VLOOKUP(C45,basisgegevens!$A$1:$AB$50,$D$3,FALSE)) ->  | H45: =IF(ISERROR(VLOOKUP(C45,basisgegevens!$A$1:$AB$50,$H$3,FALSE)),"",VLOOKUP(C45,basisgegevens!$A$1:$AB$50,$H$3,FALSE)) ->  | J45: =IF(ISERROR(VLOOKUP(C45,basisgegevens!$A$1:$AB$50,$J$3,FALSE)),"",VLOOKUP(C45,basisgegevens!$A$1:$AB$50,$J$3,FALSE)) ->  | K45: =IF(ISERROR(VLOOKUP(C45,basisgegevens!$A$1:$AB$50,$K$3,FALSE)),"",VLOOKUP(C45,basisgegevens!$A$1:$AB$50,$K$3,FALSE)) ->  | L45: =IF(ISERROR(VLOOKUP(C45,basisgegevens!$A$1:$AB$50,$L$3,FALSE)),"",VLOOKUP(C45,basisgegevens!$A$1:$AB$50,$L$3,FALSE)) ->  | O45: =IF(ISERROR(VLOOKUP(C45,basisgegevens!$A$1:$AB$50,$O$3,FALSE)),"",VLOOKUP(C45,basisgegevens!$A$1:$AB$50,$O$3,FALSE)) ->  | Q45: =IF(ISERROR(VLOOKUP(C45,basisgegevens!$A$1:$AB$50,$Q$3,FALSE)),"",VLOOKUP(C45,basisgegevens!$A$1:$AB$50,$Q$3,FALSE)) ->  | R45: =IF(ISERROR(VLOOKUP(C45,basisgegevens!$A$1:$AB$50,$R$3,FALSE)),"",VLOOKUP(C45,basisgegevens!$A$1:$AB$409,$R$3,FALSE)) ->  | T45: =IF(ISERROR(VLOOKUP(C45,basisgegevens!$A$1:$AB$50,$T$3,FALSE)),"",VLOOKUP(C45,basisgegevens!$A$1:$AB$409,$T$3,FALSE)) -> 

Sheet leeg inputscherm (hidden)
A1: Te besteden budget:
A2: reeds gebudgeteerd: | B2: =V49 -> 
A3: nog te besteden: | B3: =B1-B2 -> 
A5: buiten budget: | B5: =W49 -> 
Q10: Kost
A12: Aard assistent: | B12: eenheid | C12: jan | D12: feb | E12: maart | F12: april | G12: mei | H12: juni | I12: juli | J12: aug | K12: sept | L12: okt | M12: nov | N12: dec | O12: totaal EH | P12: Raming kostprijs | Q12: Totaal Bedrag | R12: jaarkost | S12: totaal | T12: Jaarlimiet | U12: Budget? | V12: Op budget | W12: Buiten budget
A14: Assistenten
A15: =IF('individuele bedragen'!G9="","",'individuele bedragen'!G9) ->  | B15: ='individuele bedragen'!H9 ->  | C15: =IF($A15="","",'individuele bedragen'!$I9) ->  | D15: =IF($A15="","",'individuele bedragen'!$I9) ->  | E15: =IF($A15="","",'individuele bedragen'!$I9) ->  | F15: =IF($A15="","",'individuele bedragen'!$I9) ->  | G15: =IF($A15="","",'individuele bedragen'!$I9) ->  | H15: =IF($A15="","",'individuele bedragen'!$I9) ->  | I15: =IF($A15="","",'individuele bedragen'!$I9) ->  | J15: =IF($A15="","",'individuele bedragen'!$I9) ->  | K15: =IF($A15="","",'individuele bedragen'!$I9) ->  | L15: =IF($A15="","",'individuele bedragen'!$I9) ->  | M15: =IF($A15="","",'individuele bedragen'!$I9) ->  | N15: =IF($A15="","",'individuele bedragen'!$I9) ->  | O15: =IF(A15="","",SUM(C15:N15)) ->  | P15: =IF($A15="","",IF('individuele bedragen'!P9="",0,'individuele bedragen'!P9)) ->  | Q15: =IF(A15="","",O15*P15) ->  | R15: =IF(A15="","",IF('individuele bedragen'!Q9="",0,'individuele bedragen'!Q9)) ->  | S15: =IF(A15="","",Q15+R15) ->  | T15: ='individuele bedragen'!T9 ->  | U15: ='individuele bedragen'!S9 ->  | V15: =IF(S15="","",IF(U15="J",S15,0)) ->  | W15: =IF(S15="","",IF(U15<>"J",S15,0)) ->  | X15: =IF(S15="","",IF(S15>T15,"Opgelet; jaarlimiet overschreden","")) -> 
A16: =IF('individuele bedragen'!G10="","",'individuele bedragen'!G10) ->  | B16: ='individuele bedragen'!H10 ->  | C16: =IF($A16="","",'individuele bedragen'!$I10) ->  | D16: =IF($A16="","",'individuele bedragen'!$I10) ->  | E16: =IF($A16="","",'individuele bedragen'!$I10) ->  | F16: =IF($A16="","",'individuele bedragen'!$I10) ->  | G16: =IF($A16="","",'individuele bedragen'!$I10) ->  | H16: =IF($A16="","",'individuele bedragen'!$I10) ->  | I16: =IF($A16="","",'individuele bedragen'!$I10) ->  | J16: =IF($A16="","",'individuele bedragen'!$I10) ->  | K16: =IF($A16="","",'individuele bedragen'!$I10) ->  | L16: =IF($A16="","",'individuele bedragen'!$I10) ->  | M16: =IF($A16="","",'individuele bedragen'!$I10) ->  | N16: =IF($A16="","",'individuele bedragen'!$I10) ->  | P16: =IF($A16="","",IF('individuele bedragen'!P10="",0,'individuele bedragen'!P10)) ->  | R16: =IF(A16="","",IF('individuele bedragen'!Q10="",0,'individuele bedragen'!Q10)) ->  | T16: ='individuele bedragen'!T10 ->  | U16: ='individuele bedragen'!S10 ->  | X16: =IF(S16="","",IF(S16>T16,"Opgelet; jaarlimiet overschreden","")) -> 
A17: =IF('individuele bedragen'!G11="","",'individuele bedragen'!G11) ->  | B17: ='individuele bedragen'!H11 ->  | C17: =IF($A17="","",'individuele bedragen'!$I11) ->  | D17: =IF($A17="","",'individuele bedragen'!$I11) ->  | E17: =IF($A17="","",'individuele bedragen'!$I11) ->  | F17: =IF($A17="","",'individuele bedragen'!$I11) ->  | G17: =IF($A17="","",'individuele bedragen'!$I11) ->  | H17: =IF($A17="","",'individuele bedragen'!$I11) ->  | I17: =IF($A17="","",'individuele bedragen'!$I11) ->  | J17: =IF($A17="","",'individuele bedragen'!$I11) ->  | K17: =IF($A17="","",'individuele bedragen'!$I11) ->  | L17: =IF($A17="","",'individuele bedragen'!$I11) ->  | M17: =IF($A17="","",'individuele bedragen'!$I11) ->  | N17: =IF($A17="","",'individuele bedragen'!$I11) ->  | P17: =IF($A17="","",IF('individuele bedragen'!P11="",0,'individuele bedragen'!P11)) ->  | R17: =IF(A17="","",IF('individuele bedragen'!Q11="",0,'individuele bedragen'!Q11)) ->  | T17: ='individuele bedragen'!T11 ->  | U17: ='individuele bedragen'!S11 -> 
A18: =IF('individuele bedragen'!G12="","",'individuele bedragen'!G12) ->  | B18: ='individuele bedragen'!H12 ->  | C18: =IF($A18="","",'individuele bedragen'!$I12) ->  | D18: =IF($A18="","",'individuele bedragen'!$I12) ->  | E18: =IF($A18="","",'individuele bedragen'!$I12) ->  | F18: =IF($A18="","",'individuele bedragen'!$I12) ->  | G18: =IF($A18="","",'individuele bedragen'!$I12) ->  | H18: =IF($A18="","",'individuele bedragen'!$I12) ->  | I18: =IF($A18="","",'individuele bedragen'!$I12) ->  | J18: =IF($A18="","",'individuele bedragen'!$I12) ->  | K18: =IF($A18="","",'individuele bedragen'!$I12) ->  | L18: =IF($A18="","",'individuele bedragen'!$I12) ->  | M18: =IF($A18="","",'individuele bedragen'!$I12) ->  | N18: =IF($A18="","",'individuele bedragen'!$I12) ->  | P18: =IF($A18="","",IF('individuele bedragen'!P12="",0,'individuele bedragen'!P12)) ->  | R18: =IF(A18="","",IF('individuele bedragen'!Q12="",0,'individuele bedragen'!Q12)) ->  | T18: ='individuele bedragen'!T12 ->  | U18: ='individuele bedragen'!S12 -> 
A19: =IF('individuele bedragen'!G13="","",'individuele bedragen'!G13) ->  | B19: ='individuele bedragen'!H13 ->  | C19: =IF($A19="","",'individuele bedragen'!$I13) ->  | D19: =IF($A19="","",'individuele bedragen'!$I13) ->  | E19: =IF($A19="","",'individuele bedragen'!$I13) ->  | F19: =IF($A19="","",'individuele bedragen'!$I13) ->  | G19: =IF($A19="","",'individuele bedragen'!$I13) ->  | H19: =IF($A19="","",'individuele bedragen'!$I13) ->  | I19: =IF($A19="","",'individuele bedragen'!$I13) ->  | J19: =IF($A19="","",'individuele bedragen'!$I13) ->  | K19: =IF($A19="","",'individuele bedragen'!$I13) ->  | L19: =IF($A19="","",'individuele bedragen'!$I13) ->  | M19: =IF($A19="","",'individuele bedragen'!$I13) ->  | N19: =IF($A19="","",'individuele bedragen'!$I13) ->  | P19: =IF($A19="","",IF('individuele bedragen'!P13="",0,'individuele bedragen'!P13)) ->  | R19: =IF(A19="","",IF('individuele bedragen'!Q13="",0,'individuele bedragen'!Q13)) ->  | T19: ='individuele bedragen'!T13 ->  | U19: ='individuele bedragen'!S13 -> 
A20: =IF('individuele bedragen'!G14="","",'individuele bedragen'!G14) ->  | B20: ='individuele bedragen'!H14 ->  | C20: =IF($A20="","",'individuele bedragen'!$I14) ->  | D20: =IF($A20="","",'individuele bedragen'!$I14) ->  | E20: =IF($A20="","",'individuele bedragen'!$I14) ->  | F20: =IF($A20="","",'individuele bedragen'!$I14) ->  | G20: =IF($A20="","",'individuele bedragen'!$I14) ->  | H20: =IF($A20="","",'individuele bedragen'!$I14) ->  | I20: =IF($A20="","",'individuele bedragen'!$I14) ->  | J20: =IF($A20="","",'individuele bedragen'!$I14) ->  | K20: =IF($A20="","",'individuele bedragen'!$I14) ->  | L20: =IF($A20="","",'individuele bedragen'!$I14) ->  | M20: =IF($A20="","",'individuele bedragen'!$I14) ->  | N20: =IF($A20="","",'individuele bedragen'!$I14) ->  | P20: =IF($A20="","",IF('individuele bedragen'!P14="",0,'individuele bedragen'!P14)) ->  | R20: =IF(A20="","",IF('individuele bedragen'!Q14="",0,'individuele bedragen'!Q14)) ->  | T20: ='individuele bedragen'!T14 ->  | U20: ='individuele bedragen'!S14 -> 
A21: =IF('individuele bedragen'!G15="","",'individuele bedragen'!G15) ->  | B21: ='individuele bedragen'!H15 ->  | C21: =IF($A21="","",'individuele bedragen'!$I15) ->  | D21: =IF($A21="","",'individuele bedragen'!$I15) ->  | E21: =IF($A21="","",'individuele bedragen'!$I15) ->  | F21: =IF($A21="","",'individuele bedragen'!$I15) ->  | G21: =IF($A21="","",'individuele bedragen'!$I15) ->  | H21: =IF($A21="","",'individuele bedragen'!$I15) ->  | I21: =IF($A21="","",'individuele bedragen'!$I15) ->  | J21: =IF($A21="","",'individuele bedragen'!$I15) ->  | K21: =IF($A21="","",'individuele bedragen'!$I15) ->  | L21: =IF($A21="","",'individuele bedragen'!$I15) ->  | M21: =IF($A21="","",'individuele bedragen'!$I15) ->  | N21: =IF($A21="","",'individuele bedragen'!$I15) ->  | P21: =IF($A21="","",IF('individuele bedragen'!P15="",0,'individuele bedragen'!P15)) ->  | R21: =IF(A21="","",IF('individuele bedragen'!Q15="",0,'individuele bedragen'!Q15)) ->  | T21: ='individuele bedragen'!T15 ->  | U21: ='individuele bedragen'!S15 -> 
A22: =IF('individuele bedragen'!G16="","",'individuele bedragen'!G16) ->  | B22: ='individuele bedragen'!H16 ->  | C22: =IF($A22="","",'individuele bedragen'!$I16) ->  | D22: =IF($A22="","",'individuele bedragen'!$I16) ->  | E22: =IF($A22="","",'individuele bedragen'!$I16) ->  | F22: =IF($A22="","",'individuele bedragen'!$I16) ->  | G22: =IF($A22="","",'individuele bedragen'!$I16) ->  | H22: =IF($A22="","",'individuele bedragen'!$I16) ->  | I22: =IF($A22="","",'individuele bedragen'!$I16) ->  | J22: =IF($A22="","",'individuele bedragen'!$I16) ->  | K22: =IF($A22="","",'individuele bedragen'!$I16) ->  | L22: =IF($A22="","",'individuele bedragen'!$I16) ->  | M22: =IF($A22="","",'individuele bedragen'!$I16) ->  | N22: =IF($A22="","",'individuele bedragen'!$I16) ->  | P22: =IF($A22="","",IF('individuele bedragen'!P16="",0,'individuele bedragen'!P16)) ->  | R22: =IF(A22="","",IF('individuele bedragen'!Q16="",0,'individuele bedragen'!Q16)) ->  | T22: ='individuele bedragen'!T16 ->  | U22: ='individuele bedragen'!S16 -> 
A23: =IF('individuele bedragen'!G17="","",'individuele bedragen'!G17) ->  | B23: ='individuele bedragen'!H17 ->  | C23: =IF($A23="","",'individuele bedragen'!$I17) ->  | D23: =IF($A23="","",'individuele bedragen'!$I17) ->  | E23: =IF($A23="","",'individuele bedragen'!$I17) ->  | F23: =IF($A23="","",'individuele bedragen'!$I17) ->  | G23: =IF($A23="","",'individuele bedragen'!$I17) ->  | H23: =IF($A23="","",'individuele bedragen'!$I17) ->  | I23: =IF($A23="","",'individuele bedragen'!$I17) ->  | J23: =IF($A23="","",'individuele bedragen'!$I17) ->  | K23: =IF($A23="","",'individuele bedragen'!$I17) ->  | L23: =IF($A23="","",'individuele bedragen'!$I17) ->  | M23: =IF($A23="","",'individuele bedragen'!$I17) ->  | N23: =IF($A23="","",'individuele bedragen'!$I17) ->  | P23: =IF($A23="","",IF('individuele bedragen'!P17="",0,'individuele bedragen'!P17)) ->  | R23: =IF(A23="","",IF('individuele bedragen'!Q17="",0,'individuele bedragen'!Q17)) ->  | T23: ='individuele bedragen'!T17 ->  | U23: ='individuele bedragen'!S17 -> 
A24: =IF('individuele bedragen'!G18="","",'individuele bedragen'!G18) ->  | B24: ='individuele bedragen'!H18 ->  | C24: =IF($A24="","",'individuele bedragen'!$I18) ->  | D24: =IF($A24="","",'individuele bedragen'!$I18) ->  | E24: =IF($A24="","",'individuele bedragen'!$I18) ->  | F24: =IF($A24="","",'individuele bedragen'!$I18) ->  | G24: =IF($A24="","",'individuele bedragen'!$I18) ->  | H24: =IF($A24="","",'individuele bedragen'!$I18) ->  | I24: =IF($A24="","",'individuele bedragen'!$I18) ->  | J24: =IF($A24="","",'individuele bedragen'!$I18) ->  | K24: =IF($A24="","",'individuele bedragen'!$I18) ->  | L24: =IF($A24="","",'individuele bedragen'!$I18) ->  | M24: =IF($A24="","",'individuele bedragen'!$I18) ->  | N24: =IF($A24="","",'individuele bedragen'!$I18) ->  | P24: =IF($A24="","",IF('individuele bedragen'!P18="",0,'individuele bedragen'!P18)) ->  | R24: =IF(A24="","",IF('individuele bedragen'!Q18="",0,'individuele bedragen'!Q18)) ->  | T24: ='individuele bedragen'!T18 ->  | U24: ='individuele bedragen'!S18 -> 
A25: =IF('individuele bedragen'!G19="","",'individuele bedragen'!G19) ->  | B25: ='individuele bedragen'!H19 ->  | C25: =IF($A25="","",'individuele bedragen'!$I19) ->  | D25: =IF($A25="","",'individuele bedragen'!$I19) ->  | E25: =IF($A25="","",'individuele bedragen'!$I19) ->  | F25: =IF($A25="","",'individuele bedragen'!$I19) ->  | G25: =IF($A25="","",'individuele bedragen'!$I19) ->  | H25: =IF($A25="","",'individuele bedragen'!$I19) ->  | I25: =IF($A25="","",'individuele bedragen'!$I19) ->  | J25: =IF($A25="","",'individuele bedragen'!$I19) ->  | K25: =IF($A25="","",'individuele bedragen'!$I19) ->  | L25: =IF($A25="","",'individuele bedragen'!$I19) ->  | M25: =IF($A25="","",'individuele bedragen'!$I19) ->  | N25: =IF($A25="","",'individuele bedragen'!$I19) ->  | P25: =IF($A25="","",IF('individuele bedragen'!P19="",0,'individuele bedragen'!P19)) ->  | R25: =IF(A25="","",IF('individuele bedragen'!Q19="",0,'individuele bedragen'!Q19)) ->  | T25: ='individuele bedragen'!T19 ->  | U25: ='individuele bedragen'!S19 -> 
R26: =IF(A26="","",IF('individuele bedragen'!Q20="",0,'individuele bedragen'!Q20)) ->  | T26: ='individuele bedragen'!T20 -> 
A27: Huishouden, verzorging | T27: ='individuele bedragen'!T21 -> 
A28: =IF('individuele bedragen'!G22="","",'individuele bedragen'!G22) ->  | B28: ='individuele bedragen'!H22 ->  | C28: =IF($A28="","",'individuele bedragen'!$I22) ->  | D28: =IF($A28="","",'individuele bedragen'!$I22) ->  | E28: =IF($A28="","",'individuele bedragen'!$I22) ->  | F28: =IF($A28="","",'individuele bedragen'!$I22) ->  | G28: =IF($A28="","",'individuele bedragen'!$I22) ->  | H28: =IF($A28="","",'individuele bedragen'!$I22) ->  | I28: =IF($A28="","",'individuele bedragen'!$I22) ->  | J28: =IF($A28="","",'individuele bedragen'!$I22) ->  | K28: =IF($A28="","",'individuele bedragen'!$I22) ->  | L28: =IF($A28="","",'individuele bedragen'!$I22) ->  | M28: =IF($A28="","",'individuele bedragen'!$I22) ->  | N28: =IF($A28="","",'individuele bedragen'!$I22) ->  | O28: =IF(A28="","",SUM(C28:N28)) ->  | P28: =IF($A28="","",IF('individuele bedragen'!P22="",0,'individuele bedragen'!P22)) ->  | Q28: =IF(A28="","",O28*P28) ->  | R28: =IF(A28="","",IF('individuele bedragen'!Q22="",0,'individuele bedragen'!Q22)) ->  | S28: =IF(A28="","",Q28+R28) ->  | T28: ='individuele bedragen'!T22 ->  | U28: ='individuele bedragen'!S22 -> 
A29: =IF('individuele bedragen'!G23="","",'individuele bedragen'!G23) ->  | B29: ='individuele bedragen'!H23 ->  | C29: =IF($A29="","",'individuele bedragen'!$I23) ->  | D29: =IF($A29="","",'individuele bedragen'!$I23) ->  | E29: =IF($A29="","",'individuele bedragen'!$I23) ->  | F29: =IF($A29="","",'individuele bedragen'!$I23) ->  | G29: =IF($A29="","",'individuele bedragen'!$I23) ->  | H29: =IF($A29="","",'individuele bedragen'!$I23) ->  | I29: =IF($A29="","",'individuele bedragen'!$I23) ->  | J29: =IF($A29="","",'individuele bedragen'!$I23) ->  | K29: =IF($A29="","",'individuele bedragen'!$I23) ->  | L29: =IF($A29="","",'individuele bedragen'!$I23) ->  | M29: =IF($A29="","",'individuele bedragen'!$I23) ->  | N29: =IF($A29="","",'individuele bedragen'!$I23) ->  | P29: =IF($A29="","",IF('individuele bedragen'!P23="",0,'individuele bedragen'!P23)) ->  | R29: =IF(A29="","",IF('individuele bedragen'!Q23="",0,'individuele bedragen'!Q23)) ->  | T29: ='individuele bedragen'!T23 ->  | U29: ='individuele bedragen'!S23 -> 
A30: =IF('individuele bedragen'!G24="","",'individuele bedragen'!G24) ->  | B30: ='individuele bedragen'!H24 ->  | C30: =IF($A30="","",'individuele bedragen'!$I24) ->  | D30: =IF($A30="","",'individuele bedragen'!$I24) ->  | E30: =IF($A30="","",'individuele bedragen'!$I24) ->  | F30: =IF($A30="","",'individuele bedragen'!$I24) ->  | G30: =IF($A30="","",'individuele bedragen'!$I24) ->  | H30: =IF($A30="","",'individuele bedragen'!$I24) ->  | I30: =IF($A30="","",'individuele bedragen'!$I24) ->  | J30: =IF($A30="","",'individuele bedragen'!$I24) ->  | K30: =IF($A30="","",'individuele bedragen'!$I24) ->  | L30: =IF($A30="","",'individuele bedragen'!$I24) ->  | M30: =IF($A30="","",'individuele bedragen'!$I24) ->  | N30: =IF($A30="","",'individuele bedragen'!$I24) ->  | P30: =IF($A30="","",IF('individuele bedragen'!P24="",0,'individuele bedragen'!P24)) ->  | R30: =IF(A30="","",IF('individuele bedragen'!Q24="",0,'individuele bedragen'!Q24)) ->  | T30: ='individuele bedragen'!T24 ->  | U30: ='individuele bedragen'!S24 -> 
A31: =IF('individuele bedragen'!G25="","",'individuele bedragen'!G25) ->  | B31: ='individuele bedragen'!H25 ->  | C31: =IF($A31="","",'individuele bedragen'!$I25) ->  | D31: =IF($A31="","",'individuele bedragen'!$I25) ->  | E31: =IF($A31="","",'individuele bedragen'!$I25) ->  | F31: =IF($A31="","",'individuele bedragen'!$I25) ->  | G31: =IF($A31="","",'individuele bedragen'!$I25) ->  | H31: =IF($A31="","",'individuele bedragen'!$I25) ->  | I31: =IF($A31="","",'individuele bedragen'!$I25) ->  | J31: =IF($A31="","",'individuele bedragen'!$I25) ->  | K31: =IF($A31="","",'individuele bedragen'!$I25) ->  | L31: =IF($A31="","",'individuele bedragen'!$I25) ->  | M31: =IF($A31="","",'individuele bedragen'!$I25) ->  | N31: =IF($A31="","",'individuele bedragen'!$I25) ->  | P31: =IF($A31="","",IF('individuele bedragen'!P25="",0,'individuele bedragen'!P25)) ->  | R31: =IF(A31="","",IF('individuele bedragen'!Q25="",0,'individuele bedragen'!Q25)) ->  | T31: ='individuele bedragen'!T25 ->  | U31: ='individuele bedragen'!S25 -> 
A32: =IF('individuele bedragen'!G26="","",'individuele bedragen'!G26) ->  | B32: ='individuele bedragen'!H26 ->  | C32: =IF($A32="","",'individuele bedragen'!$I26) ->  | D32: =IF($A32="","",'individuele bedragen'!$I26) ->  | E32: =IF($A32="","",'individuele bedragen'!$I26) ->  | F32: =IF($A32="","",'individuele bedragen'!$I26) ->  | G32: =IF($A32="","",'individuele bedragen'!$I26) ->  | H32: =IF($A32="","",'individuele bedragen'!$I26) ->  | I32: =IF($A32="","",'individuele bedragen'!$I26) ->  | J32: =IF($A32="","",'individuele bedragen'!$I26) ->  | K32: =IF($A32="","",'individuele bedragen'!$I26) ->  | L32: =IF($A32="","",'individuele bedragen'!$I26) ->  | M32: =IF($A32="","",'individuele bedragen'!$I26) ->  | N32: =IF($A32="","",'individuele bedragen'!$I26) ->  | P32: =IF($A32="","",IF('individuele bedragen'!P26="",0,'individuele bedragen'!P26)) ->  | R32: =IF(A32="","",IF('individuele bedragen'!Q26="",0,'individuele bedragen'!Q26)) ->  | T32: ='individuele bedragen'!T26 ->  | U32: ='individuele bedragen'!S26 -> 
A33: =IF('individuele bedragen'!G27="","",'individuele bedragen'!G27) ->  | R33: =IF(A33="","",IF('individuele bedragen'!Q27="",0,'individuele bedragen'!Q27)) ->  | T33: ='individuele bedragen'!T27 -> 
A34: Vergunde zorgaanbieder | T34: ='individuele bedragen'!T28 -> 
A35: =IF('individuele bedragen'!G29="","",'individuele bedragen'!G29) ->  | B35: ='individuele bedragen'!H29 ->  | C35: =IF($A35="","",'individuele bedragen'!$I29) ->  | D35: =IF($A35="","",'individuele bedragen'!$I29) ->  | E35: =IF($A35="","",'individuele bedragen'!$I29) ->  | F35: =IF($A35="","",'individuele bedragen'!$I29) ->  | G35: =IF($A35="","",'individuele bedragen'!$I29) ->  | H35: =IF($A35="","",'individuele bedragen'!$I29) ->  | I35: =IF($A35="","",'individuele bedragen'!$I29) ->  | J35: =IF($A35="","",'individuele bedragen'!$I29) ->  | K35: =IF($A35="","",'individuele bedragen'!$I29) ->  | L35: =IF($A35="","",'individuele bedragen'!$I29) ->  | M35: =IF($A35="","",'individuele bedragen'!$I29) ->  | N35: =IF($A35="","",'individuele bedragen'!$I29) ->  | O35: =IF(A35="","",SUM(C35:N35)) ->  | P35: =IF($A35="","",IF('individuele bedragen'!P29="",0,'individuele bedragen'!P29)) ->  | Q35: =IF(A35="","",O35*P35) ->  | R35: =IF(A35="","",IF('individuele bedragen'!Q29="",0,'individuele bedragen'!Q29)) ->  | S35: =IF(A35="","",Q35+R35) ->  | T35: ='individuele bedragen'!T29 ->  | U35: ='individuele bedragen'!S29 ->  | V35: =IF(S35="","",IF(U35="J",S35,0)) ->  | W35: =IF(S35="","",IF(U35<>"J",S35,0)) -> 
A36: =IF('individuele bedragen'!G30="","",'individuele bedragen'!G30) ->  | B36: ='individuele bedragen'!H30 ->  | C36: =IF($A36="","",'individuele bedragen'!$I30) ->  | D36: =IF($A36="","",'individuele bedragen'!$I30) ->  | E36: =IF($A36="","",'individuele bedragen'!$I30) ->  | F36: =IF($A36="","",'individuele bedragen'!$I30) ->  | G36: =IF($A36="","",'individuele bedragen'!$I30) ->  | H36: =IF($A36="","",'individuele bedragen'!$I30) ->  | I36: =IF($A36="","",'individuele bedragen'!$I30) ->  | J36: =IF($A36="","",'individuele bedragen'!$I30) ->  | K36: =IF($A36="","",'individuele bedragen'!$I30) ->  | L36: =IF($A36="","",'individuele bedragen'!$I30) ->  | M36: =IF($A36="","",'individuele bedragen'!$I30) ->  | N36: =IF($A36="","",'individuele bedragen'!$I30) ->  | P36: =IF($A36="","",IF('individuele bedragen'!P30="",0,'individuele bedragen'!P30)) ->  | R36: =IF(A36="","",IF('individuele bedragen'!Q30="",0,'individuele bedragen'!Q30)) ->  | T36: ='individuele bedragen'!T30 ->  | U36: ='individuele bedragen'!S30 -> 
A37: =IF('individuele bedragen'!G31="","",'individuele bedragen'!G31) ->  | B37: ='individuele bedragen'!H31 ->  | C37: =IF($A37="","",'individuele bedragen'!$I31) ->  | D37: =IF($A37="","",'individuele bedragen'!$I31) ->  | E37: =IF($A37="","",'individuele bedragen'!$I31) ->  | F37: =IF($A37="","",'individuele bedragen'!$I31) ->  | G37: =IF($A37="","",'individuele bedragen'!$I31) ->  | H37: =IF($A37="","",'individuele bedragen'!$I31) ->  | I37: =IF($A37="","",'individuele bedragen'!$I31) ->  | J37: =IF($A37="","",'individuele bedragen'!$I31) ->  | K37: =IF($A37="","",'individuele bedragen'!$I31) ->  | L37: =IF($A37="","",'individuele bedragen'!$I31) ->  | M37: =IF($A37="","",'individuele bedragen'!$I31) ->  | N37: =IF($A37="","",'individuele bedragen'!$I31) ->  | P37: =IF($A37="","",IF('individuele bedragen'!P31="",0,'individuele bedragen'!P31)) ->  | R37: =IF(A37="","",IF('individuele bedragen'!Q31="",0,'individuele bedragen'!Q31)) ->  | T37: ='individuele bedragen'!T31 ->  | U37: ='individuele bedragen'!S31 -> 
A38: =IF('individuele bedragen'!G32="","",'individuele bedragen'!G32) ->  | B38: ='individuele bedragen'!H32 ->  | C38: =IF($A38="","",'individuele bedragen'!$I32) ->  | D38: =IF($A38="","",'individuele bedragen'!$I32) ->  | E38: =IF($A38="","",'individuele bedragen'!$I32) ->  | F38: =IF($A38="","",'individuele bedragen'!$I32) ->  | G38: =IF($A38="","",'individuele bedragen'!$I32) ->  | H38: =IF($A38="","",'individuele bedragen'!$I32) ->  | I38: =IF($A38="","",'individuele bedragen'!$I32) ->  | J38: =IF($A38="","",'individuele bedragen'!$I32) ->  | K38: =IF($A38="","",'individuele bedragen'!$I32) ->  | L38: =IF($A38="","",'individuele bedragen'!$I32) ->  | M38: =IF($A38="","",'individuele bedragen'!$I32) ->  | N38: =IF($A38="","",'individuele bedragen'!$I32) ->  | P38: =IF($A38="","",IF('individuele bedragen'!P32="",0,'individuele bedragen'!P32)) ->  | R38: =IF(A38="","",IF('individuele bedragen'!Q32="",0,'individuele bedragen'!Q32)) ->  | T38: ='individuele bedragen'!T32 ->  | U38: ='individuele bedragen'!S32 -> 
R39: =IF(A39="","",IF('individuele bedragen'!Q33="",0,'individuele bedragen'!Q33)) ->  | T39: ='individuele bedragen'!T33 ->  | V39: =IF(S39="","",IF(U39="J",S39,0)) ->  | W39: =IF(S39="","",IF(U39<>"J",S39,0)) -> 
A40: Bijstandsorganisatie
A41: =IF('individuele bedragen'!G35="","",'individuele bedragen'!G35) ->  | B41: ='individuele bedragen'!H35 ->  | C41: =IF($A41="","",'individuele bedragen'!$I35) ->  | D41: =IF($A41="","",'individuele bedragen'!$I35) ->  | E41: =IF($A41="","",'individuele bedragen'!$I35) ->  | F41: =IF($A41="","",'individuele bedragen'!$I35) ->  | G41: =IF($A41="","",'individuele bedragen'!$I35) ->  | H41: =IF($A41="","",'individuele bedragen'!$I35) ->  | I41: =IF($A41="","",'individuele bedragen'!$I35) ->  | J41: =IF($A41="","",'individuele bedragen'!$I35) ->  | K41: =IF($A41="","",'individuele bedragen'!$I35) ->  | L41: =IF($A41="","",'individuele bedragen'!$I35) ->  | M41: =IF($A41="","",'individuele bedragen'!$I35) ->  | N41: =IF($A41="","",'individuele bedragen'!$I35) ->  | O41: =IF(A41="","",SUM(C41:N41)) ->  | P41: =IF($A41="","",IF('individuele bedragen'!P35="",0,'individuele bedragen'!P35)) ->  | Q41: =IF(A41="","",O41*P41) ->  | R41: =IF(A41="","",IF('individuele bedragen'!Q35="",0,'individuele bedragen'!Q35)) ->  | S41: =IF(A41="","",Q41+R41) ->  | T41: ='individuele bedragen'!T35 ->  | U41: ='individuele bedragen'!S35 ->  | V41: =IF(S41="","",IF(U41="J",S41,0)) ->  | W41: =IF(S41="","",IF(U41<>"J",S41,0)) -> 
R42: =IF(A42="","",IF('individuele bedragen'!Q36="",0,'individuele bedragen'!Q36)) ->  | T42: ='individuele bedragen'!T36 ->  | V42: =IF(S42="","",IF(U42="J",S42,0)) ->  | W42: =IF(S42="","",IF(U42<>"J",S42,0)) -> 
A43: Vervoer | B43: ='individuele bedragen'!H37 ->  | T43: ='individuele bedragen'!T37 -> 
A44: =IF('individuele bedragen'!G38="","",'individuele bedragen'!G38) ->  | B44: ='individuele bedragen'!H38 ->  | C44: =IF($A44="","",'individuele bedragen'!$I38) ->  | D44: =IF($A44="","",'individuele bedragen'!$I38) ->  | E44: =IF($A44="","",'individuele bedragen'!$I38) ->  | F44: =IF($A44="","",'individuele bedragen'!$I38) ->  | G44: =IF($A44="","",'individuele bedragen'!$I38) ->  | H44: =IF($A44="","",'individuele bedragen'!$I38) ->  | I44: =IF($A44="","",'individuele bedragen'!$I38) ->  | J44: =IF($A44="","",'individuele bedragen'!$I38) ->  | K44: =IF($A44="","",'individuele bedragen'!$I38) ->  | L44: =IF($A44="","",'individuele bedragen'!$I38) ->  | M44: =IF($A44="","",'individuele bedragen'!$I38) ->  | N44: =IF($A44="","",'individuele bedragen'!$I38) ->  | O44: =IF(A44="","",SUM(C44:N44)) ->  | P44: =IF($A44="","",IF('individuele bedragen'!P38="",0,'individuele bedragen'!P38)) ->  | Q44: =IF(A44="","",O44*P44) ->  | R44: =IF(A44="","",IF('individuele bedragen'!Q38="",0,'individuele bedragen'!Q38)) ->  | S44: =IF(A44="","",Q44+R44) ->  | T44: ='individuele bedragen'!T38 ->  | U44: ='individuele bedragen'!S38 ->  | V44: =IF(S44="","",IF(U44="J",S44,0)) ->  | W44: =IF(S44="","",IF(U44<>"J",S44,0)) -> 
A45: =IF('individuele bedragen'!G39="","",'individuele bedragen'!G39) ->  | B45: ='individuele bedragen'!H39 ->  | C45: =IF($A45="","",'individuele bedragen'!$I39) ->  | D45: =IF($A45="","",'individuele bedragen'!$I39) ->  | E45: =IF($A45="","",'individuele bedragen'!$I39) ->  | F45: =IF($A45="","",'individuele bedragen'!$I39) ->  | G45: =IF($A45="","",'individuele bedragen'!$I39) ->  | H45: =IF($A45="","",'individuele bedragen'!$I39) ->  | I45: =IF($A45="","",'individuele bedragen'!$I39) ->  | J45: =IF($A45="","",'individuele bedragen'!$I39) ->  | K45: =IF($A45="","",'individuele bedragen'!$I39) ->  | L45: =IF($A45="","",'individuele bedragen'!$I39) ->  | M45: =IF($A45="","",'individuele bedragen'!$I39) ->  | N45: =IF($A45="","",'individuele bedragen'!$I39) ->  | P45: =IF($A45="","",IF('individuele bedragen'!P39="",0,'individuele bedragen'!P39)) ->  | R45: =IF(A45="","",IF('individuele bedragen'!Q39="",0,'individuele bedragen'!Q39)) ->  | T45: ='individuele bedragen'!T39 ->  | U45: ='individuele bedragen'!S39 -> 
A46: =IF('individuele bedragen'!G40="","",'individuele bedragen'!G40) ->  | B46: ='individuele bedragen'!H40 ->  | C46: =IF($A46="","",'individuele bedragen'!$I40) ->  | D46: =IF($A46="","",'individuele bedragen'!$I40) ->  | E46: =IF($A46="","",'individuele bedragen'!$I40) ->  | F46: =IF($A46="","",'individuele bedragen'!$I40) ->  | G46: =IF($A46="","",'individuele bedragen'!$I40) ->  | H46: =IF($A46="","",'individuele bedragen'!$I40) ->  | I46: =IF($A46="","",'individuele bedragen'!$I40) ->  | J46: =IF($A46="","",'individuele bedragen'!$I40) ->  | K46: =IF($A46="","",'individuele bedragen'!$I40) ->  | L46: =IF($A46="","",'individuele bedragen'!$I40) ->  | M46: =IF($A46="","",'individuele bedragen'!$I40) ->  | N46: =IF($A46="","",'individuele bedragen'!$I40) ->  | P46: =IF($A46="","",IF('individuele bedragen'!P40="",0,'individuele bedragen'!P40)) ->  | R46: =IF(A46="","",IF('individuele bedragen'!Q40="",0,'individuele bedragen'!Q40)) ->  | T46: ='individuele bedragen'!T40 ->  | U46: ='individuele bedragen'!S40 -> 
A47: =IF('individuele bedragen'!G41="","",'individuele bedragen'!G41) ->  | B47: ='individuele bedragen'!H41 ->  | C47: =IF($A47="","",'individuele bedragen'!$I41) ->  | D47: =IF($A47="","",'individuele bedragen'!$I41) ->  | E47: =IF($A47="","",'individuele bedragen'!$I41) ->  | F47: =IF($A47="","",'individuele bedragen'!$I41) ->  | G47: =IF($A47="","",'individuele bedragen'!$I41) ->  | H47: =IF($A47="","",'individuele bedragen'!$I41) ->  | I47: =IF($A47="","",'individuele bedragen'!$I41) ->  | J47: =IF($A47="","",'individuele bedragen'!$I41) ->  | K47: =IF($A47="","",'individuele bedragen'!$I41) ->  | L47: =IF($A47="","",'individuele bedragen'!$I41) ->  | M47: =IF($A47="","",'individuele bedragen'!$I41) ->  | N47: =IF($A47="","",'individuele bedragen'!$I41) ->  | P47: =IF($A47="","",IF('individuele bedragen'!P41="",0,'individuele bedragen'!P41)) ->  | R47: =IF(A47="","",IF('individuele bedragen'!Q41="",0,'individuele bedragen'!Q41)) ->  | T47: ='individuele bedragen'!T41 ->  | U47: ='individuele bedragen'!S41 ->  | V47: =IF(S47="","",IF(U47="J",S47,0)) ->  | W47: =IF(S47="","",IF(U47<>"J",S47,0)) -> 
A48: Andere
A49: =IF('individuele bedragen'!G44="","",'individuele bedragen'!G44) ->  | B49: ='individuele bedragen'!H44 ->  | C49: =IF($A49="","",'individuele bedragen'!$I44) ->  | D49: =IF($A49="","",'individuele bedragen'!$I44) ->  | E49: =IF($A49="","",'individuele bedragen'!$I44) ->  | F49: =IF($A49="","",'individuele bedragen'!$I44) ->  | G49: =IF($A49="","",'individuele bedragen'!$I44) ->  | H49: =IF($A49="","",'individuele bedragen'!$I44) ->  | I49: =IF($A49="","",'individuele bedragen'!$I44) ->  | J49: =IF($A49="","",'individuele bedragen'!$I44) ->  | K49: =IF($A49="","",'individuele bedragen'!$I44) ->  | L49: =IF($A49="","",'individuele bedragen'!$I44) ->  | M49: =IF($A49="","",'individuele bedragen'!$I44) ->  | N49: =IF($A49="","",'individuele bedragen'!$I44) ->  | O49: =IF(A49="","",SUM(C49:N49)) ->  | P49: =IF($A49="","",IF('individuele bedragen'!P44="",0,'individuele bedragen'!P44)) ->  | Q49: =IF(A49="","",O49*P49) ->  | R49: =IF(A49="","",IF('individuele bedragen'!Q44="",0,'individuele bedragen'!Q44)) ->  | S49: =IF(A49="","",Q49+R49) ->  | T49: ='individuele bedragen'!T44 ->  | U49: ='individuele bedragen'!S43 -> 0.00 | V49: =IF(S49="","",IF(U49="J",S49,0)) ->  | W49: =IF(S49="","",IF(U49<>"J",S49,0)) -> 
A50: =IF('individuele bedragen'!G45="","",'individuele bedragen'!G45) ->  | B50: ='individuele bedragen'!H44 ->  | C50: =IF($A50="","",'individuele bedragen'!$I44) ->  | D50: =IF($A50="","",'individuele bedragen'!$I44) ->  | E50: =IF($A50="","",'individuele bedragen'!$I44) ->  | F50: =IF($A50="","",'individuele bedragen'!$I44) ->  | G50: =IF($A50="","",'individuele bedragen'!$I44) ->  | H50: =IF($A50="","",'individuele bedragen'!$I44) ->  | I50: =IF($A50="","",'individuele bedragen'!$I44) ->  | J50: =IF($A50="","",'individuele bedragen'!$I44) ->  | K50: =IF($A50="","",'individuele bedragen'!$I44) ->  | L50: =IF($A50="","",'individuele bedragen'!$I44) ->  | M50: =IF($A50="","",'individuele bedragen'!$I44) ->  | N50: =IF($A50="","",'individuele bedragen'!$I44) ->  | P50: =IF($A50="","",IF('individuele bedragen'!P44="",0,'individuele bedragen'!P44)) ->  | R50: =IF(A50="","",IF('individuele bedragen'!Q44="",0,'individuele bedragen'!Q44)) ->  | T50: ='individuele bedragen'!T44 ->  | U50: ='individuele bedragen'!S44 -> 
A52: Totalen | S52: =SUM(S14:S51) -> 0.00 | U52: =SUM(U14:U47) -> 0.00 | V52: =SUM(V14:V51) -> 0.00 | W52: =SUM(W14:W51) -> 0.00

Sheet keuzelijst Andere (hidden)
B2: =basisgegevens!B42 -> Andere | C2: =B2 -> Andere | D2: =C2 -> Andere | E2: Andere | F2: Andere | G2: Andere | H2: Andere | I2: Andere | J2: Andere | K2: Andere | L2: Andere | M2: Andere | N2: Andere | O2: Andere | P2: Andere | Q2: Andere

Sheet Inhoudstafel
B1: 7A FINANCIËLE PUZZEL
B3: Met deze tool kan u ruwe simulaties maken van mogelijke besteding van het budget
B5: U kan een korte inleiding op deze tool bekijken in het filmpje dat u als prikkel op de website vindt:
B6: * Het legt kort het gebruik van de 2 invulschermen uit
B7: * het schetst de bedoeling en de opbouw van de informatieve tabbladen
B10: LINK NAAR INVULSCHERMEN | G10: LINK NAAR INFORMATIEVE TABBLADEN
B11: invulscherm individuele bedragen | G11: uitleg vrijwilliger
B12: invulscherm jaarkalender | G12: uitleg jobstudent
G13: uitleg assistent
G14: uitleg deeleconomie
G15: uitleg zelfstandige | M15: Deze tool werd uitgewerkt in samenwerking met Ingrid Van Molle.
G16: uitleg gezins- en thuiszorg | M16: Met dank voor de informatie aangeleverd door Alin VZW, Absoluut VZW, Agilitas, Randstad,
G17: uitleg dienstencheques | M17: Group S, Vraagwijzer van KVG en VAPH.
G18: uitleg wijkwerkcheques | M18: We consulteerden ook de publieke webpagina's van Onafhankelijk Leven VZW en Securex.
G19: uitleg vergunde zorgaanbieders
G20: uitleg en ingave vervoerskosten | M20: We hebben de complexiteit proberen te vatten in een toegankelijke simulatietool om
G21: uitleg bijstandsorganisaties | M21: (beginnende) budgethouders en hun familie op weg te helpen om een ruwe inschatting te maken.
G22: technische fiche | M22: Vraag hulp aan een bijstandsorganisatie, een uitzendkantoor of een sociaal secretariaat.
M23: Zij kunnen je helpen met meer detailinformatie, fijnere schattingen en nog andere mogelijkheden.
B24: Deze tool maakt deel uit van de toolbox To be or not to be: Persoonlijk assistent van een familielid?
B25: www.datisdevraag.be | M25: Opmerkingen en suggesties zijn welkom op magentatobe@kuleuven.be.

Sheet technische fiche
A1: TECHNISCHE FICHE
B3: INHOUD
B4: Scherminstellingen
B5: Kleurcode
B6: Ingevulde gegevens wijzigen
B7: Factor wijzigen
B9: SCHERMINSTELLINGEN
B10: Onderaan het bestand zie je verschillende tabbladen staan. Je kan naar een ander tabblad gaan door op dat tablad te klikken.
B13: Niet alle tabbladen zijn tegelijk in beeld. Je kan naar de andere tabbladen schuiven door op pijltje in de linkerbenedenhoek te klikken.
B16: Als je een tabblad hebt aangeklikt, kan je de tekst groter of kleiner maken via in-/uitzoomen in de rechterbenedenhoek.
B19: Klik op het minteken (-) om uit te zoomen en op het plusteken (+) om in te zoomen, of versleep het rechtopstaand streepje naar links of rechts.
B20: Het percentageteken geeft aan in welke mate je hebt uitgezoomd of ingezoomd. Het standaardpercentage is 100%.
B22: Als je inzoomt, is het mogelijk dat sommige delen van de tekst buiten je beeld vallen.
B23: Je kan in het tablad naar boven of beneden schuiven via het opstaand schuifbalkje aan de rechterkant.
B24: Je kan in het tablad naar links of rechts schuiven via het schuifbalkje in de rechterbenedenhoek.
B33: AARD ONDERSTEUNING AANDUIDEN
B34: Jouw gewenste vorm van ondersteuning duid je aan in kolom B.
B35: Kies eerst de juiste categorie van ondersteuning (Asisstenten; huishouden/verzorging; vergunde zorgaanbieder; bijstandsorganisatie; vervoer; andere)
B36: Binnen de juiste categorie, maak je gebruik van het uitklapbalkje.
B37: Je kan de opties 'uitklappen', door op het pijltje naar beneden te klikken. De verschillende opties zullen verschijnen. Klik op de optie van jouw keuze.
B44: KLEURCODE
B45: In het tablad 'individuele bedragen' ziet u dat de kolommen verschillen van kleur.
B46: De beige kolommen worden automatisch ingevuld door de tool.
B47: Enkel de blauwe kolommen dien je zelf in te vullen.
B49: INGEVULDE GEGEVENS WIJZINGEN
B50: Maakte je bij het invullen van de gegevens een fout of wens je een wijziging aan te brengen? Dan zijn er twee manieren om dat te doen.
B51: 1. Het overschrijven van de gegevens
B52: Indien je wel nog gebruik wilt maken van de ingevulde vorm van ondersteuning, maar daarbij de verkeerde cijfers invulde, kan je de getallen overschrijven.
B53: Dat doe je door met de cursor (het pijltje) het verkeerde getal aan te duiden en het juiste getal in te typen.
B54: Opgelet! Als je het gemiddeld maandaantal aanpast, worden eerdere aanpassingen in de jaarkalender toch behouden.
B55: 2. Lijn wissen
B56: Heb je een verkeerde vorm van ondersteuning aangeduid, of wens je geen gebruik meer te maken van een bepaalde ondersteuningsvorm?
B57: Dan kan je de lijn uitblanken door in kolom A (WISSEN LIJN) op het kruisje te duwen.
B58: De gegevens van die lijn zullen dan zowel in het tablad 'individuele bedragen' als in het tablad 'jaargegevens' verwijderd worden.
B60: FACTOR WIJZIGEN
B61: De factor aanpassen doe je in het tabblad 'individuele bedragen'.
B62: In de kolom '+ of *' bij Factor, vul je het somteken gevolgd door ENTER (+ ENTER) in als je wilt optellen, of het vermenigvuldigingsteken (*) in als je wilt vermenigvuldigen.
B63: In de andere kolom bij Factor, vul je de waarde/cijfer in dat je bij de reële prijs wilt optellen, of waarmee je de reële prijs wilt vermenigvuldigen.

Sheet basisgegevens
B1: OMSCHRIJVING | C1: VAPH CATEGORIE | D1: EENHEID | E1: TARIEF | F1: FACTOR 1 | G1: FACTOR 2 | H1: bedrag ten laste van budget per eenheid | I1: naam vragen? | J1: 0 | K1: MINIMUM | L1: MAXIMUM | M1: VOORGESTELD | N1: JAARLIMIET | O1: Kolom1 | P1: OP BUDGET | Q1: JAARL-KOST EENHEID | R1: JAARLIJKSE KOST GROEP | S1: eenheid 2 | T1: link
A2: 1 | B2: Vrijwilliger (buddy) met forfaitaire vergoeding | D2: keer | F2: * | G2: 1 | I2: j | J2: j | K2: 0 | L2: 35.41 | N2: 1416.16 | P2: j
A3: 2 | B3: Vrijwilliger (buddy) met reële kostenvergoeding | D3: keer | I3: j | J3: j | P3: j
A4: 3 | B4: Jobstudent via uitzendkantoor | D4: uur | F4: * | G4: 1.23 | I4: j | K4: 9.87 | P4: j
A5: 4 | B5: Jobstudent via sociaal secretariaat | D5: uur | F5: * | G5: 1.1 | I5: j | K5: 11.28 | P5: j
A6: 5 | B6: Assistent uitzendkantoor | D6: uur | F6: * | G6: 1.87 | I6: j | K6: 9.87 | P6: j
A7: 6 | B7: Assistent sociaal secretariaat | D7: uur | F7: * | G7: 1.42 | I7: j | K7: 11.28 | P7: j
A8: 7 | B8: Assistent DPA (dienst pers. Ass) | D8: uur | I8: J | P8: j
A9: 8 | B9: Deeleconomie | D9: uur | I9: j | K9: 0 | L9: 15 | M9: 7 | P9: j
A10: 9 | B10: Zelfstandige | D10: uur | F10: * | G10: 1 | I10: j | P10: j
A11: 10 | B11: Deeleconomie - Helpper basis | D11: uur | F11: + | G11: 2 | I11: j | K11: 0 | L11: 15 | M11: 7 | P11: j
A12: 11 | B12: Deeleconomie - Helpper plus | D12: uur | F12: + | G12: 1.6 | I12: j | K12: 0 | L12: 15 | M12: 7 | P12: j | Q12: 120
A13: 12 | B13: Deeleconomie - list minute | D13: uur | I13: j | M13: 7 | P13: j
A16: 14 | B16: Gezinszorg | D16: uur | F16: * | G16: 1 | I16: n | J16: n | P16: j | T16: 2
A17: 15 | B17: Thuiszorg schoonmaakhulp | D17: uur | F17: * | G17: 1 | I17: n | J17: n | P17: j | T17: 3
A18: 16 | B18: Thuiszorg karweihulp/oppashulp | D18: uur | F18: * | G18: 1 | I18: n | J18: n | P18: j
A19: 17 | B19: Dienstencheques niet op budget (belastingvoordeel) | D19: uur | F19: * | G19: 1 | H19: 0 | I19: n | K19: 9 | L19: 10 | P19: n
A20: 18 | B20: Dienstencheques op budget | C20: individuele praktische hulp | D20: uur | F20: * | G20: 1 | I20: n | K20: 9 | L20: 10 | P20: j
A21: 19 | B21: Wijkwerken niet op budget | D21: uur | F21: * | G21: 1 | I21: n | K21: 5.95 | L21: 7.45 | P21: n
A22: 20 | B22: Wijkwerken op budget | D22: uur | F22: * | G22: 1 | I22: n | K22: 5.95 | L22: 7.45 | P22: j
A23: 21 | B23: Thuisverpleging | D23: keer | E23: 0 | H23: 0 | I23: N | P23: j
A25: 23 | B25: Individuele begeleiding | D25: keer | E25: 85 | F25: * | G25: 1 | I25: n | P25: j
A26: 24 | B26: Dagopvang | D26: dag | E26: 170 | F26: * | G26: 1 | I26: n | P26: j
A27: 25 | B27: Verblijf | D27: nacht | E27: 170 | F27: * | G27: 1 | I27: n | P27: j
A28: 26 | B28: Oproepbare permanentie | D28: keer | F28: * | G28: 1 | I28: n | P28: j
A30: 30 | B30: Absoluut VZW | D30: uur | I30: n | P30: j
A31: 31 | B31: Alin VZW | D31: uur | I31: n | P31: j
A32: 32 | B32: My Assist VZW | D32: uur | I32: n | P32: j
A33: 33 | B33: Onafhankelijk leven VZw | D33: uur | I33: n | P33: j
A34: 34 | B34: Zoom VZW | D34: uur | I34: n | P34: j
A36: 35 | B36: Mindermobielencentrale | D36: kilometer | E36: 0.3 | I36: j | K36: 0.3 | L36: 0.35 | M36: 0.3 | P36: J | Q36: 12 | T36: overzicht vervoer
A37: 36 | B37: DAV | D37: kilometer | I37: j | P37: J | S37: keer
A38: 37 | B38: Vervoerskosten vrijwilliger reële kost | D38: kilometer | I38: j | P38: j | T38: µ
A39: 38 | B39: Vervoerskosten vrijwilliger forfaietaire kost | D39: kilometer | I39: j | K39: 0 | L39: 0.3542 | N39: 2000 | P39: j
A40: 39 | B40: Vervoerskosten assistenten | D40: kilometer | I40: j | P40: j
A42: 40 | B42: Andere | I42: j | P42: j

Sheet keuzelijst assistent (hidden)
KC1: 2
B2: =basisgegevens!$B2 -> Vrijwilliger (buddy) met forfaitaire vergoeding | C2: =basisgegevens!$B2 -> Vrijwilliger (buddy) met forfaitaire vergoeding | D2: =basisgegevens!$B2 -> Vrijwilliger (buddy) met forfaitaire vergoeding | E2: =basisgegevens!$B2 -> Vrijwilliger (buddy) met forfaitaire vergoeding | F2: =basisgegevens!$B2 -> Vrijwilliger (buddy) met forfaitaire vergoeding | G2: =basisgegevens!$B2 -> Vrijwilliger (buddy) met forfaitaire vergoeding | H2: =basisgegevens!$B2 -> Vrijwilliger (buddy) met forfaitaire vergoeding | I2: =basisgegevens!$B2 -> Vrijwilliger (buddy) met forfaitaire vergoeding | J2: =basisgegevens!$B2 -> Vrijwilliger (buddy) met forfaitaire vergoeding | K2: =basisgegevens!$B2 -> Vrijwilliger (buddy) met forfaitaire vergoeding | L2: =basisgegevens!$B2 -> Vrijwilliger (buddy) met forfaitaire vergoeding | M2: =basisgegevens!$B2 -> Vrijwilliger (buddy) met forfaitaire vergoeding | N2: =basisgegevens!$B2 -> Vrijwilliger (buddy) met forfaitaire vergoeding | O2: =basisgegevens!$B2 -> Vrijwilliger (buddy) met forfaitaire vergoeding | P2: =basisgegevens!$B2 -> Vrijwilliger (buddy) met forfaitaire vergoeding | Q2: =basisgegevens!$B2 -> Vrijwilliger (buddy) met forfaitaire vergoeding | R2: =basisgegevens!$B2 -> Vrijwilliger (buddy) met forfaitaire vergoeding | S2: =basisgegevens!$B2 -> Vrijwilliger (buddy) met forfaitaire vergoeding | T2: =basisgegevens!$B2 -> Vrijwilliger (buddy) met forfaitaire vergoeding | U2: =basisgegevens!$B2 -> Vrijwilliger (buddy) met forfaitaire vergoeding | V2: =basisgegevens!$B2 -> Vrijwilliger (buddy) met forfaitaire vergoeding
B3: =basisgegevens!$B3 -> Vrijwilliger (buddy) met reële kostenvergoeding | C3: =basisgegevens!$B3 -> Vrijwilliger (buddy) met reële kostenvergoeding | D3: =basisgegevens!$B3 -> Vrijwilliger (buddy) met reële kostenvergoeding | E3: =basisgegevens!$B3 -> Vrijwilliger (buddy) met reële kostenvergoeding | F3: =basisgegevens!$B3 -> Vrijwilliger (buddy) met reële kostenvergoeding | G3: =basisgegevens!$B3 -> Vrijwilliger (buddy) met reële kostenvergoeding | H3: =basisgegevens!$B3 -> Vrijwilliger (buddy) met reële kostenvergoeding | I3: =basisgegevens!$B3 -> Vrijwilliger (buddy) met reële kostenvergoeding | J3: =basisgegevens!$B3 -> Vrijwilliger (buddy) met reële kostenvergoeding | K3: =basisgegevens!$B3 -> Vrijwilliger (buddy) met reële kostenvergoeding | L3: =basisgegevens!$B3 -> Vrijwilliger (buddy) met reële kostenvergoeding | M3: =basisgegevens!$B3 -> Vrijwilliger (buddy) met reële kostenvergoeding | N3: =basisgegevens!$B3 -> Vrijwilliger (buddy) met reële kostenvergoeding | O3: =basisgegevens!$B3 -> Vrijwilliger (buddy) met reële kostenvergoeding | P3: =basisgegevens!$B3 -> Vrijwilliger (buddy) met reële kostenvergoeding | Q3: =basisgegevens!$B3 -> Vrijwilliger (buddy) met reële kostenvergoeding | R3: =basisgegevens!$B3 -> Vrijwilliger (buddy) met reële kostenvergoeding | S3: =basisgegevens!$B3 -> Vrijwilliger (buddy) met reële kostenvergoeding | T3: =basisgegevens!$B3 -> Vrijwilliger (buddy) met reële kostenvergoeding | U3: =basisgegevens!$B3 -> Vrijwilliger (buddy) met reële kostenvergoeding | V3: =basisgegevens!$B3 -> Vrijwilliger (buddy) met reële kostenvergoeding
B4: =basisgegevens!$B4 -> Jobstudent via uitzendkantoor | C4: =basisgegevens!$B4 -> Jobstudent via uitzendkantoor | D4: =basisgegevens!$B4 -> Jobstudent via uitzendkantoor | E4: =basisgegevens!$B4 -> Jobstudent via uitzendkantoor | F4: =basisgegevens!$B4 -> Jobstudent via uitzendkantoor | G4: =basisgegevens!$B4 -> Jobstudent via uitzendkantoor | H4: =basisgegevens!$B4 -> Jobstudent via uitzendkantoor | I4: =basisgegevens!$B4 -> Jobstudent via uitzendkantoor | J4: =basisgegevens!$B4 -> Jobstudent via uitzendkantoor | K4: =basisgegevens!$B4 -> Jobstudent via uitzendkantoor | L4: =basisgegevens!$B4 -> Jobstudent via uitzendkantoor | M4: =basisgegevens!$B4 -> Jobstudent via uitzendkantoor | N4: =basisgegevens!$B4 -> Jobstudent via uitzendkantoor | O4: =basisgegevens!$B4 -> Jobstudent via uitzendkantoor | P4: =basisgegevens!$B4 -> Jobstudent via uitzendkantoor | Q4: =basisgegevens!$B4 -> Jobstudent via uitzendkantoor | R4: =basisgegevens!$B4 -> Jobstudent via uitzendkantoor | S4: =basisgegevens!$B4 -> Jobstudent via uitzendkantoor | T4: =basisgegevens!$B4 -> Jobstudent via uitzendkantoor | U4: =basisgegevens!$B4 -> Jobstudent via uitzendkantoor | V4: =basisgegevens!$B4 -> Jobstudent via uitzendkantoor
B5: =basisgegevens!$B5 -> Jobstudent via sociaal secretariaat | C5: =basisgegevens!$B5 -> Jobstudent via sociaal secretariaat | D5: =basisgegevens!$B5 -> Jobstudent via sociaal secretariaat | E5: =basisgegevens!$B5 -> Jobstudent via sociaal secretariaat | F5: =basisgegevens!$B5 -> Jobstudent via sociaal secretariaat | G5: =basisgegevens!$B5 -> Jobstudent via sociaal secretariaat | H5: =basisgegevens!$B5 -> Jobstudent via sociaal secretariaat | I5: =basisgegevens!$B5 -> Jobstudent via sociaal secretariaat | J5: =basisgegevens!$B5 -> Jobstudent via sociaal secretariaat | K5: =basisgegevens!$B5 -> Jobstudent via sociaal secretariaat | L5: =basisgegevens!$B5 -> Jobstudent via sociaal secretariaat | M5: =basisgegevens!$B5 -> Jobstudent via sociaal secretariaat | N5: =basisgegevens!$B5 -> Jobstudent via sociaal secretariaat | O5: =basisgegevens!$B5 -> Jobstudent via sociaal secretariaat | P5: =basisgegevens!$B5 -> Jobstudent via sociaal secretariaat | Q5: =basisgegevens!$B5 -> Jobstudent via sociaal secretariaat | R5: =basisgegevens!$B5 -> Jobstudent via sociaal secretariaat | S5: =basisgegevens!$B5 -> Jobstudent via sociaal secretariaat | T5: =basisgegevens!$B5 -> Jobstudent via sociaal secretariaat | U5: =basisgegevens!$B5 -> Jobstudent via sociaal secretariaat | V5: =basisgegevens!$B5 -> Jobstudent via sociaal secretariaat
B6: =basisgegevens!$B6 -> Assistent uitzendkantoor | C6: =basisgegevens!$B6 -> Assistent uitzendkantoor | D6: =basisgegevens!$B6 -> Assistent uitzendkantoor | E6: =basisgegevens!$B6 -> Assistent uitzendkantoor | F6: =basisgegevens!$B6 -> Assistent uitzendkantoor | G6: =basisgegevens!$B6 -> Assistent uitzendkantoor | H6: =basisgegevens!$B6 -> Assistent uitzendkantoor | I6: =basisgegevens!$B6 -> Assistent uitzendkantoor | J6: =basisgegevens!$B6 -> Assistent uitzendkantoor | K6: =basisgegevens!$B6 -> Assistent uitzendkantoor | L6: =basisgegevens!$B6 -> Assistent uitzendkantoor | M6: =basisgegevens!$B6 -> Assistent uitzendkantoor | N6: =basisgegevens!$B6 -> Assistent uitzendkantoor | O6: =basisgegevens!$B6 -> Assistent uitzendkantoor | P6: =basisgegevens!$B6 -> Assistent uitzendkantoor | Q6: =basisgegevens!$B6 -> Assistent uitzendkantoor | R6: =basisgegevens!$B6 -> Assistent uitzendkantoor | S6: =basisgegevens!$B6 -> Assistent uitzendkantoor | T6: =basisgegevens!$B6 -> Assistent uitzendkantoor | U6: =basisgegevens!$B6 -> Assistent uitzendkantoor | V6: =basisgegevens!$B6 -> Assistent uitzendkantoor
B7: =basisgegevens!$B7 -> Assistent sociaal secretariaat | C7: =basisgegevens!$B7 -> Assistent sociaal secretariaat | D7: =basisgegevens!$B7 -> Assistent sociaal secretariaat | E7: =basisgegevens!$B7 -> Assistent sociaal secretariaat | F7: =basisgegevens!$B7 -> Assistent sociaal secretariaat | G7: =basisgegevens!$B7 -> Assistent sociaal secretariaat | H7: =basisgegevens!$B7 -> Assistent sociaal secretariaat | I7: =basisgegevens!$B7 -> Assistent sociaal secretariaat | J7: =basisgegevens!$B7 -> Assistent sociaal secretariaat | K7: =basisgegevens!$B7 -> Assistent sociaal secretariaat | L7: =basisgegevens!$B7 -> Assistent sociaal secretariaat | M7: =basisgegevens!$B7 -> Assistent sociaal secretariaat | N7: =basisgegevens!$B7 -> Assistent sociaal secretariaat | O7: =basisgegevens!$B7 -> Assistent sociaal secretariaat | P7: =basisgegevens!$B7 -> Assistent sociaal secretariaat | Q7: =basisgegevens!$B7 -> Assistent sociaal secretariaat | R7: =basisgegevens!$B7 -> Assistent sociaal secretariaat | S7: =basisgegevens!$B7 -> Assistent sociaal secretariaat | T7: =basisgegevens!$B7 -> Assistent sociaal secretariaat | U7: =basisgegevens!$B7 -> Assistent sociaal secretariaat | V7: =basisgegevens!$B7 -> Assistent sociaal secretariaat
B8: =basisgegevens!$B8 -> Assistent DPA (dienst pers. Ass) | C8: =basisgegevens!$B8 -> Assistent DPA (dienst pers. Ass) | D8: =basisgegevens!$B8 -> Assistent DPA (dienst pers. Ass) | E8: =basisgegevens!$B8 -> Assistent DPA (dienst pers. Ass) | F8: =basisgegevens!$B8 -> Assistent DPA (dienst pers. Ass) | G8: =basisgegevens!$B8 -> Assistent DPA (dienst pers. Ass) | H8: =basisgegevens!$B8 -> Assistent DPA (dienst pers. Ass) | I8: =basisgegevens!$B8 -> Assistent DPA (dienst pers. Ass) | J8: =basisgegevens!$B8 -> Assistent DPA (dienst pers. Ass) | K8: =basisgegevens!$B8 -> Assistent DPA (dienst pers. Ass) | L8: =basisgegevens!$B8 -> Assistent DPA (dienst pers. Ass) | M8: =basisgegevens!$B8 -> Assistent DPA (dienst pers. Ass) | N8: =basisgegevens!$B8 -> Assistent DPA (dienst pers. Ass) | O8: =basisgegevens!$B8 -> Assistent DPA (dienst pers. Ass) | P8: =basisgegevens!$B8 -> Assistent DPA (dienst pers. Ass) | Q8: =basisgegevens!$B8 -> Assistent DPA (dienst pers. Ass) | R8: =basisgegevens!$B8 -> Assistent DPA (dienst pers. Ass) | S8: =basisgegevens!$B8 -> Assistent DPA (dienst pers. Ass) | T8: =basisgegevens!$B8 -> Assistent DPA (dienst pers. Ass) | U8: =basisgegevens!$B8 -> Assistent DPA (dienst pers. Ass) | V8: =basisgegevens!$B8 -> Assistent DPA (dienst pers. Ass)
B9: =basisgegevens!$B9 -> Deeleconomie | C9: =basisgegevens!$B9 -> Deeleconomie | D9: =basisgegevens!$B9 -> Deeleconomie | E9: =basisgegevens!$B9 -> Deeleconomie | F9: =basisgegevens!$B9 -> Deeleconomie | G9: =basisgegevens!$B9 -> Deeleconomie | H9: =basisgegevens!$B9 -> Deeleconomie | I9: =basisgegevens!$B9 -> Deeleconomie | J9: =basisgegevens!$B9 -> Deeleconomie | K9: =basisgegevens!$B9 -> Deeleconomie | L9: =basisgegevens!$B9 -> Deeleconomie | M9: =basisgegevens!$B9 -> Deeleconomie | N9: =basisgegevens!$B9 -> Deeleconomie | O9: =basisgegevens!$B9 -> Deeleconomie | P9: =basisgegevens!$B9 -> Deeleconomie | Q9: =basisgegevens!$B9 -> Deeleconomie | R9: =basisgegevens!$B9 -> Deeleconomie | S9: =basisgegevens!$B9 -> Deeleconomie | T9: =basisgegevens!$B9 -> Deeleconomie | U9: =basisgegevens!$B9 -> Deeleconomie | V9: =basisgegevens!$B9 -> Deeleconomie
B10: =basisgegevens!$B10 -> Zelfstandige | C10: =basisgegevens!$B10 -> Zelfstandige | D10: =basisgegevens!$B10 -> Zelfstandige | E10: =basisgegevens!$B10 -> Zelfstandige | F10: =basisgegevens!$B10 -> Zelfstandige | G10: =basisgegevens!$B10 -> Zelfstandige | H10: =basisgegevens!$B10 -> Zelfstandige | I10: =basisgegevens!$B10 -> Zelfstandige | J10: =basisgegevens!$B10 -> Zelfstandige | K10: =basisgegevens!$B10 -> Zelfstandige | L10: =basisgegevens!$B10 -> Zelfstandige | M10: =basisgegevens!$B10 -> Zelfstandige | N10: =basisgegevens!$B10 -> Zelfstandige | O10: =basisgegevens!$B10 -> Zelfstandige | P10: =basisgegevens!$B10 -> Zelfstandige | Q10: =basisgegevens!$B10 -> Zelfstandige | R10: =basisgegevens!$B10 -> Zelfstandige | S10: =basisgegevens!$B10 -> Zelfstandige | T10: =basisgegevens!$B10 -> Zelfstandige | U10: =basisgegevens!$B10 -> Zelfstandige | V10: =basisgegevens!$B10 -> Zelfstandige

Sheet keuzelijst huishouden (hidden)
KC1: 2
B2: =basisgegevens!$B16 -> Gezinszorg | C2: =basisgegevens!$B16 -> Gezinszorg | D2: =basisgegevens!$B16 -> Gezinszorg | E2: =basisgegevens!$B16 -> Gezinszorg | F2: =basisgegevens!$B16 -> Gezinszorg | G2: =basisgegevens!$B16 -> Gezinszorg | H2: =basisgegevens!$B16 -> Gezinszorg | I2: =basisgegevens!$B16 -> Gezinszorg | J2: =basisgegevens!$B16 -> Gezinszorg | K2: =basisgegevens!$B16 -> Gezinszorg | L2: =basisgegevens!$B16 -> Gezinszorg | M2: =basisgegevens!$B16 -> Gezinszorg | N2: =basisgegevens!$B16 -> Gezinszorg | O2: =basisgegevens!$B16 -> Gezinszorg | P2: =basisgegevens!$B16 -> Gezinszorg | Q2: =basisgegevens!$B16 -> Gezinszorg | R2: =basisgegevens!$B16 -> Gezinszorg | S2: =basisgegevens!$B16 -> Gezinszorg | T2: =basisgegevens!$B16 -> Gezinszorg | U2: =basisgegevens!$B16 -> Gezinszorg | V2: =basisgegevens!$B16 -> Gezinszorg
B3: =basisgegevens!$B17 -> Thuiszorg schoonmaakhulp | C3: =basisgegevens!$B17 -> Thuiszorg schoonmaakhulp | D3: =basisgegevens!$B17 -> Thuiszorg schoonmaakhulp | E3: =basisgegevens!$B17 -> Thuiszorg schoonmaakhulp | F3: =basisgegevens!$B17 -> Thuiszorg schoonmaakhulp | G3: =basisgegevens!$B17 -> Thuiszorg schoonmaakhulp | H3: =basisgegevens!$B17 -> Thuiszorg schoonmaakhulp | I3: =basisgegevens!$B17 -> Thuiszorg schoonmaakhulp | J3: =basisgegevens!$B17 -> Thuiszorg schoonmaakhulp | K3: =basisgegevens!$B17 -> Thuiszorg schoonmaakhulp | L3: =basisgegevens!$B17 -> Thuiszorg schoonmaakhulp | M3: =basisgegevens!$B17 -> Thuiszorg schoonmaakhulp | N3: =basisgegevens!$B17 -> Thuiszorg schoonmaakhulp | O3: =basisgegevens!$B17 -> Thuiszorg schoonmaakhulp | P3: =basisgegevens!$B17 -> Thuiszorg schoonmaakhulp | Q3: =basisgegevens!$B17 -> Thuiszorg schoonmaakhulp | R3: =basisgegevens!$B17 -> Thuiszorg schoonmaakhulp | S3: =basisgegevens!$B17 -> Thuiszorg schoonmaakhulp | T3: =basisgegevens!$B17 -> Thuiszorg schoonmaakhulp | U3: =basisgegevens!$B17 -> Thuiszorg schoonmaakhulp | V3: =basisgegevens!$B17 -> Thuiszorg schoonmaakhulp
B4: =basisgegevens!$B18 -> Thuiszorg karweihulp/oppashulp | C4: =basisgegevens!$B18 -> Thuiszorg karweihulp/oppashulp | D4: =basisgegevens!$B18 -> Thuiszorg karweihulp/oppashulp | E4: =basisgegevens!$B18 -> Thuiszorg karweihulp/oppashulp | F4: =basisgegevens!$B18 -> Thuiszorg karweihulp/oppashulp | G4: =basisgegevens!$B18 -> Thuiszorg karweihulp/oppashulp | H4: =basisgegevens!$B18 -> Thuiszorg karweihulp/oppashulp | I4: =basisgegevens!$B18 -> Thuiszorg karweihulp/oppashulp | J4: =basisgegevens!$B18 -> Thuiszorg karweihulp/oppashulp | K4: =basisgegevens!$B18 -> Thuiszorg karweihulp/oppashulp | L4: =basisgegevens!$B18 -> Thuiszorg karweihulp/oppashulp | M4: =basisgegevens!$B18 -> Thuiszorg karweihulp/oppashulp | N4: =basisgegevens!$B18 -> Thuiszorg karweihulp/oppashulp | O4: =basisgegevens!$B18 -> Thuiszorg karweihulp/oppashulp | P4: =basisgegevens!$B18 -> Thuiszorg karweihulp/oppashulp | Q4: =basisgegevens!$B18 -> Thuiszorg karweihulp/oppashulp | R4: =basisgegevens!$B18 -> Thuiszorg karweihulp/oppashulp | S4: =basisgegevens!$B18 -> Thuiszorg karweihulp/oppashulp | T4: =basisgegevens!$B18 -> Thuiszorg karweihulp/oppashulp | U4: =basisgegevens!$B18 -> Thuiszorg karweihulp/oppashulp | V4: =basisgegevens!$B18 -> Thuiszorg karweihulp/oppashulp
B5: =basisgegevens!$B19 -> Dienstencheques niet op budget (belastingvoordeel) | C5: =basisgegevens!$B19 -> Dienstencheques niet op budget (belastingvoordeel) | D5: =basisgegevens!$B19 -> Dienstencheques niet op budget (belastingvoordeel) | E5: =basisgegevens!$B19 -> Dienstencheques niet op budget (belastingvoordeel) | F5: =basisgegevens!$B19 -> Dienstencheques niet op budget (belastingvoordeel) | G5: =basisgegevens!$B19 -> Dienstencheques niet op budget (belastingvoordeel) | H5: =basisgegevens!$B19 -> Dienstencheques niet op budget (belastingvoordeel) | I5: =basisgegevens!$B19 -> Dienstencheques niet op budget (belastingvoordeel) | J5: =basisgegevens!$B19 -> Dienstencheques niet op budget (belastingvoordeel) | K5: =basisgegevens!$B19 -> Dienstencheques niet op budget (belastingvoordeel) | L5: =basisgegevens!$B19 -> Dienstencheques niet op budget (belastingvoordeel) | M5: =basisgegevens!$B19 -> Dienstencheques niet op budget (belastingvoordeel) | N5: =basisgegevens!$B19 -> Dienstencheques niet op budget (belastingvoordeel) | O5: =basisgegevens!$B19 -> Dienstencheques niet op budget (belastingvoordeel) | P5: =basisgegevens!$B19 -> Dienstencheques niet op budget (belastingvoordeel) | Q5: =basisgegevens!$B19 -> Dienstencheques niet op budget (belastingvoordeel) | R5: =basisgegevens!$B19 -> Dienstencheques niet op budget (belastingvoordeel) | S5: =basisgegevens!$B19 -> Dienstencheques niet op budget (belastingvoordeel) | T5: =basisgegevens!$B19 -> Dienstencheques niet op budget (belastingvoordeel) | U5: =basisgegevens!$B19 -> Dienstencheques niet op budget (belastingvoordeel) | V5: =basisgegevens!$B19 -> Dienstencheques niet op budget (belastingvoordeel)
B6: =basisgegevens!$B20 -> Dienstencheques op budget | C6: =basisgegevens!$B20 -> Dienstencheques op budget | D6: =basisgegevens!$B20 -> Dienstencheques op budget | E6: =basisgegevens!$B20 -> Dienstencheques op budget | F6: =basisgegevens!$B20 -> Dienstencheques op budget | G6: =basisgegevens!$B20 -> Dienstencheques op budget | H6: =basisgegevens!$B20 -> Dienstencheques op budget | I6: =basisgegevens!$B20 -> Dienstencheques op budget | J6: =basisgegevens!$B20 -> Dienstencheques op budget | K6: =basisgegevens!$B20 -> Dienstencheques op budget | L6: =basisgegevens!$B20 -> Dienstencheques op budget | M6: =basisgegevens!$B20 -> Dienstencheques op budget | N6: =basisgegevens!$B20 -> Dienstencheques op budget | O6: =basisgegevens!$B20 -> Dienstencheques op budget | P6: =basisgegevens!$B20 -> Dienstencheques op budget | Q6: =basisgegevens!$B20 -> Dienstencheques op budget | R6: =basisgegevens!$B20 -> Dienstencheques op budget | S6: =basisgegevens!$B20 -> Dienstencheques op budget | T6: =basisgegevens!$B20 -> Dienstencheques op budget | U6: =basisgegevens!$B20 -> Dienstencheques op budget | V6: =basisgegevens!$B20 -> Dienstencheques op budget
B7: =basisgegevens!$B21 -> Wijkwerken niet op budget | C7: =basisgegevens!$B21 -> Wijkwerken niet op budget | D7: =basisgegevens!$B21 -> Wijkwerken niet op budget | E7: =basisgegevens!$B21 -> Wijkwerken niet op budget | F7: =basisgegevens!$B21 -> Wijkwerken niet op budget | G7: =basisgegevens!$B21 -> Wijkwerken niet op budget | H7: =basisgegevens!$B21 -> Wijkwerken niet op budget | I7: =basisgegevens!$B21 -> Wijkwerken niet op budget | J7: =basisgegevens!$B21 -> Wijkwerken niet op budget | K7: =basisgegevens!$B21 -> Wijkwerken niet op budget | L7: =basisgegevens!$B21 -> Wijkwerken niet op budget | M7: =basisgegevens!$B21 -> Wijkwerken niet op budget | N7: =basisgegevens!$B21 -> Wijkwerken niet op budget | O7: =basisgegevens!$B21 -> Wijkwerken niet op budget | P7: =basisgegevens!$B21 -> Wijkwerken niet op budget | Q7: =basisgegevens!$B21 -> Wijkwerken niet op budget | R7: =basisgegevens!$B21 -> Wijkwerken niet op budget | S7: =basisgegevens!$B21 -> Wijkwerken niet op budget | T7: =basisgegevens!$B21 -> Wijkwerken niet op budget | U7: =basisgegevens!$B21 -> Wijkwerken niet op budget | V7: =basisgegevens!$B21 -> Wijkwerken niet op budget
B8: =basisgegevens!$B22 -> Wijkwerken op budget | C8: =basisgegevens!$B22 -> Wijkwerken op budget | D8: =basisgegevens!$B22 -> Wijkwerken op budget | E8: =basisgegevens!$B22 -> Wijkwerken op budget | F8: =basisgegevens!$B22 -> Wijkwerken op budget | G8: =basisgegevens!$B22 -> Wijkwerken op budget | H8: =basisgegevens!$B22 -> Wijkwerken op budget | I8: =basisgegevens!$B22 -> Wijkwerken op budget | J8: =basisgegevens!$B22 -> Wijkwerken op budget | K8: =basisgegevens!$B22 -> Wijkwerken op budget | L8: =basisgegevens!$B22 -> Wijkwerken op budget | M8: =basisgegevens!$B22 -> Wijkwerken op budget | N8: =basisgegevens!$B22 -> Wijkwerken op budget | O8: =basisgegevens!$B22 -> Wijkwerken op budget | P8: =basisgegevens!$B22 -> Wijkwerken op budget | Q8: =basisgegevens!$B22 -> Wijkwerken op budget | R8: =basisgegevens!$B22 -> Wijkwerken op budget | S8: =basisgegevens!$B22 -> Wijkwerken op budget | T8: =basisgegevens!$B22 -> Wijkwerken op budget | U8: =basisgegevens!$B22 -> Wijkwerken op budget | V8: =basisgegevens!$B22 -> Wijkwerken op budget
B27: website::www.datisdevraag.be

Sheet keuzelijst zorgaanbieder (hidden)
B2: =basisgegevens!$B25 -> Individuele begeleiding | C2: =basisgegevens!$B25 -> Individuele begeleiding | D2: =basisgegevens!$B25 -> Individuele begeleiding | E2: =basisgegevens!$B25 -> Individuele begeleiding | F2: =basisgegevens!$B25 -> Individuele begeleiding | G2: =basisgegevens!$B25 -> Individuele begeleiding | H2: =basisgegevens!$B25 -> Individuele begeleiding | I2: =basisgegevens!$B25 -> Individuele begeleiding | J2: =basisgegevens!$B25 -> Individuele begeleiding | K2: =basisgegevens!$B25 -> Individuele begeleiding | L2: =basisgegevens!$B25 -> Individuele begeleiding | M2: =basisgegevens!$B25 -> Individuele begeleiding | N2: =basisgegevens!$B25 -> Individuele begeleiding | O2: =basisgegevens!$B25 -> Individuele begeleiding | P2: =basisgegevens!$B25 -> Individuele begeleiding | Q2: =basisgegevens!$B25 -> Individuele begeleiding | R2: =basisgegevens!$B25 -> Individuele begeleiding | S2: =basisgegevens!$B25 -> Individuele begeleiding | T2: =basisgegevens!$B25 -> Individuele begeleiding | U2: =basisgegevens!$B25 -> Individuele begeleiding | V2: =basisgegevens!$B25 -> Individuele begeleiding
B3: =basisgegevens!$B26 -> Dagopvang | C3: =basisgegevens!$B26 -> Dagopvang | D3: =basisgegevens!$B26 -> Dagopvang | E3: =basisgegevens!$B26 -> Dagopvang | F3: =basisgegevens!$B26 -> Dagopvang | G3: =basisgegevens!$B26 -> Dagopvang | H3: =basisgegevens!$B26 -> Dagopvang | I3: =basisgegevens!$B26 -> Dagopvang | J3: =basisgegevens!$B26 -> Dagopvang | K3: =basisgegevens!$B26 -> Dagopvang | L3: =basisgegevens!$B26 -> Dagopvang | M3: =basisgegevens!$B26 -> Dagopvang | N3: =basisgegevens!$B26 -> Dagopvang | O3: =basisgegevens!$B26 -> Dagopvang | P3: =basisgegevens!$B26 -> Dagopvang | Q3: =basisgegevens!$B26 -> Dagopvang | R3: =basisgegevens!$B26 -> Dagopvang | S3: =basisgegevens!$B26 -> Dagopvang | T3: =basisgegevens!$B26 -> Dagopvang | U3: =basisgegevens!$B26 -> Dagopvang | V3: =basisgegevens!$B26 -> Dagopvang
B4: =basisgegevens!$B27 -> Verblijf | C4: =basisgegevens!$B27 -> Verblijf | D4: =basisgegevens!$B27 -> Verblijf | E4: =basisgegevens!$B27 -> Verblijf | F4: =basisgegevens!$B27 -> Verblijf | G4: =basisgegevens!$B27 -> Verblijf | H4: =basisgegevens!$B27 -> Verblijf | I4: =basisgegevens!$B27 -> Verblijf | J4: =basisgegevens!$B27 -> Verblijf | K4: =basisgegevens!$B27 -> Verblijf | L4: =basisgegevens!$B27 -> Verblijf | M4: =basisgegevens!$B27 -> Verblijf | N4: =basisgegevens!$B27 -> Verblijf | O4: =basisgegevens!$B27 -> Verblijf | P4: =basisgegevens!$B27 -> Verblijf | Q4: =basisgegevens!$B27 -> Verblijf | R4: =basisgegevens!$B27 -> Verblijf | S4: =basisgegevens!$B27 -> Verblijf | T4: =basisgegevens!$B27 -> Verblijf | U4: =basisgegevens!$B27 -> Verblijf | V4: =basisgegevens!$B27 -> Verblijf
B5: =basisgegevens!$B28 -> Oproepbare permanentie | C5: =basisgegevens!$B28 -> Oproepbare permanentie | D5: =basisgegevens!$B28 -> Oproepbare permanentie | E5: =basisgegevens!$B28 -> Oproepbare permanentie | F5: =basisgegevens!$B28 -> Oproepbare permanentie | G5: =basisgegevens!$B28 -> Oproepbare permanentie | H5: =basisgegevens!$B28 -> Oproepbare permanentie | I5: =basisgegevens!$B28 -> Oproepbare permanentie | J5: =basisgegevens!$B28 -> Oproepbare permanentie | K5: =basisgegevens!$B28 -> Oproepbare permanentie | L5: =basisgegevens!$B28 -> Oproepbare permanentie | M5: =basisgegevens!$B28 -> Oproepbare permanentie | N5: =basisgegevens!$B28 -> Oproepbare permanentie | O5: =basisgegevens!$B28 -> Oproepbare permanentie | P5: =basisgegevens!$B28 -> Oproepbare permanentie | Q5: =basisgegevens!$B28 -> Oproepbare permanentie | R5: =basisgegevens!$B28 -> Oproepbare permanentie | S5: =basisgegevens!$B28 -> Oproepbare permanentie | T5: =basisgegevens!$B28 -> Oproepbare permanentie | U5: =basisgegevens!$B28 -> Oproepbare permanentie | V5: =basisgegevens!$B28 -> Oproepbare permanentie
B25: website::www.datisdevraag.be

Sheet keuzelijst vervoer (hidden)
B2: =basisgegevens!B36 -> Mindermobielencentrale | C2: =B2 -> Mindermobielencentrale | D2: =C2 -> Mindermobielencentrale | E2: Mindermobielencentrale | F2: Mindermobielencentrale | G2: Mindermobielencentrale | H2: Mindermobielencentrale | I2: Mindermobielencentrale | J2: Mindermobielencentrale | K2: Mindermobielencentrale | L2: Mindermobielencentrale | M2: Mindermobielencentrale | N2: Mindermobielencentrale | O2: Mindermobielencentrale | P2: Mindermobielencentrale | Q2: Mindermobielencentrale
B3: =basisgegevens!B37 -> DAV | C3: =B3 -> DAV | D3: DAV | E3: DAV | F3: DAV | G3: DAV | H3: DAV | I3: DAV | J3: DAV | K3: DAV | L3: DAV | M3: DAV | N3: DAV | O3: DAV | P3: DAV | Q3: DAV
B4: =basisgegevens!B38 -> Vervoerskosten vrijwilliger reële kost | C4: Vervoerskosten vrijwilliger reële kost | D4: Vervoerskosten vrijwilliger reële kost | E4: Vervoerskosten vrijwilliger reële kost | F4: Vervoerskosten vrijwilliger reële kost | G4: Vervoerskosten vrijwilliger reële kost | H4: Vervoerskosten vrijwilliger reële kost | I4: Vervoerskosten vrijwilliger reële kost | J4: Vervoerskosten vrijwilliger reële kost | K4: Vervoerskosten vrijwilliger reële kost | L4: Vervoerskosten vrijwilliger reële kost | M4: Vervoerskosten vrijwilliger reële kost | N4: Vervoerskosten vrijwilliger reële kost | O4: Vervoerskosten vrijwilliger reële kost | P4: Vervoerskosten vrijwilliger reële kost | Q4: Vervoerskosten vrijwilliger reële kost
B5: =basisgegevens!B39 -> Vervoerskosten vrijwilliger forfaietaire kost | C5: Vervoerskosten vrijwilliger forfaietaire kost | D5: Vervoerskosten vrijwilliger forfaietaire kost | E5: Vervoerskosten vrijwilliger forfaietaire kost | F5: Vervoerskosten vrijwilliger forfaietaire kost | G5: Vervoerskosten vrijwilliger forfaietaire kost | H5: Vervoerskosten vrijwilliger forfaietaire kost | I5: Vervoerskosten vrijwilliger forfaietaire kost | J5: Vervoerskosten vrijwilliger forfaietaire kost | K5: Vervoerskosten vrijwilliger forfaietaire kost | L5: Vervoerskosten vrijwilliger forfaietaire kost | M5: Vervoerskosten vrijwilliger forfaietaire kost | N5: Vervoerskosten vrijwilliger forfaietaire kost | O5: Vervoerskosten vrijwilliger forfaietaire kost | P5: Vervoerskosten vrijwilliger forfaietaire kost | Q5: Vervoerskosten vrijwilliger forfaietaire kost
B6: =basisgegevens!B40 -> Vervoerskosten assistenten | C6: Vervoerskosten assistenten | D6: Vervoerskosten assistenten | E6: Vervoerskosten assistenten | F6: Vervoerskosten assistenten | G6: Vervoerskosten assistenten | H6: Vervoerskosten assistenten | I6: Vervoerskosten assistenten | J6: Vervoerskosten assistenten | K6: Vervoerskosten assistenten | L6: Vervoerskosten assistenten | M6: Vervoerskosten assistenten | N6: Vervoerskosten assistenten | O6: Vervoerskosten assistenten | P6: Vervoerskosten assistenten | Q6: Vervoerskosten assistenten
B24: website::www.datisdevraag.be
B28: macro alles leegmaken: is overal de eerste lijn uitblanken

Sheet keuzelijst bijstand (hidden)
A2: =basisgegevens!$B30 -> Absoluut VZW
A3: =basisgegevens!$B31 -> Alin VZW
A4: =basisgegevens!$B32 -> My Assist VZW
A5: =basisgegevens!$B33 -> Onafhankelijk leven VZw
A6: =basisgegevens!$B34 -> Zoom VZW

Sheet invulscherm1 (hidden)
A1: j | J1: op budget: J/n
C3: 2 | D3: 7 | F3: 2 | G3: 4 | I3: 9 | J3: 10 | K3: 11 | M3: 15 | N3: 14
A4: Te besteden budget: | I4: Tarieven:
A6: Aard assistentie: | E6: Naam: | G6: Eenheid: | H6: Gemiddeld maandaantal | I6: Minimum | J6: Maximum | K6: Voorgesteld | L6: Te gebruiken: | M6: jaarbijdrage | O6: op budget?
N7: op budget?
B8: =CONCATENATE('keuzelijst assistent'!B1) ->  | C8: =IF(ISERROR(VLOOKUP(B8,basisgegevens!$A$1:$AB$50,$C$3,FALSE)),"",VLOOKUP(B8,basisgegevens!$A$1:$AB$404,$C$3,FALSE)) ->  | D8: =IF(ISERROR(VLOOKUP(B8,basisgegevens!$A$1:$ZL$50,$D$3,FALSE)),"",VLOOKUP(B8,basisgegevens!$A$1:$AB$50,$D$3,FALSE)) ->  | F8: =IF(ISERROR(VLOOKUP(B8,basisgegevens!A$1:$AB$50,$F$3,FALSE))," ",IF(B8="","",IF(D8="j",CONCATENATE(C8," ",E8),C8))) ->  | G8: =IF(ISERROR(VLOOKUP(B8,basisgegevens!$A$1:$AB$50,$G$3,FALSE)),"",VLOOKUP(B8,basisgegevens!$A$1:$AB$50,$G$3,FALSE)) ->  | I8: =IF(ISERROR(VLOOKUP(B8,basisgegevens!$A$1:$AB$50,$I$3,FALSE)),"",VLOOKUP(B8,basisgegevens!A1:AB50,$I$3,FALSE)) ->  | J8: =IF(ISERROR(VLOOKUP(B8,basisgegevens!$A$1:$AB$50,$J$3,FALSE)),"",VLOOKUP(B8,basisgegevens!$A$1:$AB$50,$J$3,FALSE)) ->  | K8: =IF(ISERROR(VLOOKUP(B8,basisgegevens!$A$1:$AB$50,$K$3,FALSE)),"",VLOOKUP(B8,basisgegevens!$A$1:$AB$50,$K$3,FALSE)) ->  | L8: =K8 ->  | M8: =IF(ISERROR(VLOOKUP(B8,basisgegevens!$A$1:$AB$50,$M$3,FALSE)),"",VLOOKUP(B8,basisgegevens!$A$1:$AB$50,$M$3,FALSE)) ->  | N8: =IF(ISERROR(VLOOKUP(B8,basisgegevens!$A$1:$AB$50,$N$3,FALSE)),"",VLOOKUP(B8,basisgegevens!$A$1:$AB$409,$N$3,FALSE)) ->  | O8: =N8 -> 
B9: =CONCATENATE('keuzelijst assistent'!C1) ->  | C9: =IF(ISERROR(VLOOKUP(B9,basisgegevens!$A$1:$AB$50,$C$3,FALSE)),"",VLOOKUP(B9,basisgegevens!$A$1:$AB$404,$C$3,FALSE)) ->  | D9: =IF(ISERROR(VLOOKUP(B9,basisgegevens!$A$1:$ZL$50,$D$3,FALSE)),"",VLOOKUP(B9,basisgegevens!$A$1:$AB$50,$D$3,FALSE)) ->  | F9: =IF(ISERROR(VLOOKUP(B9,basisgegevens!A$1:$AB$50,$F$3,FALSE))," ",IF(B9="","",IF(D9="j",CONCATENATE(C9," ",E9),C9))) ->  | G9: =IF(ISERROR(VLOOKUP(B9,basisgegevens!$A$1:$AB$50,$G$3,FALSE)),"",VLOOKUP(B9,basisgegevens!$A$1:$AB$50,$G$3,FALSE)) ->  | H9: 4 | I9: =IF(ISERROR(VLOOKUP(B9,basisgegevens!$A$1:$AB$50,$I$3,FALSE)),"",VLOOKUP(B9,basisgegevens!A16:AB50,$I$3,FALSE)) ->  | J9: =IF(ISERROR(VLOOKUP(B9,basisgegevens!$A$1:$AB$50,$J$3,FALSE)),"",VLOOKUP(B9,basisgegevens!$A$1:$AB$50,$J$3,FALSE)) ->  | K9: =IF(ISERROR(VLOOKUP(B9,basisgegevens!$A$1:$AB$50,$K$3,FALSE)),"",VLOOKUP(B9,basisgegevens!$A$1:$AB$50,$K$3,FALSE)) ->  | L9: =K9 ->  | M9: =IF(ISERROR(VLOOKUP(B9,basisgegevens!$A$1:$AB$50,$M$3,FALSE)),"",VLOOKUP(B9,basisgegevens!$A$1:$AB$50,$M$3,FALSE)) ->  | N9: =IF(ISERROR(VLOOKUP(B9,basisgegevens!$A$1:$AB$50,$N$3,FALSE)),"",VLOOKUP(B9,basisgegevens!$A$1:$AB$409,$N$3,FALSE)) ->  | O9: =N9 -> 
B10: =CONCATENATE('keuzelijst assistent'!D$1) ->  | C10: =IF(ISERROR(VLOOKUP(B10,basisgegevens!$A$1:$AB$50,$C$3,FALSE)),"",VLOOKUP(B10,basisgegevens!$A$1:$AB$404,$C$3,FALSE)) ->  | D10: =IF(ISERROR(VLOOKUP(B10,basisgegevens!$A$1:$ZL$50,$D$3,FALSE)),"",VLOOKUP(B10,basisgegevens!$A$1:$AB$50,$D$3,FALSE)) ->  | F10: =IF(ISERROR(VLOOKUP(B10,basisgegevens!A$1:$AB$50,$F$3,FALSE))," ",IF(B10="","",IF(D10="j",CONCATENATE(C10," ",E10),C10))) ->  | G10: =IF(ISERROR(VLOOKUP(B10,basisgegevens!$A$1:$AB$50,$G$3,FALSE)),"",VLOOKUP(B10,basisgegevens!$A$1:$AB$50,$G$3,FALSE)) ->  | I10: =IF(ISERROR(VLOOKUP(B10,basisgegevens!$A$1:$AB$50,$I$3,FALSE)),"",VLOOKUP(B10,basisgegevens!A2:AB50,$I$3,FALSE)) ->  | J10: =IF(ISERROR(VLOOKUP(B10,basisgegevens!$A$1:$AB$50,$J$3,FALSE)),"",VLOOKUP(B10,basisgegevens!$A$1:$AB$50,$J$3,FALSE)) ->  | K10: =IF(ISERROR(VLOOKUP(B10,basisgegevens!$A$1:$AB$50,$K$3,FALSE)),"",VLOOKUP(B10,basisgegevens!$A$1:$AB$50,$K$3,FALSE)) ->  | M10: =IF(ISERROR(VLOOKUP(B10,basisgegevens!$A$1:$AB$50,$M$3,FALSE)),"",VLOOKUP(B10,basisgegevens!$A$1:$AB$50,$M$3,FALSE)) ->  | N10: =IF(ISERROR(VLOOKUP(B10,basisgegevens!$A$1:$AB$50,$N$3,FALSE)),"",VLOOKUP(B10,basisgegevens!$A$1:$AB$409,$N$3,FALSE)) -> 
B11: =CONCATENATE('keuzelijst assistent'!E$1) ->  | C11: =IF(ISERROR(VLOOKUP(B11,basisgegevens!$A$1:$AB$50,$C$3,FALSE)),"",VLOOKUP(B11,basisgegevens!$A$1:$AB$404,$C$3,FALSE)) ->  | D11: =IF(ISERROR(VLOOKUP(B11,basisgegevens!$A$1:$ZL$50,$D$3,FALSE)),"",VLOOKUP(B11,basisgegevens!$A$1:$AB$50,$D$3,FALSE)) ->  | F11: =IF(ISERROR(VLOOKUP(B11,basisgegevens!A$1:$AB$50,$F$3,FALSE))," ",IF(B11="","",IF(D11="j",CONCATENATE(C11," ",E11),C11))) ->  | G11: =IF(ISERROR(VLOOKUP(B11,basisgegevens!$A$1:$AB$50,$G$3,FALSE)),"",VLOOKUP(B11,basisgegevens!$A$1:$AB$50,$G$3,FALSE)) ->  | I11: =IF(ISERROR(VLOOKUP(B11,basisgegevens!$A$1:$AB$50,$I$3,FALSE)),"",VLOOKUP(B11,basisgegevens!A23:AB50,$I$3,FALSE)) ->  | J11: =IF(ISERROR(VLOOKUP(B11,basisgegevens!$A$1:$AB$50,$J$3,FALSE)),"",VLOOKUP(B11,basisgegevens!$A$1:$AB$50,$J$3,FALSE)) ->  | K11: =IF(ISERROR(VLOOKUP(B11,basisgegevens!$A$1:$AB$50,$K$3,FALSE)),"",VLOOKUP(B11,basisgegevens!$A$1:$AB$50,$K$3,FALSE)) ->  | M11: =IF(ISERROR(VLOOKUP(B11,basisgegevens!$A$1:$AB$50,$M$3,FALSE)),"",VLOOKUP(B11,basisgegevens!$A$1:$AB$50,$M$3,FALSE)) ->  | N11: =IF(ISERROR(VLOOKUP(B11,basisgegevens!$A$1:$AB$50,$N$3,FALSE)),"",VLOOKUP(B11,basisgegevens!$A$1:$AB$409,$N$3,FALSE)) -> 
B12: =CONCATENATE('keuzelijst assistent'!F$1) ->  | C12: =IF(ISERROR(VLOOKUP(B12,basisgegevens!$A$1:$AB$50,$C$3,FALSE)),"",VLOOKUP(B12,basisgegevens!$A$1:$AB$404,$C$3,FALSE)) ->  | D12: =IF(ISERROR(VLOOKUP(B12,basisgegevens!$A$1:$ZL$50,$D$3,FALSE)),"",VLOOKUP(B12,basisgegevens!$A$1:$AB$50,$D$3,FALSE)) ->  | F12: =IF(ISERROR(VLOOKUP(B12,basisgegevens!A$1:$AB$50,$F$3,FALSE))," ",IF(B12="","",IF(D12="j",CONCATENATE(C12," ",E12),C12))) ->  | G12: =IF(ISERROR(VLOOKUP(B12,basisgegevens!$A$1:$AB$50,$G$3,FALSE)),"",VLOOKUP(B12,basisgegevens!$A$1:$AB$50,$G$3,FALSE)) ->  | I12: =IF(ISERROR(VLOOKUP(B12,basisgegevens!$A$1:$AB$50,$I$3,FALSE)),"",VLOOKUP(B12,basisgegevens!A43:AB50,$I$3,FALSE)) ->  | J12: =IF(ISERROR(VLOOKUP(B12,basisgegevens!$A$1:$AB$50,$J$3,FALSE)),"",VLOOKUP(B12,basisgegevens!$A$1:$AB$50,$J$3,FALSE)) ->  | K12: =IF(ISERROR(VLOOKUP(B12,basisgegevens!$A$1:$AB$50,$K$3,FALSE)),"",VLOOKUP(B12,basisgegevens!$A$1:$AB$50,$K$3,FALSE)) ->  | M12: =IF(ISERROR(VLOOKUP(B12,basisgegevens!$A$1:$AB$50,$M$3,FALSE)),"",VLOOKUP(B12,basisgegevens!$A$1:$AB$50,$M$3,FALSE)) ->  | N12: =IF(ISERROR(VLOOKUP(B12,basisgegevens!$A$1:$AB$50,$N$3,FALSE)),"",VLOOKUP(B12,basisgegevens!$A$1:$AB$409,$N$3,FALSE)) -> 
B13: =CONCATENATE('keuzelijst assistent'!G$1) ->  | C13: =IF(ISERROR(VLOOKUP(B13,basisgegevens!$A$1:$AB$50,$C$3,FALSE)),"",VLOOKUP(B13,basisgegevens!$A$1:$AB$404,$C$3,FALSE)) ->  | D13: =IF(ISERROR(VLOOKUP(B13,basisgegevens!$A$1:$ZL$50,$D$3,FALSE)),"",VLOOKUP(B13,basisgegevens!$A$1:$AB$50,$D$3,FALSE)) ->  | F13: =IF(ISERROR(VLOOKUP(B13,basisgegevens!A$1:$AB$50,$F$3,FALSE))," ",IF(B13="","",IF(D13="j",CONCATENATE(C13," ",E13),C13))) ->  | G13: =IF(ISERROR(VLOOKUP(B13,basisgegevens!$A$1:$AB$50,$G$3,FALSE)),"",VLOOKUP(B13,basisgegevens!$A$1:$AB$50,$G$3,FALSE)) ->  | I13: =IF(ISERROR(VLOOKUP(B13,basisgegevens!$A$1:$AB$50,$I$3,FALSE)),"",VLOOKUP(B13,basisgegevens!A23:AB50,$I$3,FALSE)) ->  | J13: =IF(ISERROR(VLOOKUP(B13,basisgegevens!$A$1:$AB$50,$J$3,FALSE)),"",VLOOKUP(B13,basisgegevens!$A$1:$AB$50,$J$3,FALSE)) ->  | K13: =IF(ISERROR(VLOOKUP(B13,basisgegevens!$A$1:$AB$50,$K$3,FALSE)),"",VLOOKUP(B13,basisgegevens!$A$1:$AB$50,$K$3,FALSE)) ->  | M13: =IF(ISERROR(VLOOKUP(B13,basisgegevens!$A$1:$AB$50,$M$3,FALSE)),"",VLOOKUP(B13,basisgegevens!$A$1:$AB$50,$M$3,FALSE)) ->  | N13: =IF(ISERROR(VLOOKUP(B13,basisgegevens!$A$1:$AB$50,$N$3,FALSE)),"",VLOOKUP(B13,basisgegevens!$A$1:$AB$409,$N$3,FALSE)) -> 
B14: =CONCATENATE('keuzelijst assistent'!H$1) ->  | C14: =IF(ISERROR(VLOOKUP(B14,basisgegevens!$A$1:$AB$50,$C$3,FALSE)),"",VLOOKUP(B14,basisgegevens!$A$1:$AB$404,$C$3,FALSE)) ->  | D14: =IF(ISERROR(VLOOKUP(B14,basisgegevens!$A$1:$ZL$50,$D$3,FALSE)),"",VLOOKUP(B14,basisgegevens!$A$1:$AB$50,$D$3,FALSE)) ->  | F14: =IF(ISERROR(VLOOKUP(B14,basisgegevens!A$1:$AB$50,$F$3,FALSE))," ",IF(B14="","",IF(D14="j",CONCATENATE(C14," ",E14),C14))) ->  | G14: =IF(ISERROR(VLOOKUP(B14,basisgegevens!$A$1:$AB$50,$G$3,FALSE)),"",VLOOKUP(B14,basisgegevens!$A$1:$AB$50,$G$3,FALSE)) ->  | I14: =IF(ISERROR(VLOOKUP(B14,basisgegevens!$A$1:$AB$50,$I$3,FALSE)),"",VLOOKUP(B14,basisgegevens!A8:AB50,$I$3,FALSE)) ->  | J14: =IF(ISERROR(VLOOKUP(B14,basisgegevens!$A$1:$AB$50,$J$3,FALSE)),"",VLOOKUP(B14,basisgegevens!$A$1:$AB$50,$J$3,FALSE)) ->  | K14: =IF(ISERROR(VLOOKUP(B14,basisgegevens!$A$1:$AB$50,$K$3,FALSE)),"",VLOOKUP(B14,basisgegevens!$A$1:$AB$50,$K$3,FALSE)) ->  | M14: =IF(ISERROR(VLOOKUP(B14,basisgegevens!$A$1:$AB$50,$M$3,FALSE)),"",VLOOKUP(B14,basisgegevens!$A$1:$AB$50,$M$3,FALSE)) ->  | N14: =IF(ISERROR(VLOOKUP(B14,basisgegevens!$A$1:$AB$50,$N$3,FALSE)),"",VLOOKUP(B14,basisgegevens!$A$1:$AB$409,$N$3,FALSE)) -> 
B15: =CONCATENATE('keuzelijst assistent'!I$1) ->  | C15: =IF(ISERROR(VLOOKUP(B15,basisgegevens!$A$1:$AB$50,$C$3,FALSE)),"",VLOOKUP(B15,basisgegevens!$A$1:$AB$404,$C$3,FALSE)) ->  | D15: =IF(ISERROR(VLOOKUP(B15,basisgegevens!$A$1:$ZL$50,$D$3,FALSE)),"",VLOOKUP(B15,basisgegevens!$A$1:$AB$50,$D$3,FALSE)) ->  | E15: ingrid | F15: =IF(ISERROR(VLOOKUP(B15,basisgegevens!A$1:$AB$50,$F$3,FALSE))," ",IF(B15="","",IF(D15="j",CONCATENATE(C15," ",E15),C15))) ->  | G15: =IF(ISERROR(VLOOKUP(B15,basisgegevens!$A$1:$AB$50,$G$3,FALSE)),"",VLOOKUP(B15,basisgegevens!$A$1:$AB$50,$G$3,FALSE)) ->  | I15: =IF(ISERROR(VLOOKUP(B15,basisgegevens!$A$1:$AB$50,$I$3,FALSE)),"",VLOOKUP(B15,basisgegevens!A4:AB50,$I$3,FALSE)) ->  | J15: =IF(ISERROR(VLOOKUP(B15,basisgegevens!$A$1:$AB$50,$J$3,FALSE)),"",VLOOKUP(B15,basisgegevens!$A$1:$AB$50,$J$3,FALSE)) ->  | K15: =IF(ISERROR(VLOOKUP(B15,basisgegevens!$A$1:$AB$50,$K$3,FALSE)),"",VLOOKUP(B15,basisgegevens!$A$1:$AB$50,$K$3,FALSE)) ->  | M15: =IF(ISERROR(VLOOKUP(B15,basisgegevens!$A$1:$AB$50,$M$3,FALSE)),"",VLOOKUP(B15,basisgegevens!$A$1:$AB$50,$M$3,FALSE)) ->  | N15: =IF(ISERROR(VLOOKUP(B15,basisgegevens!$A$1:$AB$50,$N$3,FALSE)),"",VLOOKUP(B15,basisgegevens!$A$1:$AB$409,$N$3,FALSE)) -> 
B16: =CONCATENATE('keuzelijst assistent'!J$1) ->  | C16: =IF(ISERROR(VLOOKUP(B16,basisgegevens!$A$1:$AB$50,$C$3,FALSE)),"",VLOOKUP(B16,basisgegevens!$A$1:$AB$404,$C$3,FALSE)) ->  | D16: =IF(ISERROR(VLOOKUP(B16,basisgegevens!$A$1:$ZL$50,$D$3,FALSE)),"",VLOOKUP(B16,basisgegevens!$A$1:$AB$50,$D$3,FALSE)) ->  | E16: Noor | F16: =IF(ISERROR(VLOOKUP(B16,basisgegevens!A$1:$AB$50,$F$3,FALSE))," ",IF(B16="","",IF(D16="j",CONCATENATE(C16," ",E16),C16))) ->  | G16: =IF(ISERROR(VLOOKUP(B16,basisgegevens!$A$1:$AB$50,$G$3,FALSE)),"",VLOOKUP(B16,basisgegevens!$A$1:$AB$50,$G$3,FALSE)) ->  | I16: =IF(ISERROR(VLOOKUP(B16,basisgegevens!$A$1:$AB$50,$I$3,FALSE)),"",VLOOKUP(B16,basisgegevens!A23:AB50,$I$3,FALSE)) ->  | J16: =IF(ISERROR(VLOOKUP(B16,basisgegevens!$A$1:$AB$50,$J$3,FALSE)),"",VLOOKUP(B16,basisgegevens!$A$1:$AB$50,$J$3,FALSE)) ->  | K16: =IF(ISERROR(VLOOKUP(B16,basisgegevens!$A$1:$AB$50,$K$3,FALSE)),"",VLOOKUP(B16,basisgegevens!$A$1:$AB$50,$K$3,FALSE)) ->  | M16: =IF(ISERROR(VLOOKUP(B16,basisgegevens!$A$1:$AB$50,$M$3,FALSE)),"",VLOOKUP(B16,basisgegevens!$A$1:$AB$50,$M$3,FALSE)) ->  | N16: =IF(ISERROR(VLOOKUP(B16,basisgegevens!$A$1:$AB$50,$N$3,FALSE)),"",VLOOKUP(B16,basisgegevens!$A$1:$AB$409,$N$3,FALSE)) -> 
B17: =CONCATENATE('keuzelijst assistent'!K$1) ->  | C17: =IF(ISERROR(VLOOKUP(B17,basisgegevens!$A$1:$AB$50,$C$3,FALSE)),"",VLOOKUP(B17,basisgegevens!$A$1:$AB$404,$C$3,FALSE)) ->  | D17: =IF(ISERROR(VLOOKUP(B17,basisgegevens!$A$1:$ZL$50,$D$3,FALSE)),"",VLOOKUP(B17,basisgegevens!$A$1:$AB$50,$D$3,FALSE)) ->  | E17: Emma | F17: =IF(ISERROR(VLOOKUP(B17,basisgegevens!A$1:$AB$50,$F$3,FALSE))," ",IF(B17="","",IF(D17="j",CONCATENATE(C17," ",E17),C17))) ->  | G17: =IF(ISERROR(VLOOKUP(B17,basisgegevens!$A$1:$AB$50,$G$3,FALSE)),"",VLOOKUP(B17,basisgegevens!$A$1:$AB$50,$G$3,FALSE)) ->  | I17: =IF(ISERROR(VLOOKUP(B17,basisgegevens!$A$1:$AB$50,$I$3,FALSE)),"",VLOOKUP(B17,basisgegevens!A8:AB51,$I$3,FALSE)) ->  | J17: =IF(ISERROR(VLOOKUP(B17,basisgegevens!$A$1:$AB$50,$J$3,FALSE)),"",VLOOKUP(B17,basisgegevens!$A$1:$AB$50,$J$3,FALSE)) ->  | K17: =IF(ISERROR(VLOOKUP(B17,basisgegevens!$A$1:$AB$50,$K$3,FALSE)),"",VLOOKUP(B17,basisgegevens!$A$1:$AB$50,$K$3,FALSE)) ->  | M17: =IF(ISERROR(VLOOKUP(B17,basisgegevens!$A$1:$AB$50,$M$3,FALSE)),"",VLOOKUP(B17,basisgegevens!$A$1:$AB$50,$M$3,FALSE)) ->  | N17: =IF(ISERROR(VLOOKUP(B17,basisgegevens!$A$1:$AB$50,$N$3,FALSE)),"",VLOOKUP(B17,basisgegevens!$A$1:$AB$409,$N$3,FALSE)) -> 
B18: =CONCATENATE('keuzelijst assistent'!L$1) ->  | C18: =IF(ISERROR(VLOOKUP(B18,basisgegevens!$A$1:$AB$50,$C$3,FALSE)),"",VLOOKUP(B18,basisgegevens!$A$1:$AB$404,$C$3,FALSE)) ->  | D18: =IF(ISERROR(VLOOKUP(B18,basisgegevens!$A$1:$ZL$50,$D$3,FALSE)),"",VLOOKUP(B18,basisgegevens!$A$1:$AB$50,$D$3,FALSE)) ->  | E18: Wim | F18: =IF(ISERROR(VLOOKUP(B18,basisgegevens!A$1:$AB$50,$F$3,FALSE))," ",IF(B18="","",IF(D18="j",CONCATENATE(C18," ",E18),C18))) ->  | G18: =IF(ISERROR(VLOOKUP(B18,basisgegevens!$A$1:$AB$50,$G$3,FALSE)),"",VLOOKUP(B18,basisgegevens!$A$1:$AB$50,$G$3,FALSE)) ->  | I18: =IF(ISERROR(VLOOKUP(B18,basisgegevens!$A$1:$AB$50,$I$3,FALSE)),"",VLOOKUP(B18,basisgegevens!A8:AB52,$I$3,FALSE)) ->  | J18: =IF(ISERROR(VLOOKUP(B18,basisgegevens!$A$1:$AB$50,$J$3,FALSE)),"",VLOOKUP(B18,basisgegevens!$A$1:$AB$50,$J$3,FALSE)) ->  | K18: =IF(ISERROR(VLOOKUP(B18,basisgegevens!$A$1:$AB$50,$K$3,FALSE)),"",VLOOKUP(B18,basisgegevens!$A$1:$AB$50,$K$3,FALSE)) ->  | M18: =IF(ISERROR(VLOOKUP(B18,basisgegevens!$A$1:$AB$50,$M$3,FALSE)),"",VLOOKUP(B18,basisgegevens!$A$1:$AB$50,$M$3,FALSE)) ->  | N18: =IF(ISERROR(VLOOKUP(B18,basisgegevens!$A$1:$AB$50,$N$3,FALSE)),"",VLOOKUP(B18,basisgegevens!$A$1:$AB$409,$N$3,FALSE)) -> 
B19: =CONCATENATE('keuzelijst assistent'!M$1) ->  | C19: =IF(ISERROR(VLOOKUP(B19,basisgegevens!$A$1:$AB$50,$C$3,FALSE)),"",VLOOKUP(B19,basisgegevens!$A$1:$AB$404,$C$3,FALSE)) ->  | D19: =IF(ISERROR(VLOOKUP(B19,basisgegevens!$A$1:$ZL$50,$D$3,FALSE)),"",VLOOKUP(B19,basisgegevens!$A$1:$AB$50,$D$3,FALSE)) ->  | F19: =IF(ISERROR(VLOOKUP(B19,basisgegevens!A$1:$AB$50,$F$3,FALSE))," ",IF(B19="","",IF(D19="j",CONCATENATE(C19," ",E19),C19))) ->  | G19: =IF(ISERROR(VLOOKUP(B19,basisgegevens!$A$1:$AB$50,$G$3,FALSE)),"",VLOOKUP(B19,basisgegevens!$A$1:$AB$50,$G$3,FALSE)) ->  | I19: =IF(ISERROR(VLOOKUP(B19,basisgegevens!$A$1:$AB$50,$I$3,FALSE)),"",VLOOKUP(B19,basisgegevens!A8:AB53,$I$3,FALSE)) ->  | J19: =IF(ISERROR(VLOOKUP(B19,basisgegevens!$A$1:$AB$50,$J$3,FALSE)),"",VLOOKUP(B19,basisgegevens!$A$1:$AB$50,$J$3,FALSE)) ->  | K19: =IF(ISERROR(VLOOKUP(B19,basisgegevens!$A$1:$AB$50,$K$3,FALSE)),"",VLOOKUP(B19,basisgegevens!$A$1:$AB$50,$K$3,FALSE)) ->  | M19: =IF(ISERROR(VLOOKUP(B19,basisgegevens!$A$1:$AB$50,$M$3,FALSE)),"",VLOOKUP(B19,basisgegevens!$A$1:$AB$50,$M$3,FALSE)) ->  | N19: =IF(ISERROR(VLOOKUP(B19,basisgegevens!$A$1:$AB$50,$N$3,FALSE)),"",VLOOKUP(B19,basisgegevens!$A$1:$AB$409,$N$3,FALSE)) -> 
B20: =CONCATENATE('keuzelijst assistent'!N$1) ->  | C20: =IF(ISERROR(VLOOKUP(B20,basisgegevens!$A$1:$AB$50,$C$3,FALSE)),"",VLOOKUP(B20,basisgegevens!$A$1:$AB$404,$C$3,FALSE)) ->  | D20: =IF(ISERROR(VLOOKUP(B20,basisgegevens!$A$1:$ZL$50,$D$3,FALSE)),"",VLOOKUP(B20,basisgegevens!$A$1:$AB$50,$D$3,FALSE)) ->  | F20: =IF(ISERROR(VLOOKUP(B20,basisgegevens!A$1:$AB$50,$F$3,FALSE))," ",IF(B20="","",IF(D20="j",CONCATENATE(C20," ",E20),C20))) ->  | G20: =IF(ISERROR(VLOOKUP(B20,basisgegevens!$A$1:$AB$50,$G$3,FALSE)),"",VLOOKUP(B20,basisgegevens!$A$1:$AB$50,$G$3,FALSE)) ->  | I20: =IF(ISERROR(VLOOKUP(B20,basisgegevens!$A$1:$AB$50,$I$3,FALSE)),"",VLOOKUP(B20,basisgegevens!A25:AB54,$I$3,FALSE)) ->  | J20: =IF(ISERROR(VLOOKUP(B20,basisgegevens!$A$1:$AB$50,$J$3,FALSE)),"",VLOOKUP(B20,basisgegevens!$A$1:$AB$50,$J$3,FALSE)) ->  | K20: =IF(ISERROR(VLOOKUP(B20,basisgegevens!$A$1:$AB$50,$K$3,FALSE)),"",VLOOKUP(B20,basisgegevens!$A$1:$AB$50,$K$3,FALSE)) ->  | M20: =IF(ISERROR(VLOOKUP(B20,basisgegevens!$A$1:$AB$50,$M$3,FALSE)),"",VLOOKUP(B20,basisgegevens!$A$1:$AB$50,$M$3,FALSE)) ->  | N20: =IF(ISERROR(VLOOKUP(B20,basisgegevens!$A$1:$AB$50,$N$3,FALSE)),"",VLOOKUP(B20,basisgegevens!$A$1:$AB$409,$N$3,FALSE)) -> 
B21: =CONCATENATE('keuzelijst assistent'!O$1) ->  | C21: =IF(ISERROR(VLOOKUP(B21,basisgegevens!$A$1:$AB$50,$C$3,FALSE)),"",VLOOKUP(B21,basisgegevens!$A$1:$AB$404,$C$3,FALSE)) ->  | D21: =IF(ISERROR(VLOOKUP(B21,basisgegevens!$A$1:$ZL$50,$D$3,FALSE)),"",VLOOKUP(B21,basisgegevens!$A$1:$AB$50,$D$3,FALSE)) ->  | F21: =IF(ISERROR(VLOOKUP(B21,basisgegevens!A$1:$AB$50,$F$3,FALSE))," ",IF(B21="","",IF(D21="j",CONCATENATE(C21," ",E21),C21))) ->  | G21: =IF(ISERROR(VLOOKUP(B21,basisgegevens!$A$1:$AB$50,$G$3,FALSE)),"",VLOOKUP(B21,basisgegevens!$A$1:$AB$50,$G$3,FALSE)) ->  | I21: =IF(ISERROR(VLOOKUP(B21,basisgegevens!$A$1:$AB$50,$I$3,FALSE)),"",VLOOKUP(B21,basisgegevens!A4:AB55,$I$3,FALSE)) ->  | J21: =IF(ISERROR(VLOOKUP(B21,basisgegevens!$A$1:$AB$50,$J$3,FALSE)),"",VLOOKUP(B21,basisgegevens!$A$1:$AB$50,$J$3,FALSE)) ->  | K21: =IF(ISERROR(VLOOKUP(B21,basisgegevens!$A$1:$AB$50,$K$3,FALSE)),"",VLOOKUP(B21,basisgegevens!$A$1:$AB$50,$K$3,FALSE)) ->  | M21: =IF(ISERROR(VLOOKUP(B21,basisgegevens!$A$1:$AB$50,$M$3,FALSE)),"",VLOOKUP(B21,basisgegevens!$A$1:$AB$50,$M$3,FALSE)) ->  | N21: =IF(ISERROR(VLOOKUP(B21,basisgegevens!$A$1:$AB$50,$N$3,FALSE)),"",VLOOKUP(B21,basisgegevens!$A$1:$AB$409,$N$3,FALSE)) -> 
B22: =CONCATENATE('keuzelijst assistent'!P$1) ->  | C22: =IF(ISERROR(VLOOKUP(B22,basisgegevens!$A$1:$AB$50,$C$3,FALSE)),"",VLOOKUP(B22,basisgegevens!$A$1:$AB$404,$C$3,FALSE)) ->  | D22: =IF(ISERROR(VLOOKUP(B22,basisgegevens!$A$1:$ZL$50,$D$3,FALSE)),"",VLOOKUP(B22,basisgegevens!$A$1:$AB$50,$D$3,FALSE)) ->  | F22: =IF(ISERROR(VLOOKUP(B22,basisgegevens!A$1:$AB$50,$F$3,FALSE))," ",IF(B22="","",IF(D22="j",CONCATENATE(C22," ",E22),C22))) ->  | G22: =IF(ISERROR(VLOOKUP(B22,basisgegevens!$A$1:$AB$50,$G$3,FALSE)),"",VLOOKUP(B22,basisgegevens!$A$1:$AB$50,$G$3,FALSE)) ->  | H22: 35 | I22: =IF(ISERROR(VLOOKUP(B22,basisgegevens!$A$1:$AB$50,$I$3,FALSE)),"",VLOOKUP(B22,basisgegevens!A24:AB56,$I$3,FALSE)) ->  | J22: =IF(ISERROR(VLOOKUP(B22,basisgegevens!$A$1:$AB$50,$J$3,FALSE)),"",VLOOKUP(B22,basisgegevens!$A$1:$AB$50,$J$3,FALSE)) ->  | K22: =IF(ISERROR(VLOOKUP(B22,basisgegevens!$A$1:$AB$50,$K$3,FALSE)),"",VLOOKUP(B22,basisgegevens!$A$1:$AB$50,$K$3,FALSE)) ->  | M22: =IF(ISERROR(VLOOKUP(B22,basisgegevens!$A$1:$AB$50,$M$3,FALSE)),"",VLOOKUP(B22,basisgegevens!$A$1:$AB$50,$M$3,FALSE)) ->  | N22: =IF(ISERROR(VLOOKUP(B22,basisgegevens!$A$1:$AB$50,$N$3,FALSE)),"",VLOOKUP(B22,basisgegevens!$A$1:$AB$409,$N$3,FALSE)) -> 
B23: =CONCATENATE('keuzelijst assistent'!Q$1) ->  | C23: =IF(ISERROR(VLOOKUP(B23,basisgegevens!$A$1:$AB$50,$C$3,FALSE)),"",VLOOKUP(B23,basisgegevens!$A$1:$AB$404,$C$3,FALSE)) ->  | D23: =IF(ISERROR(VLOOKUP(B23,basisgegevens!$A$1:$ZL$50,$D$3,FALSE)),"",VLOOKUP(B23,basisgegevens!$A$1:$AB$50,$D$3,FALSE)) ->  | F23: =IF(ISERROR(VLOOKUP(B23,basisgegevens!A$1:$AB$50,$F$3,FALSE))," ",IF(B23="","",IF(D23="j",CONCATENATE(C23," ",E23),C23))) ->  | G23: =IF(ISERROR(VLOOKUP(B23,basisgegevens!$A$1:$AB$50,$G$3,FALSE)),"",VLOOKUP(B23,basisgegevens!$A$1:$AB$50,$G$3,FALSE)) ->  | I23: =IF(ISERROR(VLOOKUP(B23,basisgegevens!$A$1:$AB$50,$I$3,FALSE)),"",VLOOKUP(B23,basisgegevens!A25:AB57,$I$3,FALSE)) ->  | J23: =IF(ISERROR(VLOOKUP(B23,basisgegevens!$A$1:$AB$50,$J$3,FALSE)),"",VLOOKUP(B23,basisgegevens!$A$1:$AB$50,$J$3,FALSE)) ->  | K23: =IF(ISERROR(VLOOKUP(B23,basisgegevens!$A$1:$AB$50,$K$3,FALSE)),"",VLOOKUP(B23,basisgegevens!$A$1:$AB$50,$K$3,FALSE)) ->  | M23: =IF(ISERROR(VLOOKUP(B23,basisgegevens!$A$1:$AB$50,$M$3,FALSE)),"",VLOOKUP(B23,basisgegevens!$A$1:$AB$50,$M$3,FALSE)) ->  | N23: =IF(ISERROR(VLOOKUP(B23,basisgegevens!$A$1:$AB$50,$N$3,FALSE)),"",VLOOKUP(B23,basisgegevens!$A$1:$AB$409,$N$3,FALSE)) -> 
G24: =IF(ISERROR(VLOOKUP(B24,basisgegevens!$A$1:$AB$50,$G$3,FALSE)),"",VLOOKUP(B24,basisgegevens!$A$1:$AB$50,$G$3,FALSE)) ->  | K24: =IF(ISERROR(VLOOKUP(B24,basisgegevens!$A$1:$AB$50,$K$3,FALSE)),"",VLOOKUP(B24,basisgegevens!$A$1:$AB$50,$K$3,FALSE)) ->  | M24: =IF(ISERROR(VLOOKUP(B24,basisgegevens!$A$1:$AB$50,$M$3,FALSE)),"",VLOOKUP(B24,basisgegevens!$A$1:$AB$50,$M$3,FALSE)) ->  | N24: =IF(ISERROR(VLOOKUP(B24,basisgegevens!$A$1:$AB$50,$N$3,FALSE)),"",VLOOKUP(B24,basisgegevens!$A$1:$AB$409,$N$3,FALSE)) -> 
A28: Gemiddeld = te gebruiken, maar kan ook het meest gebruikt bedrag zijn??? Vb MMC 0,3? | L28: aangepast bedrag hoe aanduiden? Achtergrond, of tekstkleur?
L29: buiten de grenzen: rode achtergrond??
A30: jaarbedrag: te wijzigen??
A33: wat deon bij wijzigingen?
A34: lijnen kunnen niet zomaar gecopierd worden, max aantal te voorzien
A36: Evebtueel in groepen werken !!
A37: Blok vervoer, blok assistenten….

Sheet individuele bedragen
D3: 2 | E3: 9 | G3: 2 | H3: 4 | J3: 11 | K3: 12 | L3: 13 | N3: 6 | O3: 7 | Q3: 17 | R3: 16 | T3: 14
I4: TARIEVEN
A6: WISSEN LIJN | B6: AARD ONDERSTEUNING | F6: NAAM | H6: EENHEID | I6: GEMIDDELD MAANDAANTAL | J6: MINIMUM | K6: MAXIMUM | L6: RICHTPRIJS | M6: REËLE PRIJS | N6: FACTOR | P6: RAMING KOSTPRIJS | Q6: EXTRA KOSTEN PER JAAR | R6: OP BUDGET? | S6: OP BUDGET? | T6: JAARLIMIET
N7: + of *
B8: Assistenten | N8: =IF(ISERROR(VLOOKUP(C8,basisgegevens!$A$1:$AB$50,$N$3,FALSE)),"",IF(VLOOKUP(C8,basisgegevens!$A$1:$AB$50,$N$3,FALSE)=0,"",VLOOKUP(C8,basisgegevens!$A$1:$AB$50,$N$3,FALSE))) -> 
C9: =IF('keuzelijst assistent'!$B$1="","",CONCATENATE('keuzelijst assistent'!$B$1)) ->  | D9: =IF(ISERROR(VLOOKUP(C9,basisgegevens!$A$1:$AB$50,$D$3,FALSE)),"",VLOOKUP(C9,basisgegevens!$A$1:$AB$404,$D$3,FALSE)) ->  | E9: =IF(ISERROR(VLOOKUP(C9,basisgegevens!$A$1:$ZL$50,$E$3,FALSE)),"",VLOOKUP(C9,basisgegevens!$A$1:$AB$50,$E$3,FALSE)) ->  | G9: =IF(C9="","",CONCATENATE(D9," ",F9)) ->  | H9: =IF(ISERROR(VLOOKUP(C9,basisgegevens!$A$1:$AB$50,$H$3,FALSE)),"",VLOOKUP(C9,basisgegevens!$A$1:$AB$50,$H$3,FALSE)) ->  | J9: =IF(ISERROR(VLOOKUP(C9,basisgegevens!$A$1:$AB$50,$J$3,FALSE)),"",VLOOKUP(C9,basisgegevens!$A$1:$AB$50,$J$3,FALSE)) ->  | K9: =IF(ISERROR(VLOOKUP(C9,basisgegevens!$A$1:$AB$50,$K$3,FALSE)),"",VLOOKUP(C9,basisgegevens!$A$1:$AB$50,$K$3,FALSE)) ->  | L9: =IF(ISERROR(VLOOKUP(C9,basisgegevens!$A$1:$AB$50,$L$3,FALSE)),"",VLOOKUP(C9,basisgegevens!$A$1:$AB$50,$L$3,FALSE)) ->  | M9: =IF(L9="","",L9) ->  | N9: =IF(ISERROR(VLOOKUP(C9,basisgegevens!$A$1:$AB$50,$N$3,FALSE)),"",IF(VLOOKUP(C9,basisgegevens!$A$1:$AB$50,$N$3,FALSE)=0,"",VLOOKUP(C9,basisgegevens!$A$1:$AB$50,$N$3,FALSE))) ->  | O9: =IF(ISERROR(VLOOKUP(C9,basisgegevens!$A$1:$AB$50,$O$3,FALSE)),"",VLOOKUP(C9,basisgegevens!$A$1:$AB$50,$O$3,FALSE)) ->  | P9: =IF(M9="","",IF(M9=0,0,IF(N9="+",M9+O9,IF(N9="*",M9*O9,M9)))) ->  | Q9: =IF(ISERROR(VLOOKUP(C9,basisgegevens!$A$1:$AB$50,$Q$3,FALSE)),"",VLOOKUP(C9,basisgegevens!$A$1:$AB$50,$Q$3,FALSE)) ->  | R9: =IF(ISERROR(VLOOKUP(C9,basisgegevens!$A$1:$AB$50,$R$3,FALSE)),"",VLOOKUP(C9,basisgegevens!$A$1:$AB$409,$R$3,FALSE)) ->  | S9: =R9 ->  | T9: =IF(ISERROR(VLOOKUP(C9,basisgegevens!$A$1:$AB$50,$T$3,FALSE)),"",VLOOKUP(C9,basisgegevens!$A$1:$AB$409,$T$3,FALSE)) -> 
C10: =IF('keuzelijst assistent'!$C$1="","",CONCATENATE('keuzelijst assistent'!$C$1)) ->  | D10: =IF(ISERROR(VLOOKUP(C10,basisgegevens!$A$1:$AB$50,$D$3,FALSE)),"",VLOOKUP(C10,basisgegevens!$A$1:$AB$404,$D$3,FALSE)) ->  | E10: =IF(ISERROR(VLOOKUP(C10,basisgegevens!$A$1:$ZL$50,$E$3,FALSE)),"",VLOOKUP(C10,basisgegevens!$A$1:$AB$50,$E$3,FALSE)) ->  | G10: =IF(C10="","",CONCATENATE(D10," ",F10)) ->  | H10: =IF(ISERROR(VLOOKUP(C10,basisgegevens!$A$1:$AB$50,$H$3,FALSE)),"",VLOOKUP(C10,basisgegevens!$A$1:$AB$50,$H$3,FALSE)) ->  | J10: =IF(ISERROR(VLOOKUP(C10,basisgegevens!$A$1:$AB$50,$J$3,FALSE)),"",VLOOKUP(C10,basisgegevens!$A$1:$AB$50,$J$3,FALSE)) ->  | K10: =IF(ISERROR(VLOOKUP(C10,basisgegevens!$A$1:$AB$50,$K$3,FALSE)),"",VLOOKUP(C10,basisgegevens!$A$1:$AB$50,$K$3,FALSE)) ->  | L10: =IF(ISERROR(VLOOKUP(C10,basisgegevens!$A$1:$AB$50,$L$3,FALSE)),"",VLOOKUP(C10,basisgegevens!$A$1:$AB$50,$L$3,FALSE)) ->  | M10: =IF(L10="","",L10) ->  | N10: =IF(ISERROR(VLOOKUP(C10,basisgegevens!$A$1:$AB$50,$N$3,FALSE)),"",IF(VLOOKUP(C10,basisgegevens!$A$1:$AB$50,$N$3,FALSE)=0,"",VLOOKUP(C10,basisgegevens!$A$1:$AB$50,$N$3,FALSE))) ->  | O10: =IF(ISERROR(VLOOKUP(C10,basisgegevens!$A$1:$AB$50,$O$3,FALSE)),"",VLOOKUP(C10,basisgegevens!$A$1:$AB$50,$O$3,FALSE)) ->  | P10: =IF(M10="","",IF(M10=0,0,IF(N10="+",M10+O10,IF(N10="*",M10*O10,M10)))) ->  | Q10: =IF(ISERROR(VLOOKUP(C10,basisgegevens!$A$1:$AB$50,$Q$3,FALSE)),"",VLOOKUP(C10,basisgegevens!$A$1:$AB$50,$Q$3,FALSE)) ->  | R10: =IF(ISERROR(VLOOKUP(C10,basisgegevens!$A$1:$AB$50,$R$3,FALSE)),"",VLOOKUP(C10,basisgegevens!$A$1:$AB$409,$R$3,FALSE)) ->  | S10: =R10 ->  | T10: =IF(ISERROR(VLOOKUP(C10,basisgegevens!$A$1:$AB$50,$T$3,FALSE)),"",VLOOKUP(C10,basisgegevens!$A$1:$AB$409,$T$3,FALSE)) -> 
C11: =IF('keuzelijst assistent'!$D$1="","",CONCATENATE('keuzelijst assistent'!$D$1)) ->  | D11: =IF(ISERROR(VLOOKUP(C11,basisgegevens!$A$1:$AB$50,$D$3,FALSE)),"",VLOOKUP(C11,basisgegevens!$A$1:$AB$404,$D$3,FALSE)) ->  | E11: =IF(ISERROR(VLOOKUP(C11,basisgegevens!$A$1:$ZL$50,$E$3,FALSE)),"",VLOOKUP(C11,basisgegevens!$A$1:$AB$50,$E$3,FALSE)) ->  | H11: =IF(ISERROR(VLOOKUP(C11,basisgegevens!$A$1:$AB$50,$H$3,FALSE)),"",VLOOKUP(C11,basisgegevens!$A$1:$AB$50,$H$3,FALSE)) ->  | J11: =IF(ISERROR(VLOOKUP(C11,basisgegevens!$A$1:$AB$50,$J$3,FALSE)),"",VLOOKUP(C11,basisgegevens!$A$1:$AB$50,$J$3,FALSE)) ->  | K11: =IF(ISERROR(VLOOKUP(C11,basisgegevens!$A$1:$AB$50,$K$3,FALSE)),"",VLOOKUP(C11,basisgegevens!$A$1:$AB$50,$K$3,FALSE)) ->  | L11: =IF(ISERROR(VLOOKUP(C11,basisgegevens!$A$1:$AB$50,$L$3,FALSE)),"",VLOOKUP(C11,basisgegevens!$A$1:$AB$50,$L$3,FALSE)) ->  | N11: =IF(ISERROR(VLOOKUP(C11,basisgegevens!$A$1:$AB$50,$N$3,FALSE)),"",IF(VLOOKUP(C11,basisgegevens!$A$1:$AB$50,$N$3,FALSE)=0,"",VLOOKUP(C11,basisgegevens!$A$1:$AB$50,$N$3,FALSE))) ->  | O11: =IF(ISERROR(VLOOKUP(C11,basisgegevens!$A$1:$AB$50,$O$3,FALSE)),"",VLOOKUP(C11,basisgegevens!$A$1:$AB$50,$O$3,FALSE)) ->  | Q11: =IF(ISERROR(VLOOKUP(C11,basisgegevens!$A$1:$AB$50,$Q$3,FALSE)),"",VLOOKUP(C11,basisgegevens!$A$1:$AB$50,$Q$3,FALSE)) ->  | R11: =IF(ISERROR(VLOOKUP(C11,basisgegevens!$A$1:$AB$50,$R$3,FALSE)),"",VLOOKUP(C11,basisgegevens!$A$1:$AB$409,$R$3,FALSE)) ->  | T11: =IF(ISERROR(VLOOKUP(C11,basisgegevens!$A$1:$AB$50,$T$3,FALSE)),"",VLOOKUP(C11,basisgegevens!$A$1:$AB$409,$T$3,FALSE)) -> 
C12: =IF('keuzelijst assistent'!$E$1="","",CONCATENATE('keuzelijst assistent'!$E$1)) ->  | D12: =IF(ISERROR(VLOOKUP(C12,basisgegevens!$A$1:$AB$50,$D$3,FALSE)),"",VLOOKUP(C12,basisgegevens!$A$1:$AB$404,$D$3,FALSE)) ->  | E12: =IF(ISERROR(VLOOKUP(C12,basisgegevens!$A$1:$ZL$50,$E$3,FALSE)),"",VLOOKUP(C12,basisgegevens!$A$1:$AB$50,$E$3,FALSE)) ->  | H12: =IF(ISERROR(VLOOKUP(C12,basisgegevens!$A$1:$AB$50,$H$3,FALSE)),"",VLOOKUP(C12,basisgegevens!$A$1:$AB$50,$H$3,FALSE)) ->  | J12: =IF(ISERROR(VLOOKUP(C12,basisgegevens!$A$1:$AB$50,$J$3,FALSE)),"",VLOOKUP(C12,basisgegevens!$A$1:$AB$50,$J$3,FALSE)) ->  | K12: =IF(ISERROR(VLOOKUP(C12,basisgegevens!$A$1:$AB$50,$K$3,FALSE)),"",VLOOKUP(C12,basisgegevens!$A$1:$AB$50,$K$3,FALSE)) ->  | L12: =IF(ISERROR(VLOOKUP(C12,basisgegevens!$A$1:$AB$50,$L$3,FALSE)),"",VLOOKUP(C12,basisgegevens!$A$1:$AB$50,$L$3,FALSE)) ->  | N12: =IF(ISERROR(VLOOKUP(C12,basisgegevens!$A$1:$AB$50,$N$3,FALSE)),"",IF(VLOOKUP(C12,basisgegevens!$A$1:$AB$50,$N$3,FALSE)=0,"",VLOOKUP(C12,basisgegevens!$A$1:$AB$50,$N$3,FALSE))) ->  | O12: =IF(ISERROR(VLOOKUP(C12,basisgegevens!$A$1:$AB$50,$O$3,FALSE)),"",VLOOKUP(C12,basisgegevens!$A$1:$AB$50,$O$3,FALSE)) ->  | Q12: =IF(ISERROR(VLOOKUP(C12,basisgegevens!$A$1:$AB$50,$Q$3,FALSE)),"",VLOOKUP(C12,basisgegevens!$A$1:$AB$50,$Q$3,FALSE)) ->  | R12: =IF(ISERROR(VLOOKUP(C12,basisgegevens!$A$1:$AB$50,$R$3,FALSE)),"",VLOOKUP(C12,basisgegevens!$A$1:$AB$409,$R$3,FALSE)) ->  | T12: =IF(ISERROR(VLOOKUP(C12,basisgegevens!$A$1:$AB$50,$T$3,FALSE)),"",VLOOKUP(C12,basisgegevens!$A$1:$AB$409,$T$3,FALSE)) -> 
C13: =IF('keuzelijst assistent'!$F$1="","",CONCATENATE('keuzelijst assistent'!$F$1)) ->  | D13: =IF(ISERROR(VLOOKUP(C13,basisgegevens!$A$1:$AB$50,$D$3,FALSE)),"",VLOOKUP(C13,basisgegevens!$A$1:$AB$404,$D$3,FALSE)) ->  | E13: =IF(ISERROR(VLOOKUP(C13,basisgegevens!$A$1:$ZL$50,$E$3,FALSE)),"",VLOOKUP(C13,basisgegevens!$A$1:$AB$50,$E$3,FALSE)) ->  | H13: =IF(ISERROR(VLOOKUP(C13,basisgegevens!$A$1:$AB$50,$H$3,FALSE)),"",VLOOKUP(C13,basisgegevens!$A$1:$AB$50,$H$3,FALSE)) ->  | J13: =IF(ISERROR(VLOOKUP(C13,basisgegevens!$A$1:$AB$50,$J$3,FALSE)),"",VLOOKUP(C13,basisgegevens!$A$1:$AB$50,$J$3,FALSE)) ->  | K13: =IF(ISERROR(VLOOKUP(C13,basisgegevens!$A$1:$AB$50,$K$3,FALSE)),"",VLOOKUP(C13,basisgegevens!$A$1:$AB$50,$K$3,FALSE)) ->  | L13: =IF(ISERROR(VLOOKUP(C13,basisgegevens!$A$1:$AB$50,$L$3,FALSE)),"",VLOOKUP(C13,basisgegevens!$A$1:$AB$50,$L$3,FALSE)) ->  | N13: =IF(ISERROR(VLOOKUP(C13,basisgegevens!$A$1:$AB$50,$N$3,FALSE)),"",IF(VLOOKUP(C13,basisgegevens!$A$1:$AB$50,$N$3,FALSE)=0,"",VLOOKUP(C13,basisgegevens!$A$1:$AB$50,$N$3,FALSE))) ->  | O13: =IF(ISERROR(VLOOKUP(C13,basisgegevens!$A$1:$AB$50,$O$3,FALSE)),"",VLOOKUP(C13,basisgegevens!$A$1:$AB$50,$O$3,FALSE)) ->  | Q13: =IF(ISERROR(VLOOKUP(C13,basisgegevens!$A$1:$AB$50,$Q$3,FALSE)),"",VLOOKUP(C13,basisgegevens!$A$1:$AB$50,$Q$3,FALSE)) ->  | R13: =IF(ISERROR(VLOOKUP(C13,basisgegevens!$A$1:$AB$50,$R$3,FALSE)),"",VLOOKUP(C13,basisgegevens!$A$1:$AB$409,$R$3,FALSE)) ->  | T13: =IF(ISERROR(VLOOKUP(C13,basisgegevens!$A$1:$AB$50,$T$3,FALSE)),"",VLOOKUP(C13,basisgegevens!$A$1:$AB$409,$T$3,FALSE)) -> 
C14: =IF('keuzelijst assistent'!$G$1="","",CONCATENATE('keuzelijst assistent'!$G$1)) ->  | D14: =IF(ISERROR(VLOOKUP(C14,basisgegevens!$A$1:$AB$50,$D$3,FALSE)),"",VLOOKUP(C14,basisgegevens!$A$1:$AB$404,$D$3,FALSE)) ->  | E14: =IF(ISERROR(VLOOKUP(C14,basisgegevens!$A$1:$ZL$50,$E$3,FALSE)),"",VLOOKUP(C14,basisgegevens!$A$1:$AB$50,$E$3,FALSE)) ->  | H14: =IF(ISERROR(VLOOKUP(C14,basisgegevens!$A$1:$AB$50,$H$3,FALSE)),"",VLOOKUP(C14,basisgegevens!$A$1:$AB$50,$H$3,FALSE)) ->  | J14: =IF(ISERROR(VLOOKUP(C14,basisgegevens!$A$1:$AB$50,$J$3,FALSE)),"",VLOOKUP(C14,basisgegevens!$A$1:$AB$50,$J$3,FALSE)) ->  | K14: =IF(ISERROR(VLOOKUP(C14,basisgegevens!$A$1:$AB$50,$K$3,FALSE)),"",VLOOKUP(C14,basisgegevens!$A$1:$AB$50,$K$3,FALSE)) ->  | L14: =IF(ISERROR(VLOOKUP(C14,basisgegevens!$A$1:$AB$50,$L$3,FALSE)),"",VLOOKUP(C14,basisgegevens!$A$1:$AB$50,$L$3,FALSE)) ->  | N14: =IF(ISERROR(VLOOKUP(C14,basisgegevens!$A$1:$AB$50,$N$3,FALSE)),"",IF(VLOOKUP(C14,basisgegevens!$A$1:$AB$50,$N$3,FALSE)=0,"",VLOOKUP(C14,basisgegevens!$A$1:$AB$50,$N$3,FALSE))) ->  | O14: =IF(ISERROR(VLOOKUP(C14,basisgegevens!$A$1:$AB$50,$O$3,FALSE)),"",VLOOKUP(C14,basisgegevens!$A$1:$AB$50,$O$3,FALSE)) ->  | Q14: =IF(ISERROR(VLOOKUP(C14,basisgegevens!$A$1:$AB$50,$Q$3,FALSE)),"",VLOOKUP(C14,basisgegevens!$A$1:$AB$50,$Q$3,FALSE)) ->  | R14: =IF(ISERROR(VLOOKUP(C14,basisgegevens!$A$1:$AB$50,$R$3,FALSE)),"",VLOOKUP(C14,basisgegevens!$A$1:$AB$409,$R$3,FALSE)) ->  | T14: =IF(ISERROR(VLOOKUP(C14,basisgegevens!$A$1:$AB$50,$T$3,FALSE)),"",VLOOKUP(C14,basisgegevens!$A$1:$AB$409,$T$3,FALSE)) -> 
C15: =IF('keuzelijst assistent'!$H$1="","",CONCATENATE('keuzelijst assistent'!$H$1)) ->  | D15: =IF(ISERROR(VLOOKUP(C15,basisgegevens!$A$1:$AB$50,$D$3,FALSE)),"",VLOOKUP(C15,basisgegevens!$A$1:$AB$404,$D$3,FALSE)) ->  | E15: =IF(ISERROR(VLOOKUP(C15,basisgegevens!$A$1:$ZL$50,$E$3,FALSE)),"",VLOOKUP(C15,basisgegevens!$A$1:$AB$50,$E$3,FALSE)) ->  | H15: =IF(ISERROR(VLOOKUP(C15,basisgegevens!$A$1:$AB$50,$H$3,FALSE)),"",VLOOKUP(C15,basisgegevens!$A$1:$AB$50,$H$3,FALSE)) ->  | J15: =IF(ISERROR(VLOOKUP(C15,basisgegevens!$A$1:$AB$50,$J$3,FALSE)),"",VLOOKUP(C15,basisgegevens!$A$1:$AB$50,$J$3,FALSE)) ->  | K15: =IF(ISERROR(VLOOKUP(C15,basisgegevens!$A$1:$AB$50,$K$3,FALSE)),"",VLOOKUP(C15,basisgegevens!$A$1:$AB$50,$K$3,FALSE)) ->  | L15: =IF(ISERROR(VLOOKUP(C15,basisgegevens!$A$1:$AB$50,$L$3,FALSE)),"",VLOOKUP(C15,basisgegevens!$A$1:$AB$50,$L$3,FALSE)) ->  | N15: =IF(ISERROR(VLOOKUP(C15,basisgegevens!$A$1:$AB$50,$N$3,FALSE)),"",IF(VLOOKUP(C15,basisgegevens!$A$1:$AB$50,$N$3,FALSE)=0,"",VLOOKUP(C15,basisgegevens!$A$1:$AB$50,$N$3,FALSE))) ->  | O15: =IF(ISERROR(VLOOKUP(C15,basisgegevens!$A$1:$AB$50,$O$3,FALSE)),"",VLOOKUP(C15,basisgegevens!$A$1:$AB$50,$O$3,FALSE)) ->  | Q15: =IF(ISERROR(VLOOKUP(C15,basisgegevens!$A$1:$AB$50,$Q$3,FALSE)),"",VLOOKUP(C15,basisgegevens!$A$1:$AB$50,$Q$3,FALSE)) ->  | R15: =IF(ISERROR(VLOOKUP(C15,basisgegevens!$A$1:$AB$50,$R$3,FALSE)),"",VLOOKUP(C15,basisgegevens!$A$1:$AB$409,$R$3,FALSE)) ->  | T15: =IF(ISERROR(VLOOKUP(C15,basisgegevens!$A$1:$AB$50,$T$3,FALSE)),"",VLOOKUP(C15,basisgegevens!$A$1:$AB$409,$T$3,FALSE)) -> 
C16: =IF('keuzelijst assistent'!$I$1="","",CONCATENATE('keuzelijst assistent'!$I$1)) ->  | D16: =IF(ISERROR(VLOOKUP(C16,basisgegevens!$A$1:$AB$50,$D$3,FALSE)),"",VLOOKUP(C16,basisgegevens!$A$1:$AB$404,$D$3,FALSE)) ->  | E16: =IF(ISERROR(VLOOKUP(C16,basisgegevens!$A$1:$ZL$50,$E$3,FALSE)),"",VLOOKUP(C16,basisgegevens!$A$1:$AB$50,$E$3,FALSE)) ->  | H16: =IF(ISERROR(VLOOKUP(C16,basisgegevens!$A$1:$AB$50,$H$3,FALSE)),"",VLOOKUP(C16,basisgegevens!$A$1:$AB$50,$H$3,FALSE)) ->  | J16: =IF(ISERROR(VLOOKUP(C16,basisgegevens!$A$1:$AB$50,$J$3,FALSE)),"",VLOOKUP(C16,basisgegevens!$A$1:$AB$50,$J$3,FALSE)) ->  | K16: =IF(ISERROR(VLOOKUP(C16,basisgegevens!$A$1:$AB$50,$K$3,FALSE)),"",VLOOKUP(C16,basisgegevens!$A$1:$AB$50,$K$3,FALSE)) ->  | L16: =IF(ISERROR(VLOOKUP(C16,basisgegevens!$A$1:$AB$50,$L$3,FALSE)),"",VLOOKUP(C16,basisgegevens!$A$1:$AB$50,$L$3,FALSE)) ->  | N16: =IF(ISERROR(VLOOKUP(C16,basisgegevens!$A$1:$AB$50,$N$3,FALSE)),"",IF(VLOOKUP(C16,basisgegevens!$A$1:$AB$50,$N$3,FALSE)=0,"",VLOOKUP(C16,basisgegevens!$A$1:$AB$50,$N$3,FALSE))) ->  | O16: =IF(ISERROR(VLOOKUP(C16,basisgegevens!$A$1:$AB$50,$O$3,FALSE)),"",VLOOKUP(C16,basisgegevens!$A$1:$AB$50,$O$3,FALSE)) ->  | Q16: =IF(ISERROR(VLOOKUP(C16,basisgegevens!$A$1:$AB$50,$Q$3,FALSE)),"",VLOOKUP(C16,basisgegevens!$A$1:$AB$50,$Q$3,FALSE)) ->  | R16: =IF(ISERROR(VLOOKUP(C16,basisgegevens!$A$1:$AB$50,$R$3,FALSE)),"",VLOOKUP(C16,basisgegevens!$A$1:$AB$409,$R$3,FALSE)) ->  | T16: =IF(ISERROR(VLOOKUP(C16,basisgegevens!$A$1:$AB$50,$T$3,FALSE)),"",VLOOKUP(C16,basisgegevens!$A$1:$AB$409,$T$3,FALSE)) -> 
C17: =IF('keuzelijst assistent'!$J$1="","",CONCATENATE('keuzelijst assistent'!$J$1)) ->  | D17: =IF(ISERROR(VLOOKUP(C17,basisgegevens!$A$1:$AB$50,$D$3,FALSE)),"",VLOOKUP(C17,basisgegevens!$A$1:$AB$404,$D$3,FALSE)) ->  | E17: =IF(ISERROR(VLOOKUP(C17,basisgegevens!$A$1:$ZL$50,$E$3,FALSE)),"",VLOOKUP(C17,basisgegevens!$A$1:$AB$50,$E$3,FALSE)) ->  | H17: =IF(ISERROR(VLOOKUP(C17,basisgegevens!$A$1:$AB$50,$H$3,FALSE)),"",VLOOKUP(C17,basisgegevens!$A$1:$AB$50,$H$3,FALSE)) ->  | J17: =IF(ISERROR(VLOOKUP(C17,basisgegevens!$A$1:$AB$50,$J$3,FALSE)),"",VLOOKUP(C17,basisgegevens!$A$1:$AB$50,$J$3,FALSE)) ->  | K17: =IF(ISERROR(VLOOKUP(C17,basisgegevens!$A$1:$AB$50,$K$3,FALSE)),"",VLOOKUP(C17,basisgegevens!$A$1:$AB$50,$K$3,FALSE)) ->  | L17: =IF(ISERROR(VLOOKUP(C17,basisgegevens!$A$1:$AB$50,$L$3,FALSE)),"",VLOOKUP(C17,basisgegevens!$A$1:$AB$50,$L$3,FALSE)) ->  | N17: =IF(ISERROR(VLOOKUP(C17,basisgegevens!$A$1:$AB$50,$N$3,FALSE)),"",IF(VLOOKUP(C17,basisgegevens!$A$1:$AB$50,$N$3,FALSE)=0,"",VLOOKUP(C17,basisgegevens!$A$1:$AB$50,$N$3,FALSE))) ->  | O17: =IF(ISERROR(VLOOKUP(C17,basisgegevens!$A$1:$AB$50,$O$3,FALSE)),"",VLOOKUP(C17,basisgegevens!$A$1:$AB$50,$O$3,FALSE)) ->  | Q17: =IF(ISERROR(VLOOKUP(C17,basisgegevens!$A$1:$AB$50,$Q$3,FALSE)),"",VLOOKUP(C17,basisgegevens!$A$1:$AB$50,$Q$3,FALSE)) ->  | R17: =IF(ISERROR(VLOOKUP(C17,basisgegevens!$A$1:$AB$50,$R$3,FALSE)),"",VLOOKUP(C17,basisgegevens!$A$1:$AB$409,$R$3,FALSE)) ->  | T17: =IF(ISERROR(VLOOKUP(C17,basisgegevens!$A$1:$AB$50,$T$3,FALSE)),"",VLOOKUP(C17,basisgegevens!$A$1:$AB$409,$T$3,FALSE)) -> 
C18: =IF('keuzelijst assistent'!$K$1="","",CONCATENATE('keuzelijst assistent'!$K$1)) ->  | D18: =IF(ISERROR(VLOOKUP(C18,basisgegevens!$A$1:$AB$50,$D$3,FALSE)),"",VLOOKUP(C18,basisgegevens!$A$1:$AB$404,$D$3,FALSE)) ->  | E18: =IF(ISERROR(VLOOKUP(C18,basisgegevens!$A$1:$ZL$50,$E$3,FALSE)),"",VLOOKUP(C18,basisgegevens!$A$1:$AB$50,$E$3,FALSE)) ->  | H18: =IF(ISERROR(VLOOKUP(C18,basisgegevens!$A$1:$AB$50,$H$3,FALSE)),"",VLOOKUP(C18,basisgegevens!$A$1:$AB$50,$H$3,FALSE)) ->  | J18: =IF(ISERROR(VLOOKUP(C18,basisgegevens!$A$1:$AB$50,$J$3,FALSE)),"",VLOOKUP(C18,basisgegevens!$A$1:$AB$50,$J$3,FALSE)) ->  | K18: =IF(ISERROR(VLOOKUP(C18,basisgegevens!$A$1:$AB$50,$K$3,FALSE)),"",VLOOKUP(C18,basisgegevens!$A$1:$AB$50,$K$3,FALSE)) ->  | L18: =IF(ISERROR(VLOOKUP(C18,basisgegevens!$A$1:$AB$50,$L$3,FALSE)),"",VLOOKUP(C18,basisgegevens!$A$1:$AB$50,$L$3,FALSE)) ->  | N18: =IF(ISERROR(VLOOKUP(C18,basisgegevens!$A$1:$AB$50,$N$3,FALSE)),"",IF(VLOOKUP(C18,basisgegevens!$A$1:$AB$50,$N$3,FALSE)=0,"",VLOOKUP(C18,basisgegevens!$A$1:$AB$50,$N$3,FALSE))) ->  | O18: =IF(ISERROR(VLOOKUP(C18,basisgegevens!$A$1:$AB$50,$O$3,FALSE)),"",VLOOKUP(C18,basisgegevens!$A$1:$AB$50,$O$3,FALSE)) ->  | Q18: =IF(ISERROR(VLOOKUP(C18,basisgegevens!$A$1:$AB$50,$Q$3,FALSE)),"",VLOOKUP(C18,basisgegevens!$A$1:$AB$50,$Q$3,FALSE)) ->  | R18: =IF(ISERROR(VLOOKUP(C18,basisgegevens!$A$1:$AB$50,$R$3,FALSE)),"",VLOOKUP(C18,basisgegevens!$A$1:$AB$409,$R$3,FALSE)) ->  | T18: =IF(ISERROR(VLOOKUP(C18,basisgegevens!$A$1:$AB$50,$T$3,FALSE)),"",VLOOKUP(C18,basisgegevens!$A$1:$AB$409,$T$3,FALSE)) -> 
C19: =IF('keuzelijst assistent'!$L1="","",CONCATENATE('keuzelijst assistent'!$L$1)) ->  | D19: =IF(ISERROR(VLOOKUP(C19,basisgegevens!$A$1:$AB$50,$D$3,FALSE)),"",VLOOKUP(C19,basisgegevens!$A$1:$AB$404,$D$3,FALSE)) ->  | E19: =IF(ISERROR(VLOOKUP(C19,basisgegevens!$A$1:$ZL$50,$E$3,FALSE)),"",VLOOKUP(C19,basisgegevens!$A$1:$AB$50,$E$3,FALSE)) ->  | H19: =IF(ISERROR(VLOOKUP(C19,basisgegevens!$A$1:$AB$50,$H$3,FALSE)),"",VLOOKUP(C19,basisgegevens!$A$1:$AB$50,$H$3,FALSE)) ->  | J19: =IF(ISERROR(VLOOKUP(C19,basisgegevens!$A$1:$AB$50,$J$3,FALSE)),"",VLOOKUP(C19,basisgegevens!$A$1:$AB$50,$J$3,FALSE)) ->  | K19: =IF(ISERROR(VLOOKUP(C19,basisgegevens!$A$1:$AB$50,$K$3,FALSE)),"",VLOOKUP(C19,basisgegevens!$A$1:$AB$50,$K$3,FALSE)) ->  | L19: =IF(ISERROR(VLOOKUP(C19,basisgegevens!$A$1:$AB$50,$L$3,FALSE)),"",VLOOKUP(C19,basisgegevens!$A$1:$AB$50,$L$3,FALSE)) ->  | N19: =IF(ISERROR(VLOOKUP(C19,basisgegevens!$A$1:$AB$50,$N$3,FALSE)),"",IF(VLOOKUP(C19,basisgegevens!$A$1:$AB$50,$N$3,FALSE)=0,"",VLOOKUP(C19,basisgegevens!$A$1:$AB$50,$N$3,FALSE))) ->  | O19: =IF(ISERROR(VLOOKUP(C19,basisgegevens!$A$1:$AB$50,$O$3,FALSE)),"",VLOOKUP(C19,basisgegevens!$A$1:$AB$50,$O$3,FALSE)) ->  | Q19: =IF(ISERROR(VLOOKUP(C19,basisgegevens!$A$1:$AB$50,$Q$3,FALSE)),"",VLOOKUP(C19,basisgegevens!$A$1:$AB$50,$Q$3,FALSE)) ->  | R19: =IF(ISERROR(VLOOKUP(C19,basisgegevens!$A$1:$AB$50,$R$3,FALSE)),"",VLOOKUP(C19,basisgegevens!$A$1:$AB$409,$R$3,FALSE)) ->  | T19: =IF(ISERROR(VLOOKUP(C19,basisgegevens!$A$1:$AB$50,$T$3,FALSE)),"",VLOOKUP(C19,basisgegevens!$A$1:$AB$409,$T$3,FALSE)) -> 
C20: =IF('keuzelijst assistent'!$B12="","",CONCATENATE('keuzelijst assistent'!$B12)) ->  | G20: =IF(C20="","",CONCATENATE(D20," ",F20)) ->  | H20: =IF(ISERROR(VLOOKUP(C20,basisgegevens!$A$1:$AB$50,$H$3,FALSE)),"",VLOOKUP(C20,basisgegevens!$A$1:$AB$50,$H$3,FALSE)) ->  | M20: =IF(L20="","",L20) ->  | N20: =IF(ISERROR(VLOOKUP(C20,basisgegevens!$A$1:$AB$50,$N$3,FALSE)),"",IF(VLOOKUP(C20,basisgegevens!$A$1:$AB$50,$N$3,FALSE)=0,"",VLOOKUP(C20,basisgegevens!$A$1:$AB$50,$N$3,FALSE))) ->  | O20: =IF(ISERROR(VLOOKUP(C20,basisgegevens!$A$1:$AB$50,$O$3,FALSE)),"",VLOOKUP(C20,basisgegevens!$A$1:$AB$50,$O$3,FALSE)) ->  | P20: =IF(M20="","",IF(M20=0,0,IF(N20="+",M20+O20,IF(N20="*",M20*O20,M20)))) ->  | T20: =IF(ISERROR(VLOOKUP(C20,basisgegevens!$A$1:$AB$50,$T$3,FALSE)),"",VLOOKUP(C20,basisgegevens!$A$1:$AB$409,$T$3,FALSE)) -> 
B21: Huishouden, verzorging | C21: =IF('keuzelijst assistent'!$B13="","",CONCATENATE('keuzelijst assistent'!$B13)) ->  | G21: =IF(C21="","",CONCATENATE(D21," ",F21)) ->  | T21: =IF(ISERROR(VLOOKUP(C21,basisgegevens!$A$1:$AB$50,$T$3,FALSE)),"",VLOOKUP(C21,basisgegevens!$A$1:$AB$409,$T$3,FALSE)) -> 
C22: =IF('keuzelijst huishouden'!$B$1="","",CONCATENATE('keuzelijst huishouden'!$B$1+13)) ->  | D22: =IF(ISERROR(VLOOKUP(C22,basisgegevens!$A$1:$AB$50,$D$3,FALSE)),"",VLOOKUP(C22,basisgegevens!$A$1:$AB$404,$D$3,FALSE)) ->  | E22: =IF(ISERROR(VLOOKUP(C22,basisgegevens!$A$1:$ZL$50,$E$3,FALSE)),"",VLOOKUP(C22,basisgegevens!$A$1:$AB$50,$E$3,FALSE)) ->  | G22: =IF(C22="","",CONCATENATE(D22," ",F22)) ->  | H22: =IF(ISERROR(VLOOKUP(C22,basisgegevens!$A$1:$AB$50,$H$3,FALSE)),"",VLOOKUP(C22,basisgegevens!$A$1:$AB$50,$H$3,FALSE)) ->  | J22: =IF(ISERROR(VLOOKUP(C22,basisgegevens!$A$1:$AB$50,$J$3,FALSE)),"",VLOOKUP(C22,basisgegevens!$A$1:$AB$50,$J$3,FALSE)) ->  | K22: =IF(ISERROR(VLOOKUP(C22,basisgegevens!$A$1:$AB$50,$K$3,FALSE)),"",VLOOKUP(C22,basisgegevens!$A$1:$AB$50,$K$3,FALSE)) ->  | N22: =IF(ISERROR(VLOOKUP(C22,basisgegevens!$A$1:$AB$50,$N$3,FALSE)),"",VLOOKUP(C22,basisgegevens!$A$1:$AB$50,$N$3,FALSE)) ->  | O22: =IF(ISERROR(VLOOKUP(C22,basisgegevens!$A$1:$AB$50,$O$3,FALSE)),"",VLOOKUP(C22,basisgegevens!$A$1:$AB$50,$O$3,FALSE)) ->  | P22: =IF(M22="","",IF(M22=0,0,IF(N22="+",M22+O22,IF(N22="*",M22*O22,M22)))) ->  | Q22: =IF(ISERROR(VLOOKUP(C22,basisgegevens!$A$1:$AB$50,$Q$3,FALSE)),"",VLOOKUP(C22,basisgegevens!$A$1:$AB$50,$Q$3,FALSE)) ->  | R22: =IF(ISERROR(VLOOKUP(C22,basisgegevens!$A$1:$AB$50,$R$3,FALSE)),"",VLOOKUP(C22,basisgegevens!$A$1:$AB$409,$R$3,FALSE)) ->  | S22: =R22 ->  | T22: =IF(ISERROR(VLOOKUP(C22,basisgegevens!$A$1:$AB$50,$T$3,FALSE)),"",VLOOKUP(C22,basisgegevens!$A$1:$AB$409,$T$3,FALSE)) -> 
C23: =IF('keuzelijst huishouden'!$C$1="","",CONCATENATE('keuzelijst huishouden'!$C$1+13)) ->  | D23: =IF(ISERROR(VLOOKUP(C23,basisgegevens!$A$1:$AB$50,$D$3,FALSE)),"",VLOOKUP(C23,basisgegevens!$A$1:$AB$404,$D$3,FALSE)) ->  | E23: =IF(ISERROR(VLOOKUP(C23,basisgegevens!$A$1:$ZL$50,$E$3,FALSE)),"",VLOOKUP(C23,basisgegevens!$A$1:$AB$50,$E$3,FALSE)) ->  | H23: =IF(ISERROR(VLOOKUP(C23,basisgegevens!$A$1:$AB$50,$H$3,FALSE)),"",VLOOKUP(C23,basisgegevens!$A$1:$AB$50,$H$3,FALSE)) ->  | J23: =IF(ISERROR(VLOOKUP(C23,basisgegevens!$A$1:$AB$50,$J$3,FALSE)),"",VLOOKUP(C23,basisgegevens!$A$1:$AB$50,$J$3,FALSE)) ->  | K23: =IF(ISERROR(VLOOKUP(C23,basisgegevens!$A$1:$AB$50,$K$3,FALSE)),"",VLOOKUP(C23,basisgegevens!$A$1:$AB$50,$K$3,FALSE)) ->  | N23: =IF(ISERROR(VLOOKUP(C23,basisgegevens!$A$1:$AB$50,$N$3,FALSE)),"",VLOOKUP(C23,basisgegevens!$A$1:$AB$50,$N$3,FALSE)) ->  | O23: =IF(ISERROR(VLOOKUP(C23,basisgegevens!$A$1:$AB$50,$O$3,FALSE)),"",VLOOKUP(C23,basisgegevens!$A$1:$AB$50,$O$3,FALSE)) ->  | P23: =IF(M23="","",IF(M23=0,0,IF(N23="+",M23+O23,IF(N23="*",M23*O23,M23)))) ->  | Q23: =IF(ISERROR(VLOOKUP(C23,basisgegevens!$A$1:$AB$50,$Q$3,FALSE)),"",VLOOKUP(C23,basisgegevens!$A$1:$AB$50,$Q$3,FALSE)) ->  | R23: =IF(ISERROR(VLOOKUP(C23,basisgegevens!$A$1:$AB$50,$R$3,FALSE)),"",VLOOKUP(C23,basisgegevens!$A$1:$AB$409,$R$3,FALSE)) ->  | T23: =IF(ISERROR(VLOOKUP(C23,basisgegevens!$A$1:$AB$50,$T$3,FALSE)),"",VLOOKUP(C23,basisgegevens!$A$1:$AB$409,$T$3,FALSE)) -> 
C24: =IF('keuzelijst huishouden'!$D$1="","",CONCATENATE('keuzelijst huishouden'!$D$1+13)) ->  | D24: =IF(ISERROR(VLOOKUP(C24,basisgegevens!$A$1:$AB$50,$D$3,FALSE)),"",VLOOKUP(C24,basisgegevens!$A$1:$AB$404,$D$3,FALSE)) ->  | E24: =IF(ISERROR(VLOOKUP(C24,basisgegevens!$A$1:$ZL$50,$E$3,FALSE)),"",VLOOKUP(C24,basisgegevens!$A$1:$AB$50,$E$3,FALSE)) ->  | G24: =IF(C24="","",CONCATENATE(D24," ",F24)) ->  | H24: =IF(ISERROR(VLOOKUP(C24,basisgegevens!$A$1:$AB$50,$H$3,FALSE)),"",VLOOKUP(C24,basisgegevens!$A$1:$AB$50,$H$3,FALSE)) ->  | J24: =IF(ISERROR(VLOOKUP(C24,basisgegevens!$A$1:$AB$50,$J$3,FALSE)),"",VLOOKUP(C24,basisgegevens!$A$1:$AB$50,$J$3,FALSE)) ->  | K24: =IF(ISERROR(VLOOKUP(C24,basisgegevens!$A$1:$AB$50,$K$3,FALSE)),"",VLOOKUP(C24,basisgegevens!$A$1:$AB$50,$K$3,FALSE)) ->  | N24: =IF(ISERROR(VLOOKUP(C24,basisgegevens!$A$1:$AB$50,$N$3,FALSE)),"",VLOOKUP(C24,basisgegevens!$A$1:$AB$50,$N$3,FALSE)) ->  | O24: =IF(ISERROR(VLOOKUP(C24,basisgegevens!$A$1:$AB$50,$O$3,FALSE)),"",VLOOKUP(C24,basisgegevens!$A$1:$AB$50,$O$3,FALSE)) ->  | P24: =IF(M24="","",IF(M24=0,0,IF(N24="+",M24+O24,IF(N24="*",M24*O24,M24)))) ->  | Q24: =IF(ISERROR(VLOOKUP(C24,basisgegevens!$A$1:$AB$50,$Q$3,FALSE)),"",VLOOKUP(C24,basisgegevens!$A$1:$AB$50,$Q$3,FALSE)) ->  | R24: =IF(ISERROR(VLOOKUP(C24,basisgegevens!$A$1:$AB$50,$R$3,FALSE)),"",VLOOKUP(C24,basisgegevens!$A$1:$AB$409,$R$3,FALSE)) ->  | S24: =R24 ->  | T24: =IF(ISERROR(VLOOKUP(C24,basisgegevens!$A$1:$AB$50,$T$3,FALSE)),"",VLOOKUP(C24,basisgegevens!$A$1:$AB$409,$T$3,FALSE)) -> 
C25: =IF('keuzelijst huishouden'!$E$1="","",CONCATENATE('keuzelijst huishouden'!$E$1+13)) ->  | D25: =IF(ISERROR(VLOOKUP(C25,basisgegevens!$A$1:$AB$50,$D$3,FALSE)),"",VLOOKUP(C25,basisgegevens!$A$1:$AB$404,$D$3,FALSE)) ->  | E25: =IF(ISERROR(VLOOKUP(C25,basisgegevens!$A$1:$ZL$50,$E$3,FALSE)),"",VLOOKUP(C25,basisgegevens!$A$1:$AB$50,$E$3,FALSE)) ->  | H25: =IF(ISERROR(VLOOKUP(C25,basisgegevens!$A$1:$AB$50,$H$3,FALSE)),"",VLOOKUP(C25,basisgegevens!$A$1:$AB$50,$H$3,FALSE)) ->  | J25: =IF(ISERROR(VLOOKUP(C25,basisgegevens!$A$1:$AB$50,$J$3,FALSE)),"",VLOOKUP(C25,basisgegevens!$A$1:$AB$50,$J$3,FALSE)) ->  | K25: =IF(ISERROR(VLOOKUP(C25,basisgegevens!$A$1:$AB$50,$K$3,FALSE)),"",VLOOKUP(C25,basisgegevens!$A$1:$AB$50,$K$3,FALSE)) ->  | N25: =IF(ISERROR(VLOOKUP(C25,basisgegevens!$A$1:$AB$50,$N$3,FALSE)),"",VLOOKUP(C25,basisgegevens!$A$1:$AB$50,$N$3,FALSE)) ->  | O25: =IF(ISERROR(VLOOKUP(C25,basisgegevens!$A$1:$AB$50,$O$3,FALSE)),"",VLOOKUP(C25,basisgegevens!$A$1:$AB$50,$O$3,FALSE)) ->  | Q25: =IF(ISERROR(VLOOKUP(C25,basisgegevens!$A$1:$AB$50,$Q$3,FALSE)),"",VLOOKUP(C25,basisgegevens!$A$1:$AB$50,$Q$3,FALSE)) ->  | R25: =IF(ISERROR(VLOOKUP(C25,basisgegevens!$A$1:$AB$50,$R$3,FALSE)),"",VLOOKUP(C25,basisgegevens!$A$1:$AB$409,$R$3,FALSE)) ->  | T25: =IF(ISERROR(VLOOKUP(C25,basisgegevens!$A$1:$AB$50,$T$3,FALSE)),"",VLOOKUP(C25,basisgegevens!$A$1:$AB$409,$T$3,FALSE)) -> 
C26: =IF('keuzelijst huishouden'!$F$1="","",CONCATENATE('keuzelijst huishouden'!$F$1+13)) ->  | D26: =IF(ISERROR(VLOOKUP(C26,basisgegevens!$A$1:$AB$50,$D$3,FALSE)),"",VLOOKUP(C26,basisgegevens!$A$1:$AB$404,$D$3,FALSE)) ->  | E26: =IF(ISERROR(VLOOKUP(C26,basisgegevens!$A$1:$ZL$50,$E$3,FALSE)),"",VLOOKUP(C26,basisgegevens!$A$1:$AB$50,$E$3,FALSE)) ->  | H26: =IF(ISERROR(VLOOKUP(C26,basisgegevens!$A$1:$AB$50,$H$3,FALSE)),"",VLOOKUP(C26,basisgegevens!$A$1:$AB$50,$H$3,FALSE)) ->  | J26: =IF(ISERROR(VLOOKUP(C26,basisgegevens!$A$1:$AB$50,$J$3,FALSE)),"",VLOOKUP(C26,basisgegevens!$A$1:$AB$50,$J$3,FALSE)) ->  | K26: =IF(ISERROR(VLOOKUP(C26,basisgegevens!$A$1:$AB$50,$K$3,FALSE)),"",VLOOKUP(C26,basisgegevens!$A$1:$AB$50,$K$3,FALSE)) ->  | N26: =IF(ISERROR(VLOOKUP(C26,basisgegevens!$A$1:$AB$50,$N$3,FALSE)),"",VLOOKUP(C26,basisgegevens!$A$1:$AB$50,$N$3,FALSE)) ->  | O26: =IF(ISERROR(VLOOKUP(C26,basisgegevens!$A$1:$AB$50,$O$3,FALSE)),"",VLOOKUP(C26,basisgegevens!$A$1:$AB$50,$O$3,FALSE)) ->  | Q26: =IF(ISERROR(VLOOKUP(C26,basisgegevens!$A$1:$AB$50,$Q$3,FALSE)),"",VLOOKUP(C26,basisgegevens!$A$1:$AB$50,$Q$3,FALSE)) ->  | R26: =IF(ISERROR(VLOOKUP(C26,basisgegevens!$A$1:$AB$50,$R$3,FALSE)),"",VLOOKUP(C26,basisgegevens!$A$1:$AB$409,$R$3,FALSE)) ->  | T26: =IF(ISERROR(VLOOKUP(C26,basisgegevens!$A$1:$AB$50,$T$3,FALSE)),"",VLOOKUP(C26,basisgegevens!$A$1:$AB$409,$T$3,FALSE)) -> 
G27: =IF(C27="","",CONCATENATE(D27," ",F27)) ->  | T27: =IF(ISERROR(VLOOKUP(C27,basisgegevens!$A$1:$AB$50,$T$3,FALSE)),"",VLOOKUP(C27,basisgegevens!$A$1:$AB$409,$T$3,FALSE)) -> 
B28: Vergunde zorgaanbieder | T28: =IF(ISERROR(VLOOKUP(C28,basisgegevens!$A$1:$AB$50,$T$3,FALSE)),"",VLOOKUP(C28,basisgegevens!$A$1:$AB$409,$T$3,FALSE)) -> 
C29: =IF('keuzelijst zorgaanbieder'!$B$1="","",CONCATENATE('keuzelijst zorgaanbieder'!$B$1+22)) ->  | D29: =IF(ISERROR(VLOOKUP(C29,basisgegevens!$A$1:$AB$50,$D$3,FALSE)),"",VLOOKUP(C29,basisgegevens!$A$1:$AB$404,$D$3,FALSE)) ->  | E29: =IF(ISERROR(VLOOKUP(C29,basisgegevens!$A$1:$ZL$50,$E$3,FALSE)),"",VLOOKUP(C29,basisgegevens!$A$1:$AB$50,$E$3,FALSE)) ->  | H29: =IF(ISERROR(VLOOKUP(C29,basisgegevens!$A$1:$AB$50,$H$3,FALSE)),"",VLOOKUP(C29,basisgegevens!$A$1:$AB$50,$H$3,FALSE)) ->  | J29: =IF(ISERROR(VLOOKUP(C29,basisgegevens!$A$1:$AB$50,$J$3,FALSE)),"",VLOOKUP(C29,basisgegevens!$A$1:$AB$50,$J$3,FALSE)) ->  | K29: =IF(ISERROR(VLOOKUP(C29,basisgegevens!$A$1:$AB$50,$K$3,FALSE)),"",VLOOKUP(C29,basisgegevens!$A$1:$AB$50,$K$3,FALSE)) ->  | N29: =IF(ISERROR(VLOOKUP(C29,basisgegevens!$A$1:$AB$50,$N$3,FALSE)),"",VLOOKUP(C29,basisgegevens!$A$1:$AB$50,$N$3,FALSE)) ->  | O29: =IF(ISERROR(VLOOKUP(C29,basisgegevens!$A$1:$AB$50,$O$3,FALSE)),"",VLOOKUP(C29,basisgegevens!$A$1:$AB$50,$O$3,FALSE)) ->  | P29: =IF(M29="","",IF(M29=0,0,IF(N29="+",M29+O29,IF(N29="*",M29*O29,M29)))) ->  | Q29: =IF(ISERROR(VLOOKUP(C29,basisgegevens!$A$1:$AB$50,$Q$3,FALSE)),"",VLOOKUP(C29,basisgegevens!$A$1:$AB$50,$Q$3,FALSE)) ->  | R29: =IF(ISERROR(VLOOKUP(C29,basisgegevens!$A$1:$AB$50,$R$3,FALSE)),"",VLOOKUP(C29,basisgegevens!$A$1:$AB$409,$R$3,FALSE)) ->  | S29: =R29 ->  | T29: =IF(ISERROR(VLOOKUP(C29,basisgegevens!$A$1:$AB$50,$T$3,FALSE)),"",VLOOKUP(C29,basisgegevens!$A$1:$AB$409,$T$3,FALSE)) -> 
C30: =IF('keuzelijst zorgaanbieder'!$C$1="","",CONCATENATE('keuzelijst zorgaanbieder'!$C$1+22)) ->  | D30: =IF(ISERROR(VLOOKUP(C30,basisgegevens!$A$1:$AB$50,$D$3,FALSE)),"",VLOOKUP(C30,basisgegevens!$A$1:$AB$404,$D$3,FALSE)) ->  | E30: =IF(ISERROR(VLOOKUP(C30,basisgegevens!$A$1:$ZL$50,$E$3,FALSE)),"",VLOOKUP(C30,basisgegevens!$A$1:$AB$50,$E$3,FALSE)) ->  | H30: =IF(ISERROR(VLOOKUP(C30,basisgegevens!$A$1:$AB$50,$H$3,FALSE)),"",VLOOKUP(C30,basisgegevens!$A$1:$AB$50,$H$3,FALSE)) ->  | J30: =IF(ISERROR(VLOOKUP(C30,basisgegevens!$A$1:$AB$50,$J$3,FALSE)),"",VLOOKUP(C30,basisgegevens!$A$1:$AB$50,$J$3,FALSE)) ->  | K30: =IF(ISERROR(VLOOKUP(C30,basisgegevens!$A$1:$AB$50,$K$3,FALSE)),"",VLOOKUP(C30,basisgegevens!$A$1:$AB$50,$K$3,FALSE)) ->  | N30: =IF(ISERROR(VLOOKUP(C30,basisgegevens!$A$1:$AB$50,$N$3,FALSE)),"",VLOOKUP(C30,basisgegevens!$A$1:$AB$50,$N$3,FALSE)) ->  | O30: =IF(ISERROR(VLOOKUP(C30,basisgegevens!$A$1:$AB$50,$O$3,FALSE)),"",VLOOKUP(C30,basisgegevens!$A$1:$AB$50,$O$3,FALSE)) ->  | P30: =IF(M30="","",IF(M30=0,0,IF(N30="+",M30+O30,IF(N30="*",M30*O30,M30)))) ->  | Q30: =IF(ISERROR(VLOOKUP(C30,basisgegevens!$A$1:$AB$50,$Q$3,FALSE)),"",VLOOKUP(C30,basisgegevens!$A$1:$AB$50,$Q$3,FALSE)) ->  | R30: =IF(ISERROR(VLOOKUP(C30,basisgegevens!$A$1:$AB$50,$R$3,FALSE)),"",VLOOKUP(C30,basisgegevens!$A$1:$AB$409,$R$3,FALSE)) ->  | T30: =IF(ISERROR(VLOOKUP(C30,basisgegevens!$A$1:$AB$50,$T$3,FALSE)),"",VLOOKUP(C30,basisgegevens!$A$1:$AB$409,$T$3,FALSE)) -> 
C31: =IF('keuzelijst zorgaanbieder'!$D$1="","",CONCATENATE('keuzelijst zorgaanbieder'!$D$1+22)) ->  | D31: =IF(ISERROR(VLOOKUP(C31,basisgegevens!$A$1:$AB$50,$D$3,FALSE)),"",VLOOKUP(C31,basisgegevens!$A$1:$AB$404,$D$3,FALSE)) ->  | E31: =IF(ISERROR(VLOOKUP(C31,basisgegevens!$A$1:$ZL$50,$E$3,FALSE)),"",VLOOKUP(C31,basisgegevens!$A$1:$AB$50,$E$3,FALSE)) ->  | H31: =IF(ISERROR(VLOOKUP(C31,basisgegevens!$A$1:$AB$50,$H$3,FALSE)),"",VLOOKUP(C31,basisgegevens!$A$1:$AB$50,$H$3,FALSE)) ->  | J31: =IF(ISERROR(VLOOKUP(C31,basisgegevens!$A$1:$AB$50,$J$3,FALSE)),"",VLOOKUP(C31,basisgegevens!$A$1:$AB$50,$J$3,FALSE)) ->  | K31: =IF(ISERROR(VLOOKUP(C31,basisgegevens!$A$1:$AB$50,$K$3,FALSE)),"",VLOOKUP(C31,basisgegevens!$A$1:$AB$50,$K$3,FALSE)) ->  | N31: =IF(ISERROR(VLOOKUP(C31,basisgegevens!$A$1:$AB$50,$N$3,FALSE)),"",VLOOKUP(C31,basisgegevens!$A$1:$AB$50,$N$3,FALSE)) ->  | O31: =IF(ISERROR(VLOOKUP(C31,basisgegevens!$A$1:$AB$50,$O$3,FALSE)),"",VLOOKUP(C31,basisgegevens!$A$1:$AB$50,$O$3,FALSE)) ->  | Q31: =IF(ISERROR(VLOOKUP(C31,basisgegevens!$A$1:$AB$50,$Q$3,FALSE)),"",VLOOKUP(C31,basisgegevens!$A$1:$AB$50,$Q$3,FALSE)) ->  | R31: =IF(ISERROR(VLOOKUP(C31,basisgegevens!$A$1:$AB$50,$R$3,FALSE)),"",VLOOKUP(C31,basisgegevens!$A$1:$AB$409,$R$3,FALSE)) ->  | T31: =IF(ISERROR(VLOOKUP(C31,basisgegevens!$A$1:$AB$50,$T$3,FALSE)),"",VLOOKUP(C31,basisgegevens!$A$1:$AB$409,$T$3,FALSE)) -> 
C32: =IF('keuzelijst zorgaanbieder'!$E$1="","",CONCATENATE('keuzelijst zorgaanbieder'!$E$1+22)) ->  | D32: =IF(ISERROR(VLOOKUP(C32,basisgegevens!$A$1:$AB$50,$D$3,FALSE)),"",VLOOKUP(C32,basisgegevens!$A$1:$AB$404,$D$3,FALSE)) ->  | E32: =IF(ISERROR(VLOOKUP(C32,basisgegevens!$A$1:$ZL$50,$E$3,FALSE)),"",VLOOKUP(C32,basisgegevens!$A$1:$AB$50,$E$3,FALSE)) ->  | H32: =IF(ISERROR(VLOOKUP(C32,basisgegevens!$A$1:$AB$50,$H$3,FALSE)),"",VLOOKUP(C32,basisgegevens!$A$1:$AB$50,$H$3,FALSE)) ->  | J32: =IF(ISERROR(VLOOKUP(C32,basisgegevens!$A$1:$AB$50,$J$3,FALSE)),"",VLOOKUP(C32,basisgegevens!$A$1:$AB$50,$J$3,FALSE)) ->  | K32: =IF(ISERROR(VLOOKUP(C32,basisgegevens!$A$1:$AB$50,$K$3,FALSE)),"",VLOOKUP(C32,basisgegevens!$A$1:$AB$50,$K$3,FALSE)) ->  | N32: =IF(ISERROR(VLOOKUP(C32,basisgegevens!$A$1:$AB$50,$N$3,FALSE)),"",VLOOKUP(C32,basisgegevens!$A$1:$AB$50,$N$3,FALSE)) ->  | O32: =IF(ISERROR(VLOOKUP(C32,basisgegevens!$A$1:$AB$50,$O$3,FALSE)),"",VLOOKUP(C32,basisgegevens!$A$1:$AB$50,$O$3,FALSE)) ->  | Q32: =IF(ISERROR(VLOOKUP(C32,basisgegevens!$A$1:$AB$50,$Q$3,FALSE)),"",VLOOKUP(C32,basisgegevens!$A$1:$AB$50,$Q$3,FALSE)) ->  | R32: =IF(ISERROR(VLOOKUP(C32,basisgegevens!$A$1:$AB$50,$R$3,FALSE)),"",VLOOKUP(C32,basisgegevens!$A$1:$AB$409,$R$3,FALSE)) ->  | T32: =IF(ISERROR(VLOOKUP(C32,basisgegevens!$A$1:$AB$50,$T$3,FALSE)),"",VLOOKUP(C32,basisgegevens!$A$1:$AB$409,$T$3,FALSE)) -> 
T33: =IF(ISERROR(VLOOKUP(C33,basisgegevens!$A$1:$AB$50,$T$3,FALSE)),"",VLOOKUP(C33,basisgegevens!$A$1:$AB$409,$T$3,FALSE)) -> 
B34: Bijstandsorganisatie | T34: =IF(ISERROR(VLOOKUP(C34,basisgegevens!$A$1:$AB$50,$T$3,FALSE)),"",VLOOKUP(C34,basisgegevens!$A$1:$AB$409,$T$3,FALSE)) -> 
C35: =IF('keuzelijst bijstand'!$A$1="","",CONCATENATE('keuzelijst bijstand'!$A$1+29)) ->  | D35: =IF(ISERROR(VLOOKUP(C35,basisgegevens!$A$1:$AB$89,$D$3,FALSE)),"",VLOOKUP(C35,basisgegevens!$A$1:$AB$404,$D$3,FALSE)) ->  | E35: =IF(ISERROR(VLOOKUP(C35,basisgegevens!$A$1:$ZL$50,$E$3,FALSE)),"",VLOOKUP(C35,basisgegevens!$A$1:$AB$50,$E$3,FALSE)) ->  | H35: =IF(ISERROR(VLOOKUP(C35,basisgegevens!$A$1:$AB$50,$H$3,FALSE)),"",VLOOKUP(C35,basisgegevens!$A$1:$AB$50,$H$3,FALSE)) ->  | J35: =IF(ISERROR(VLOOKUP(C35,basisgegevens!$A$1:$AB$50,$J$3,FALSE)),"",VLOOKUP(C35,basisgegevens!$A$1:$AB$50,$J$3,FALSE)) ->  | K35: =IF(ISERROR(VLOOKUP(C35,basisgegevens!$A$1:$AB$50,$K$3,FALSE)),"",VLOOKUP(C35,basisgegevens!$A$1:$AB$50,$K$3,FALSE)) ->  | N35: =IF(ISERROR(VLOOKUP(C35,basisgegevens!$A$1:$AB$50,$N$3,FALSE)),"",VLOOKUP(C35,basisgegevens!$A$1:$AB$50,$N$3,FALSE)) ->  | O35: =IF(ISERROR(VLOOKUP(C35,basisgegevens!$A$1:$AB$50,$O$3,FALSE)),"",VLOOKUP(C35,basisgegevens!$A$1:$AB$50,$O$3,FALSE)) ->  | P35: =IF(M35="","",IF(M35=0,0,IF(N35="+",M35+O35,IF(N35="*",M35*O35,M35)))) ->  | Q35: =IF(ISERROR(VLOOKUP(C35,basisgegevens!$A$1:$AB$50,$Q$3,FALSE)),"",VLOOKUP(C35,basisgegevens!$A$1:$AB$50,$Q$3,FALSE)) ->  | R35: =IF(ISERROR(VLOOKUP(C35,basisgegevens!$A$1:$AB$50,$R$3,FALSE)),"",VLOOKUP(C35,basisgegevens!$A$1:$AB$409,$R$3,FALSE)) ->  | S35: =R35 ->  | T35: =IF(ISERROR(VLOOKUP(C35,basisgegevens!$A$1:$AB$50,$T$3,FALSE)),"",VLOOKUP(C35,basisgegevens!$A$1:$AB$409,$T$3,FALSE)) -> 
T36: =IF(ISERROR(VLOOKUP(C36,basisgegevens!$A$1:$AB$50,$T$3,FALSE)),"",VLOOKUP(C36,basisgegevens!$A$1:$AB$409,$T$3,FALSE)) -> 
B37: Vervoer | H37: =IF(ISERROR(VLOOKUP(C37,basisgegevens!$A$1:$AB$50,$H$3,FALSE)),"",VLOOKUP(C37,basisgegevens!$A$1:$AB$50,$H$3,FALSE)) ->  | N37: =IF(ISERROR(VLOOKUP(C37,basisgegevens!$A$1:$AB$50,$N$3,FALSE)),"",IF(VLOOKUP(C37,basisgegevens!$A$1:$AB$50,$N$3,FALSE)=0,"",VLOOKUP(C37,basisgegevens!$A$1:$AB$50,$N$3,FALSE))) ->  | O37: =IF(ISERROR(VLOOKUP(C37,basisgegevens!$A$1:$AB$50,$O$3,FALSE)),"",VLOOKUP(C37,basisgegevens!$A$1:$AB$50,$O$3,FALSE)) ->  | T37: =IF(ISERROR(VLOOKUP(C37,basisgegevens!$A$1:$AB$50,$T$3,FALSE)),"",VLOOKUP(C37,basisgegevens!$A$1:$AB$409,$T$3,FALSE)) -> 
C38: =IF('keuzelijst vervoer'!$B$1="","",CONCATENATE('keuzelijst vervoer'!$B$1+34)) ->  | D38: =IF(ISERROR(VLOOKUP(C38,basisgegevens!$A$1:$AB$50,$D$3,FALSE)),"",VLOOKUP(C38,basisgegevens!$A$1:$AB$404,$D$3,FALSE)) ->  | E38: =IF(ISERROR(VLOOKUP(C38,basisgegevens!$A$1:$ZL$50,$E$3,FALSE)),"",VLOOKUP(C38,basisgegevens!$A$1:$AB$50,$E$3,FALSE)) ->  | H38: =IF(ISERROR(VLOOKUP(C38,basisgegevens!$A$1:$AB$50,$H$3,FALSE)),"",VLOOKUP(C38,basisgegevens!$A$1:$AB$50,$H$3,FALSE)) ->  | J38: =IF(ISERROR(VLOOKUP(C38,basisgegevens!$A$1:$AB$50,$J$3,FALSE)),"",VLOOKUP(C38,basisgegevens!$A$1:$AB$50,$J$3,FALSE)) ->  | K38: =IF(ISERROR(VLOOKUP(C38,basisgegevens!$A$1:$AB$50,$K$3,FALSE)),"",VLOOKUP(C38,basisgegevens!$A$1:$AB$50,$K$3,FALSE)) ->  | L38: =IF(ISERROR(VLOOKUP(C38,basisgegevens!$A$1:$AB$50,$L$3,FALSE)),"",VLOOKUP(C38,basisgegevens!$A$1:$AB$50,$L$3,FALSE)) ->  | N38: =IF(ISERROR(VLOOKUP(C38,basisgegevens!$A$1:$AB$50,$N$3,FALSE)),"",IF(VLOOKUP(C38,basisgegevens!$A$1:$AB$50,$N$3,FALSE)=0,"",VLOOKUP(C38,basisgegevens!$A$1:$AB$50,$N$3,FALSE))) ->  | O38: =IF(ISERROR(VLOOKUP(C38,basisgegevens!$A$1:$AB$50,$O$3,FALSE)),"",VLOOKUP(C38,basisgegevens!$A$1:$AB$50,$O$3,FALSE)) ->  | Q38: =IF(ISERROR(VLOOKUP(C38,basisgegevens!$A$1:$AB$50,$Q$3,FALSE)),"",VLOOKUP(C38,basisgegevens!$A$1:$AB$50,$Q$3,FALSE)) ->  | R38: =IF(ISERROR(VLOOKUP(C38,basisgegevens!$A$1:$AB$50,$R$3,FALSE)),"",VLOOKUP(C38,basisgegevens!$A$1:$AB$409,$R$3,FALSE)) ->  | S38: =R38 ->  | T38: =IF(ISERROR(VLOOKUP(C38,basisgegevens!$A$1:$AB$50,$T$3,FALSE)),"",VLOOKUP(C38,basisgegevens!$A$1:$AB$409,$T$3,FALSE)) -> 
C39: =IF('keuzelijst vervoer'!$C$1="","",CONCATENATE('keuzelijst vervoer'!$C$1+34)) ->  | D39: =IF(ISERROR(VLOOKUP(C39,basisgegevens!$A$1:$AB$50,$D$3,FALSE)),"",VLOOKUP(C39,basisgegevens!$A$1:$AB$404,$D$3,FALSE)) ->  | E39: =IF(ISERROR(VLOOKUP(C39,basisgegevens!$A$1:$ZL$50,$E$3,FALSE)),"",VLOOKUP(C39,basisgegevens!$A$1:$AB$50,$E$3,FALSE)) ->  | H39: =IF(ISERROR(VLOOKUP(C39,basisgegevens!$A$1:$AB$50,$H$3,FALSE)),"",VLOOKUP(C39,basisgegevens!$A$1:$AB$50,$H$3,FALSE)) ->  | J39: =IF(ISERROR(VLOOKUP(C39,basisgegevens!$A$1:$AB$50,$J$3,FALSE)),"",VLOOKUP(C39,basisgegevens!$A$1:$AB$50,$J$3,FALSE)) ->  | K39: =IF(ISERROR(VLOOKUP(C39,basisgegevens!$A$1:$AB$50,$K$3,FALSE)),"",VLOOKUP(C39,basisgegevens!$A$1:$AB$50,$K$3,FALSE)) ->  | L39: =IF(ISERROR(VLOOKUP(C39,basisgegevens!$A$1:$AB$50,$L$3,FALSE)),"",VLOOKUP(C39,basisgegevens!$A$1:$AB$50,$L$3,FALSE)) ->  | N39: =IF(ISERROR(VLOOKUP(C39,basisgegevens!$A$1:$AB$50,$N$3,FALSE)),"",IF(VLOOKUP(C39,basisgegevens!$A$1:$AB$50,$N$3,FALSE)=0,"",VLOOKUP(C39,basisgegevens!$A$1:$AB$50,$N$3,FALSE))) ->  | O39: =IF(ISERROR(VLOOKUP(C39,basisgegevens!$A$1:$AB$50,$O$3,FALSE)),"",VLOOKUP(C39,basisgegevens!$A$1:$AB$50,$O$3,FALSE)) ->  | Q39: =IF(ISERROR(VLOOKUP(C39,basisgegevens!$A$1:$AB$50,$Q$3,FALSE)),"",VLOOKUP(C39,basisgegevens!$A$1:$AB$50,$Q$3,FALSE)) ->  | R39: =IF(ISERROR(VLOOKUP(C39,basisgegevens!$A$1:$AB$50,$R$3,FALSE)),"",VLOOKUP(C39,basisgegevens!$A$1:$AB$409,$R$3,FALSE)) ->  | S39: =R39 ->  | T39: =IF(ISERROR(VLOOKUP(C39,basisgegevens!$A$1:$AB$50,$T$3,FALSE)),"",VLOOKUP(C39,basisgegevens!$A$1:$AB$409,$T$3,FALSE)) -> 
C40: =IF('keuzelijst vervoer'!$D$1="","",CONCATENATE('keuzelijst vervoer'!$D$1+34)) ->  | D40: =IF(ISERROR(VLOOKUP(C40,basisgegevens!$A$1:$AB$50,$D$3,FALSE)),"",VLOOKUP(C40,basisgegevens!$A$1:$AB$404,$D$3,FALSE)) ->  | E40: =IF(ISERROR(VLOOKUP(C40,basisgegevens!$A$1:$ZL$50,$E$3,FALSE)),"",VLOOKUP(C40,basisgegevens!$A$1:$AB$50,$E$3,FALSE)) ->  | H40: =IF(ISERROR(VLOOKUP(C40,basisgegevens!$A$1:$AB$50,$H$3,FALSE)),"",VLOOKUP(C40,basisgegevens!$A$1:$AB$50,$H$3,FALSE)) ->  | J40: =IF(ISERROR(VLOOKUP(C40,basisgegevens!$A$1:$AB$50,$J$3,FALSE)),"",VLOOKUP(C40,basisgegevens!$A$1:$AB$50,$J$3,FALSE)) ->  | K40: =IF(ISERROR(VLOOKUP(C40,basisgegevens!$A$1:$AB$50,$K$3,FALSE)),"",VLOOKUP(C40,basisgegevens!$A$1:$AB$50,$K$3,FALSE)) ->  | L40: =IF(ISERROR(VLOOKUP(C40,basisgegevens!$A$1:$AB$50,$L$3,FALSE)),"",VLOOKUP(C40,basisgegevens!$A$1:$AB$50,$L$3,FALSE)) ->  | N40: =IF(ISERROR(VLOOKUP(C40,basisgegevens!$A$1:$AB$50,$N$3,FALSE)),"",IF(VLOOKUP(C40,basisgegevens!$A$1:$AB$50,$N$3,FALSE)=0,"",VLOOKUP(C40,basisgegevens!$A$1:$AB$50,$N$3,FALSE))) ->  | O40: =IF(ISERROR(VLOOKUP(C40,basisgegevens!$A$1:$AB$50,$O$3,FALSE)),"",VLOOKUP(C40,basisgegevens!$A$1:$AB$50,$O$3,FALSE)) ->  | Q40: =IF(ISERROR(VLOOKUP(C40,basisgegevens!$A$1:$AB$50,$Q$3,FALSE)),"",VLOOKUP(C40,basisgegevens!$A$1:$AB$50,$Q$3,FALSE)) ->  | R40: =IF(ISERROR(VLOOKUP(C40,basisgegevens!$A$1:$AB$50,$R$3,FALSE)),"",VLOOKUP(C40,basisgegevens!$A$1:$AB$409,$R$3,FALSE)) ->  | T40: =IF(ISERROR(VLOOKUP(C40,basisgegevens!$A$1:$AB$50,$T$3,FALSE)),"",VLOOKUP(C40,basisgegevens!$A$1:$AB$409,$T$3,FALSE)) -> 
C41: =IF('keuzelijst vervoer'!$E$1="","",CONCATENATE('keuzelijst vervoer'!$E$1+34)) ->  | D41: =IF(ISERROR(VLOOKUP(C41,basisgegevens!$A$1:$AB$50,$D$3,FALSE)),"",VLOOKUP(C41,basisgegevens!$A$1:$AB$404,$D$3,FALSE)) ->  | E41: =IF(ISERROR(VLOOKUP(C41,basisgegevens!$A$1:$ZL$50,$E$3,FALSE)),"",VLOOKUP(C41,basisgegevens!$A$1:$AB$50,$E$3,FALSE)) ->  | H41: =IF(ISERROR(VLOOKUP(C41,basisgegevens!$A$1:$AB$50,$H$3,FALSE)),"",VLOOKUP(C41,basisgegevens!$A$1:$AB$50,$H$3,FALSE)) ->  | J41: =IF(ISERROR(VLOOKUP(C41,basisgegevens!$A$1:$AB$50,$J$3,FALSE)),"",VLOOKUP(C41,basisgegevens!$A$1:$AB$50,$J$3,FALSE)) ->  | K41: =IF(ISERROR(VLOOKUP(C41,basisgegevens!$A$1:$AB$50,$K$3,FALSE)),"",VLOOKUP(C41,basisgegevens!$A$1:$AB$50,$K$3,FALSE)) ->  | L41: =IF(ISERROR(VLOOKUP(C41,basisgegevens!$A$1:$AB$50,$L$3,FALSE)),"",VLOOKUP(C41,basisgegevens!$A$1:$AB$50,$L$3,FALSE)) ->  | N41: =IF(ISERROR(VLOOKUP(C41,basisgegevens!$A$1:$AB$50,$N$3,FALSE)),"",IF(VLOOKUP(C41,basisgegevens!$A$1:$AB$50,$N$3,FALSE)=0,"",VLOOKUP(C41,basisgegevens!$A$1:$AB$50,$N$3,FALSE))) ->  | O41: =IF(ISERROR(VLOOKUP(C41,basisgegevens!$A$1:$AB$50,$O$3,FALSE)),"",VLOOKUP(C41,basisgegevens!$A$1:$AB$50,$O$3,FALSE)) ->  | Q41: =IF(ISERROR(VLOOKUP(C41,basisgegevens!$A$1:$AB$50,$Q$3,FALSE)),"",VLOOKUP(C41,basisgegevens!$A$1:$AB$50,$Q$3,FALSE)) ->  | R41: =IF(ISERROR(VLOOKUP(C41,basisgegevens!$A$1:$AB$50,$R$3,FALSE)),"",VLOOKUP(C41,basisgegevens!$A$1:$AB$409,$R$3,FALSE)) ->  | T41: =IF(ISERROR(VLOOKUP(C41,basisgegevens!$A$1:$AB$50,$T$3,FALSE)),"",VLOOKUP(C41,basisgegevens!$A$1:$AB$409,$T$3,FALSE)) -> 
B43: Andere
C44: =IF('keuzelijst Andere'!$B$1="","",CONCATENATE('keuzelijst Andere'!$B$1+39)) ->  | D44: =IF(ISERROR(VLOOKUP(C44,basisgegevens!$A$1:$AB$50,$D$3,FALSE)),"",VLOOKUP(C44,basisgegevens!$A$1:$AB$50,$D$3,FALSE)) ->  | G44: =IF(C44="","",CONCATENATE(D44," ",F44)) ->  | H44: =IF(ISERROR(VLOOKUP(C44,basisgegevens!$A$1:$AB$50,$H$3,FALSE)),"",VLOOKUP(C44,basisgegevens!$A$1:$AB$50,$H$3,FALSE)) ->  | J44: =IF(ISERROR(VLOOKUP(C44,basisgegevens!$A$1:$AB$50,$J$3,FALSE)),"",VLOOKUP(C44,basisgegevens!$A$1:$AB$50,$J$3,FALSE)) ->  | K44: =IF(ISERROR(VLOOKUP(C44,basisgegevens!$A$1:$AB$50,$K$3,FALSE)),"",VLOOKUP(C44,basisgegevens!$A$1:$AB$50,$K$3,FALSE)) ->  | L44: =IF(ISERROR(VLOOKUP(C44,basisgegevens!$A$1:$AB$50,$L$3,FALSE)),"",VLOOKUP(C44,basisgegevens!$A$1:$AB$50,$L$3,FALSE)) ->  | M44: =IF(L44="","",L44) ->  | N44: =IF(ISERROR(VLOOKUP(C44,basisgegevens!$A$1:$AB$50,$N$3,FALSE)),"",IF(VLOOKUP(C44,basisgegevens!$A$1:$AB$50,$N$3,FALSE)=0,"",VLOOKUP(C44,basisgegevens!$A$1:$AB$50,$N$3,FALSE))) ->  | O44: =IF(ISERROR(VLOOKUP(C44,basisgegevens!$A$1:$AB$50,$O$3,FALSE)),"",VLOOKUP(C44,basisgegevens!$A$1:$AB$50,$O$3,FALSE)) ->  | P44: =IF(M44="","",IF(M44=0,0,IF(N44="+",M44+O44,IF(N44="*",M44*O44,M44)))) ->  | Q44: =IF(ISERROR(VLOOKUP(C44,basisgegevens!$A$1:$AB$50,$Q$3,FALSE)),"",VLOOKUP(C44,basisgegevens!$A$1:$AB$50,$Q$3,FALSE)) ->  | R44: =IF(ISERROR(VLOOKUP(C44,basisgegevens!$A$1:$AB$50,$R$3,FALSE)),"",VLOOKUP(C44,basisgegevens!$A$1:$AB$409,$R$3,FALSE)) ->  | S44: =R44 ->  | T44: =IF(ISERROR(VLOOKUP(C44,basisgegevens!$A$1:$AB$50,$T$3,FALSE)),"",VLOOKUP(C44,basisgegevens!$A$1:$AB$409,$T$3,FALSE)) -> 
C45: =IF('keuzelijst Andere'!$C$1="","",CONCATENATE('keuzelijst Andere'!$C$1+39)) ->  | D45: =IF(ISERROR(VLOOKUP(C45,basisgegevens!$A$1:$AB$50,$D$3,FALSE)),"",VLOOKUP(C45,basisgegevens!$A$1:$AB$50,$D$3,FALSE)) ->  | H45: =IF(ISERROR(VLOOKUP(C45,basisgegevens!$A$1:$AB$50,$H$3,FALSE)),"",VLOOKUP(C45,basisgegevens!$A$1:$AB$50,$H$3,FALSE)) ->  | J45: =IF(ISERROR(VLOOKUP(C45,basisgegevens!$A$1:$AB$50,$J$3,FALSE)),"",VLOOKUP(C45,basisgegevens!$A$1:$AB$50,$J$3,FALSE)) ->  | K45: =IF(ISERROR(VLOOKUP(C45,basisgegevens!$A$1:$AB$50,$K$3,FALSE)),"",VLOOKUP(C45,basisgegevens!$A$1:$AB$50,$K$3,FALSE)) ->  | L45: =IF(ISERROR(VLOOKUP(C45,basisgegevens!$A$1:$AB$50,$L$3,FALSE)),"",VLOOKUP(C45,basisgegevens!$A$1:$AB$50,$L$3,FALSE)) ->  | O45: =IF(ISERROR(VLOOKUP(C45,basisgegevens!$A$1:$AB$50,$O$3,FALSE)),"",VLOOKUP(C45,basisgegevens!$A$1:$AB$50,$O$3,FALSE)) ->  | Q45: =IF(ISERROR(VLOOKUP(C45,basisgegevens!$A$1:$AB$50,$Q$3,FALSE)),"",VLOOKUP(C45,basisgegevens!$A$1:$AB$50,$Q$3,FALSE)) ->  | R45: =IF(ISERROR(VLOOKUP(C45,basisgegevens!$A$1:$AB$50,$R$3,FALSE)),"",VLOOKUP(C45,basisgegevens!$A$1:$AB$409,$R$3,FALSE)) ->  | T45: =IF(ISERROR(VLOOKUP(C45,basisgegevens!$A$1:$AB$50,$T$3,FALSE)),"",VLOOKUP(C45,basisgegevens!$A$1:$AB$409,$T$3,FALSE)) -> 

Sheet jaarkalender
A1: TE BESTEDEN BUDGET
A2: REEDS GEBUDGETTEERD | B2: =V52 -> 0
A3: NOG TE BESTEDEN | B3: =B1-B2 -> 0
A5: BUITEN BUDGET | B5: =W52 -> 0
A10: INPUT | Q10: KOST
A12: AARD ONDERSTEUNING | B12: EENHEID | C12: JAN | D12: FEB | E12: MAART | F12: APRIL | G12: MEI | H12: JUNI | I12: JULI | J12: AUG | K12: SEPT | L12: OKT | M12: NOV | N12: DEC | O12: TOTAAL EH | P12: RAMING KOSTPRIJS | Q12: TOTAAL BEDRAG | R12: JAARKOST | S12: TOTAAL | T12: JAARLIMIET | U12: Budget? | V12: OP BUDGET | W12: BUITEN BUDGET
A14: Assistenten
A15: =IF('individuele bedragen'!G9="","",'individuele bedragen'!G9) ->  | B15: ='individuele bedragen'!H9 ->  | C15: =IF($A15="","",'individuele bedragen'!$I9) ->  | D15: =IF($A15="","",'individuele bedragen'!$I9) ->  | E15: =IF($A15="","",'individuele bedragen'!$I9) ->  | F15: =IF($A15="","",'individuele bedragen'!$I9) ->  | G15: =IF($A15="","",'individuele bedragen'!$I9) ->  | H15: =IF($A15="","",'individuele bedragen'!$I9) ->  | I15: =IF($A15="","",'individuele bedragen'!$I9) ->  | J15: =IF($A15="","",'individuele bedragen'!$I9) ->  | K15: =IF($A15="","",'individuele bedragen'!$I9) ->  | L15: =IF($A15="","",'individuele bedragen'!$I9) ->  | M15: =IF($A15="","",'individuele bedragen'!$I9) ->  | N15: =IF($A15="","",'individuele bedragen'!$I9) ->  | O15: =IF(A15="","",SUM(C15:N15)) ->  | P15: =IF($A15="","",IF('individuele bedragen'!P9="",0,'individuele bedragen'!P9)) ->  | Q15: =IF(A15="","",O15*P15) ->  | R15: =IF(A15="","",IF('individuele bedragen'!Q9="",0,'individuele bedragen'!Q9)) ->  | S15: =IF(A15="","",Q15+R15) ->  | T15: ='individuele bedragen'!T9 ->  | U15: ='individuele bedragen'!S9 ->  | V15: =IF(S15="","",IF(U15="J",S15,0)) ->  | W15: =IF(S15="","",IF(U15<>"J",S15,0)) ->  | X15: =IF(S15="","",IF(T15=0,"",IF(S15>T15,"Opgelet; jaarlimiet overschreden",""))) -> 
A16: =IF('individuele bedragen'!G10="","",'individuele bedragen'!G10) ->  | B16: ='individuele bedragen'!H10 ->  | C16: =IF($A16="","",'individuele bedragen'!$I10) ->  | D16: =IF($A16="","",'individuele bedragen'!$I10) ->  | E16: =IF($A16="","",'individuele bedragen'!$I10) ->  | F16: =IF($A16="","",'individuele bedragen'!$I10) ->  | G16: =IF($A16="","",'individuele bedragen'!$I10) ->  | H16: =IF($A16="","",'individuele bedragen'!$I10) ->  | I16: =IF($A16="","",'individuele bedragen'!$I10) ->  | J16: =IF($A16="","",'individuele bedragen'!$I10) ->  | K16: =IF($A16="","",'individuele bedragen'!$I10) ->  | L16: =IF($A16="","",'individuele bedragen'!$I10) ->  | M16: =IF($A16="","",'individuele bedragen'!$I10) ->  | N16: =IF($A16="","",'individuele bedragen'!$I10) ->  | O16: =IF(A16="","",SUM(C16:N16)) ->  | P16: =IF($A16="","",IF('individuele bedragen'!P10="",0,'individuele bedragen'!P10)) ->  | Q16: =IF(A16="","",O16*P16) ->  | R16: =IF(A16="","",IF('individuele bedragen'!Q10="",0,'individuele bedragen'!Q10)) ->  | S16: =IF(A16="","",Q16+R16) ->  | T16: ='individuele bedragen'!T10 ->  | U16: ='individuele bedragen'!S10 ->  | V16: =IF(S16="","",IF(U16="J",S16,0)) ->  | W16: =IF(S16="","",IF(U16<>"J",S16,0)) -> 
A17: =IF('individuele bedragen'!G11="","",'individuele bedragen'!G11) ->  | B17: ='individuele bedragen'!H11 ->  | C17: =IF($A17="","",'individuele bedragen'!$I11) ->  | D17: =IF($A17="","",'individuele bedragen'!$I11) ->  | E17: =IF($A17="","",'individuele bedragen'!$I11) ->  | F17: =IF($A17="","",'individuele bedragen'!$I11) ->  | G17: =IF($A17="","",'individuele bedragen'!$I11) ->  | H17: =IF($A17="","",'individuele bedragen'!$I11) ->  | I17: =IF($A17="","",'individuele bedragen'!$I11) ->  | J17: =IF($A17="","",'individuele bedragen'!$I11) ->  | K17: =IF($A17="","",'individuele bedragen'!$I11) ->  | L17: =IF($A17="","",'individuele bedragen'!$I11) ->  | M17: =IF($A17="","",'individuele bedragen'!$I11) ->  | N17: =IF($A17="","",'individuele bedragen'!$I11) ->  | P17: =IF($A17="","",IF('individuele bedragen'!P11="",0,'individuele bedragen'!P11)) ->  | R17: =IF(A17="","",IF('individuele bedragen'!Q11="",0,'individuele bedragen'!Q11)) ->  | T17: ='individuele bedragen'!T11 ->  | U17: ='individuele bedragen'!S11 -> 
A18: =IF('individuele bedragen'!G12="","",'individuele bedragen'!G12) ->  | B18: ='individuele bedragen'!H12 ->  | C18: =IF($A18="","",'individuele bedragen'!$I12) ->  | D18: =IF($A18="","",'individuele bedragen'!$I12) ->  | E18: =IF($A18="","",'individuele bedragen'!$I12) ->  | F18: =IF($A18="","",'individuele bedragen'!$I12) ->  | G18: =IF($A18="","",'individuele bedragen'!$I12) ->  | H18: =IF($A18="","",'individuele bedragen'!$I12) ->  | I18: =IF($A18="","",'individuele bedragen'!$I12) ->  | J18: =IF($A18="","",'individuele bedragen'!$I12) ->  | K18: =IF($A18="","",'individuele bedragen'!$I12) ->  | L18: =IF($A18="","",'individuele bedragen'!$I12) ->  | M18: =IF($A18="","",'individuele bedragen'!$I12) ->  | N18: =IF($A18="","",'individuele bedragen'!$I12) ->  | P18: =IF($A18="","",IF('individuele bedragen'!P12="",0,'individuele bedragen'!P12)) ->  | R18: =IF(A18="","",IF('individuele bedragen'!Q12="",0,'individuele bedragen'!Q12)) ->  | T18: ='individuele bedragen'!T12 ->  | U18: ='individuele bedragen'!S12 -> 
A19: =IF('individuele bedragen'!G13="","",'individuele bedragen'!G13) ->  | B19: ='individuele bedragen'!H13 ->  | C19: =IF($A19="","",'individuele bedragen'!$I13) ->  | D19: =IF($A19="","",'individuele bedragen'!$I13) ->  | E19: =IF($A19="","",'individuele bedragen'!$I13) ->  | F19: =IF($A19="","",'individuele bedragen'!$I13) ->  | G19: =IF($A19="","",'individuele bedragen'!$I13) ->  | H19: =IF($A19="","",'individuele bedragen'!$I13) ->  | I19: =IF($A19="","",'individuele bedragen'!$I13) ->  | J19: =IF($A19="","",'individuele bedragen'!$I13) ->  | K19: =IF($A19="","",'individuele bedragen'!$I13) ->  | L19: =IF($A19="","",'individuele bedragen'!$I13) ->  | M19: =IF($A19="","",'individuele bedragen'!$I13) ->  | N19: =IF($A19="","",'individuele bedragen'!$I13) ->  | P19: =IF($A19="","",IF('individuele bedragen'!P13="",0,'individuele bedragen'!P13)) ->  | R19: =IF(A19="","",IF('individuele bedragen'!Q13="",0,'individuele bedragen'!Q13)) ->  | T19: ='individuele bedragen'!T13 ->  | U19: ='individuele bedragen'!S13 -> 
A20: =IF('individuele bedragen'!G14="","",'individuele bedragen'!G14) ->  | B20: ='individuele bedragen'!H14 ->  | C20: =IF($A20="","",'individuele bedragen'!$I14) ->  | D20: =IF($A20="","",'individuele bedragen'!$I14) ->  | E20: =IF($A20="","",'individuele bedragen'!$I14) ->  | F20: =IF($A20="","",'individuele bedragen'!$I14) ->  | G20: =IF($A20="","",'individuele bedragen'!$I14) ->  | H20: =IF($A20="","",'individuele bedragen'!$I14) ->  | I20: =IF($A20="","",'individuele bedragen'!$I14) ->  | J20: =IF($A20="","",'individuele bedragen'!$I14) ->  | K20: =IF($A20="","",'individuele bedragen'!$I14) ->  | L20: =IF($A20="","",'individuele bedragen'!$I14) ->  | M20: =IF($A20="","",'individuele bedragen'!$I14) ->  | N20: =IF($A20="","",'individuele bedragen'!$I14) ->  | P20: =IF($A20="","",IF('individuele bedragen'!P14="",0,'individuele bedragen'!P14)) ->  | R20: =IF(A20="","",IF('individuele bedragen'!Q14="",0,'individuele bedragen'!Q14)) ->  | T20: ='individuele bedragen'!T14 ->  | U20: ='individuele bedragen'!S14 -> 
A21: =IF('individuele bedragen'!G15="","",'individuele bedragen'!G15) ->  | B21: ='individuele bedragen'!H15 ->  | C21: =IF($A21="","",'individuele bedragen'!$I15) ->  | D21: =IF($A21="","",'individuele bedragen'!$I15) ->  | E21: =IF($A21="","",'individuele bedragen'!$I15) ->  | F21: =IF($A21="","",'individuele bedragen'!$I15) ->  | G21: =IF($A21="","",'individuele bedragen'!$I15) ->  | H21: =IF($A21="","",'individuele bedragen'!$I15) ->  | I21: =IF($A21="","",'individuele bedragen'!$I15) ->  | J21: =IF($A21="","",'individuele bedragen'!$I15) ->  | K21: =IF($A21="","",'individuele bedragen'!$I15) ->  | L21: =IF($A21="","",'individuele bedragen'!$I15) ->  | M21: =IF($A21="","",'individuele bedragen'!$I15) ->  | N21: =IF($A21="","",'individuele bedragen'!$I15) ->  | P21: =IF($A21="","",IF('individuele bedragen'!P15="",0,'individuele bedragen'!P15)) ->  | R21: =IF(A21="","",IF('individuele bedragen'!Q15="",0,'individuele bedragen'!Q15)) ->  | T21: ='individuele bedragen'!T15 ->  | U21: ='individuele bedragen'!S15 -> 
A22: =IF('individuele bedragen'!G16="","",'individuele bedragen'!G16) ->  | B22: ='individuele bedragen'!H16 ->  | C22: =IF($A22="","",'individuele bedragen'!$I16) ->  | D22: =IF($A22="","",'individuele bedragen'!$I16) ->  | E22: =IF($A22="","",'individuele bedragen'!$I16) ->  | F22: =IF($A22="","",'individuele bedragen'!$I16) ->  | G22: =IF($A22="","",'individuele bedragen'!$I16) ->  | H22: =IF($A22="","",'individuele bedragen'!$I16) ->  | I22: =IF($A22="","",'individuele bedragen'!$I16) ->  | J22: =IF($A22="","",'individuele bedragen'!$I16) ->  | K22: =IF($A22="","",'individuele bedragen'!$I16) ->  | L22: =IF($A22="","",'individuele bedragen'!$I16) ->  | M22: =IF($A22="","",'individuele bedragen'!$I16) ->  | N22: =IF($A22="","",'individuele bedragen'!$I16) ->  | P22: =IF($A22="","",IF('individuele bedragen'!P16="",0,'individuele bedragen'!P16)) ->  | R22: =IF(A22="","",IF('individuele bedragen'!Q16="",0,'individuele bedragen'!Q16)) ->  | T22: ='individuele bedragen'!T16 ->  | U22: ='individuele bedragen'!S16 -> 
A23: =IF('individuele bedragen'!G17="","",'individuele bedragen'!G17) ->  | B23: ='individuele bedragen'!H17 ->  | C23: =IF($A23="","",'individuele bedragen'!$I17) ->  | D23: =IF($A23="","",'individuele bedragen'!$I17) ->  | E23: =IF($A23="","",'individuele bedragen'!$I17) ->  | F23: =IF($A23="","",'individuele bedragen'!$I17) ->  | G23: =IF($A23="","",'individuele bedragen'!$I17) ->  | H23: =IF($A23="","",'individuele bedragen'!$I17) ->  | I23: =IF($A23="","",'individuele bedragen'!$I17) ->  | J23: =IF($A23="","",'individuele bedragen'!$I17) ->  | K23: =IF($A23="","",'individuele bedragen'!$I17) ->  | L23: =IF($A23="","",'individuele bedragen'!$I17) ->  | M23: =IF($A23="","",'individuele bedragen'!$I17) ->  | N23: =IF($A23="","",'individuele bedragen'!$I17) ->  | P23: =IF($A23="","",IF('individuele bedragen'!P17="",0,'individuele bedragen'!P17)) ->  | R23: =IF(A23="","",IF('individuele bedragen'!Q17="",0,'individuele bedragen'!Q17)) ->  | T23: ='individuele bedragen'!T17 ->  | U23: ='individuele bedragen'!S17 -> 
A24: =IF('individuele bedragen'!G18="","",'individuele bedragen'!G18) ->  | B24: ='individuele bedragen'!H18 ->  | C24: =IF($A24="","",'individuele bedragen'!$I18) ->  | D24: =IF($A24="","",'individuele bedragen'!$I18) ->  | E24: =IF($A24="","",'individuele bedragen'!$I18) ->  | F24: =IF($A24="","",'individuele bedragen'!$I18) ->  | G24: =IF($A24="","",'individuele bedragen'!$I18) ->  | H24: =IF($A24="","",'individuele bedragen'!$I18) ->  | I24: =IF($A24="","",'individuele bedragen'!$I18) ->  | J24: =IF($A24="","",'individuele bedragen'!$I18) ->  | K24: =IF($A24="","",'individuele bedragen'!$I18) ->  | L24: =IF($A24="","",'individuele bedragen'!$I18) ->  | M24: =IF($A24="","",'individuele bedragen'!$I18) ->  | N24: =IF($A24="","",'individuele bedragen'!$I18) ->  | P24: =IF($A24="","",IF('individuele bedragen'!P18="",0,'individuele bedragen'!P18)) ->  | R24: =IF(A24="","",IF('individuele bedragen'!Q18="",0,'individuele bedragen'!Q18)) ->  | T24: ='individuele bedragen'!T18 ->  | U24: ='individuele bedragen'!S18 ->  | X24: =IF(S24="","",IF(T24=0,"",IF(S24>T24,"Opgelet; jaarlimiet overschreden",""))) -> 
A25: =IF('individuele bedragen'!G19="","",'individuele bedragen'!G19) ->  | B25: ='individuele bedragen'!H19 ->  | C25: =IF($A25="","",'individuele bedragen'!$I19) ->  | D25: =IF($A25="","",'individuele bedragen'!$I19) ->  | E25: =IF($A25="","",'individuele bedragen'!$I19) ->  | F25: =IF($A25="","",'individuele bedragen'!$I19) ->  | G25: =IF($A25="","",'individuele bedragen'!$I19) ->  | H25: =IF($A25="","",'individuele bedragen'!$I19) ->  | I25: =IF($A25="","",'individuele bedragen'!$I19) ->  | J25: =IF($A25="","",'individuele bedragen'!$I19) ->  | K25: =IF($A25="","",'individuele bedragen'!$I19) ->  | L25: =IF($A25="","",'individuele bedragen'!$I19) ->  | M25: =IF($A25="","",'individuele bedragen'!$I19) ->  | N25: =IF($A25="","",'individuele bedragen'!$I19) ->  | P25: =IF($A25="","",IF('individuele bedragen'!P19="",0,'individuele bedragen'!P19)) ->  | R25: =IF(A25="","",IF('individuele bedragen'!Q19="",0,'individuele bedragen'!Q19)) ->  | T25: ='individuele bedragen'!T19 ->  | U25: ='individuele bedragen'!S19 -> 
R26: =IF(A26="","",IF('individuele bedragen'!Q20="",0,'individuele bedragen'!Q20)) ->  | S26: =IF(A26="","",Q26+R26) ->  | T26: ='individuele bedragen'!T20 ->  | V26: =IF(S26="","",IF(U26="J",S26,0)) ->  | W26: =IF(S26="","",IF(U26<>"J",S26,0)) ->  | X26: =IF(S26="","",IF(T26=0,"",IF(S26>T26,"Opgelet; jaarlimiet overschreden",""))) -> 
A27: Huishouden, verzorging | T27: ='individuele bedragen'!T21 -> 
A28: =IF('individuele bedragen'!G22="","",'individuele bedragen'!G22) ->  | B28: ='individuele bedragen'!H22 ->  | C28: =IF($A28="","",'individuele bedragen'!$I22) ->  | D28: =IF($A28="","",'individuele bedragen'!$I22) ->  | E28: =IF($A28="","",'individuele bedragen'!$I22) ->  | F28: =IF($A28="","",'individuele bedragen'!$I22) ->  | G28: =IF($A28="","",'individuele bedragen'!$I22) ->  | H28: =IF($A28="","",'individuele bedragen'!$I22) ->  | I28: =IF($A28="","",'individuele bedragen'!$I22) ->  | J28: =IF($A28="","",'individuele bedragen'!$I22) ->  | K28: =IF($A28="","",'individuele bedragen'!$I22) ->  | L28: =IF($A28="","",'individuele bedragen'!$I22) ->  | M28: =IF($A28="","",'individuele bedragen'!$I22) ->  | N28: =IF($A28="","",'individuele bedragen'!$I22) ->  | O28: =IF(A28="","",SUM(C28:N28)) ->  | P28: =IF($A28="","",IF('individuele bedragen'!P22="",0,'individuele bedragen'!P22)) ->  | Q28: =IF(A28="","",O28*P28) ->  | R28: =IF(A28="","",IF('individuele bedragen'!Q22="",0,'individuele bedragen'!Q22)) ->  | S28: =IF(A28="","",Q28+R28) ->  | T28: ='individuele bedragen'!T22 ->  | U28: ='individuele bedragen'!S22 -> 
A29: =IF('individuele bedragen'!G23="","",'individuele bedragen'!G23) ->  | B29: ='individuele bedragen'!H23 ->  | C29: =IF($A29="","",'individuele bedragen'!$I23) ->  | D29: =IF($A29="","",'individuele bedragen'!$I23) ->  | E29: =IF($A29="","",'individuele bedragen'!$I23) ->  | F29: =IF($A29="","",'individuele bedragen'!$I23) ->  | G29: =IF($A29="","",'individuele bedragen'!$I23) ->  | H29: =IF($A29="","",'individuele bedragen'!$I23) ->  | I29: =IF($A29="","",'individuele bedragen'!$I23) ->  | J29: =IF($A29="","",'individuele bedragen'!$I23) ->  | K29: =IF($A29="","",'individuele bedragen'!$I23) ->  | L29: =IF($A29="","",'individuele bedragen'!$I23) ->  | M29: =IF($A29="","",'individuele bedragen'!$I23) ->  | N29: =IF($A29="","",'individuele bedragen'!$I23) ->  | P29: =IF($A29="","",IF('individuele bedragen'!P23="",0,'individuele bedragen'!P23)) ->  | R29: =IF(A29="","",IF('individuele bedragen'!Q23="",0,'individuele bedragen'!Q23)) ->  | T29: ='individuele bedragen'!T23 ->  | U29: ='individuele bedragen'!S23 -> 
A30: =IF('individuele bedragen'!G24="","",'individuele bedragen'!G24) ->  | B30: ='individuele bedragen'!H24 ->  | C30: =IF($A30="","",'individuele bedragen'!$I24) ->  | D30: =IF($A30="","",'individuele bedragen'!$I24) ->  | E30: =IF($A30="","",'individuele bedragen'!$I24) ->  | F30: =IF($A30="","",'individuele bedragen'!$I24) ->  | G30: =IF($A30="","",'individuele bedragen'!$I24) ->  | H30: =IF($A30="","",'individuele bedragen'!$I24) ->  | I30: =IF($A30="","",'individuele bedragen'!$I24) ->  | J30: =IF($A30="","",'individuele bedragen'!$I24) ->  | K30: =IF($A30="","",'individuele bedragen'!$I24) ->  | L30: =IF($A30="","",'individuele bedragen'!$I24) ->  | M30: =IF($A30="","",'individuele bedragen'!$I24) ->  | N30: =IF($A30="","",'individuele bedragen'!$I24) ->  | O30: =IF(A30="","",SUM(C30:N30)) ->  | P30: =IF($A30="","",IF('individuele bedragen'!P24="",0,'individuele bedragen'!P24)) ->  | Q30: =IF(A30="","",O30*P30) ->  | R30: =IF(A30="","",IF('individuele bedragen'!Q24="",0,'individuele bedragen'!Q24)) ->  | S30: =IF(A30="","",Q30+R30) ->  | T30: ='individuele bedragen'!T24 ->  | U30: ='individuele bedragen'!S24 -> 
A31: =IF('individuele bedragen'!G25="","",'individuele bedragen'!G25) ->  | B31: ='individuele bedragen'!H25 ->  | C31: =IF($A31="","",'individuele bedragen'!$I25) ->  | D31: =IF($A31="","",'individuele bedragen'!$I25) ->  | E31: =IF($A31="","",'individuele bedragen'!$I25) ->  | F31: =IF($A31="","",'individuele bedragen'!$I25) ->  | G31: =IF($A31="","",'individuele bedragen'!$I25) ->  | H31: =IF($A31="","",'individuele bedragen'!$I25) ->  | I31: =IF($A31="","",'individuele bedragen'!$I25) ->  | J31: =IF($A31="","",'individuele bedragen'!$I25) ->  | K31: =IF($A31="","",'individuele bedragen'!$I25) ->  | L31: =IF($A31="","",'individuele bedragen'!$I25) ->  | M31: =IF($A31="","",'individuele bedragen'!$I25) ->  | N31: =IF($A31="","",'individuele bedragen'!$I25) ->  | P31: =IF($A31="","",IF('individuele bedragen'!P25="",0,'individuele bedragen'!P25)) ->  | R31: =IF(A31="","",IF('individuele bedragen'!Q25="",0,'individuele bedragen'!Q25)) ->  | T31: ='individuele bedragen'!T25 ->  | U31: ='individuele bedragen'!S25 -> 
A32: =IF('individuele bedragen'!G26="","",'individuele bedragen'!G26) ->  | B32: ='individuele bedragen'!H26 ->  | C32: =IF($A32="","",'individuele bedragen'!$I26) ->  | D32: =IF($A32="","",'individuele bedragen'!$I26) ->  | E32: =IF($A32="","",'individuele bedragen'!$I26) ->  | F32: =IF($A32="","",'individuele bedragen'!$I26) ->  | G32: =IF($A32="","",'individuele bedragen'!$I26) ->  | H32: =IF($A32="","",'individuele bedragen'!$I26) ->  | I32: =IF($A32="","",'individuele bedragen'!$I26) ->  | J32: =IF($A32="","",'individuele bedragen'!$I26) ->  | K32: =IF($A32="","",'individuele bedragen'!$I26) ->  | L32: =IF($A32="","",'individuele bedragen'!$I26) ->  | M32: =IF($A32="","",'individuele bedragen'!$I26) ->  | N32: =IF($A32="","",'individuele bedragen'!$I26) ->  | P32: =IF($A32="","",IF('individuele bedragen'!P26="",0,'individuele bedragen'!P26)) ->  | R32: =IF(A32="","",IF('individuele bedragen'!Q26="",0,'individuele bedragen'!Q26)) ->  | T32: ='individuele bedragen'!T26 ->  | U32: ='individuele bedragen'!S26 -> 
A33: =IF('individuele bedragen'!G27="","",'individuele bedragen'!G27) ->  | R33: =IF(A33="","",IF('individuele bedragen'!Q27="",0,'individuele bedragen'!Q27)) ->  | S33: =IF(A33="","",Q33+R33) ->  | T33: ='individuele bedragen'!T27 -> 
A34: Vergunde zorgaanbieder | T34: ='individuele bedragen'!T28 -> 
A35: =IF('individuele bedragen'!G29="","",'individuele bedragen'!G29) ->  | B35: ='individuele bedragen'!H29 ->  | C35: =IF($A35="","",'individuele bedragen'!$I29) ->  | D35: =IF($A35="","",'individuele bedragen'!$I29) ->  | E35: =IF($A35="","",'individuele bedragen'!$I29) ->  | F35: =IF($A35="","",'individuele bedragen'!$I29) ->  | G35: =IF($A35="","",'individuele bedragen'!$I29) ->  | H35: =IF($A35="","",'individuele bedragen'!$I29) ->  | I35: =IF($A35="","",'individuele bedragen'!$I29) ->  | J35: =IF($A35="","",'individuele bedragen'!$I29) ->  | K35: =IF($A35="","",'individuele bedragen'!$I29) ->  | L35: =IF($A35="","",'individuele bedragen'!$I29) ->  | M35: =IF($A35="","",'individuele bedragen'!$I29) ->  | N35: =IF($A35="","",'individuele bedragen'!$I29) ->  | O35: =IF(A35="","",SUM(C35:N35)) ->  | P35: =IF($A35="","",IF('individuele bedragen'!P29="",0,'individuele bedragen'!P29)) ->  | Q35: =IF(A35="","",O35*P35) ->  | R35: =IF(A35="","",IF('individuele bedragen'!Q29="",0,'individuele bedragen'!Q29)) ->  | S35: =IF(A35="","",Q35+R35) ->  | T35: ='individuele bedragen'!T29 ->  | U35: ='individuele bedragen'!S29 ->  | V35: =IF(S35="","",IF(U35="J",S35,0)) ->  | W35: =IF(S35="","",IF(U35<>"J",S35,0)) -> 
A36: =IF('individuele bedragen'!G30="","",'individuele bedragen'!G30) ->  | B36: ='individuele bedragen'!H30 ->  | C36: =IF($A36="","",'individuele bedragen'!$I30) ->  | D36: =IF($A36="","",'individuele bedragen'!$I30) ->  | E36: =IF($A36="","",'individuele bedragen'!$I30) ->  | F36: =IF($A36="","",'individuele bedragen'!$I30) ->  | G36: =IF($A36="","",'individuele bedragen'!$I30) ->  | H36: =IF($A36="","",'individuele bedragen'!$I30) ->  | I36: =IF($A36="","",'individuele bedragen'!$I30) ->  | J36: =IF($A36="","",'individuele bedragen'!$I30) ->  | K36: =IF($A36="","",'individuele bedragen'!$I30) ->  | L36: =IF($A36="","",'individuele bedragen'!$I30) ->  | M36: =IF($A36="","",'individuele bedragen'!$I30) ->  | N36: =IF($A36="","",'individuele bedragen'!$I30) ->  | P36: =IF($A36="","",IF('individuele bedragen'!P30="",0,'individuele bedragen'!P30)) ->  | R36: =IF(A36="","",IF('individuele bedragen'!Q30="",0,'individuele bedragen'!Q30)) ->  | T36: ='individuele bedragen'!T30 ->  | U36: ='individuele bedragen'!S30 -> 
A37: =IF('individuele bedragen'!G31="","",'individuele bedragen'!G31) ->  | B37: ='individuele bedragen'!H31 ->  | C37: =IF($A37="","",'individuele bedragen'!$I31) ->  | D37: =IF($A37="","",'individuele bedragen'!$I31) ->  | E37: =IF($A37="","",'individuele bedragen'!$I31) ->  | F37: =IF($A37="","",'individuele bedragen'!$I31) ->  | G37: =IF($A37="","",'individuele bedragen'!$I31) ->  | H37: =IF($A37="","",'individuele bedragen'!$I31) ->  | I37: =IF($A37="","",'individuele bedragen'!$I31) ->  | J37: =IF($A37="","",'individuele bedragen'!$I31) ->  | K37: =IF($A37="","",'individuele bedragen'!$I31) ->  | L37: =IF($A37="","",'individuele bedragen'!$I31) ->  | M37: =IF($A37="","",'individuele bedragen'!$I31) ->  | N37: =IF($A37="","",'individuele bedragen'!$I31) ->  | P37: =IF($A37="","",IF('individuele bedragen'!P31="",0,'individuele bedragen'!P31)) ->  | R37: =IF(A37="","",IF('individuele bedragen'!Q31="",0,'individuele bedragen'!Q31)) ->  | T37: ='individuele bedragen'!T31 ->  | U37: ='individuele bedragen'!S31 -> 
A38: =IF('individuele bedragen'!G32="","",'individuele bedragen'!G32) ->  | B38: ='individuele bedragen'!H32 ->  | C38: =IF($A38="","",'individuele bedragen'!$I32) ->  | D38: =IF($A38="","",'individuele bedragen'!$I32) ->  | E38: =IF($A38="","",'individuele bedragen'!$I32) ->  | F38: =IF($A38="","",'individuele bedragen'!$I32) ->  | G38: =IF($A38="","",'individuele bedragen'!$I32) ->  | H38: =IF($A38="","",'individuele bedragen'!$I32) ->  | I38: =IF($A38="","",'individuele bedragen'!$I32) ->  | J38: =IF($A38="","",'individuele bedragen'!$I32) ->  | K38: =IF($A38="","",'individuele bedragen'!$I32) ->  | L38: =IF($A38="","",'individuele bedragen'!$I32) ->  | M38: =IF($A38="","",'individuele bedragen'!$I32) ->  | N38: =IF($A38="","",'individuele bedragen'!$I32) ->  | P38: =IF($A38="","",IF('individuele bedragen'!P32="",0,'individuele bedragen'!P32)) ->  | R38: =IF(A38="","",IF('individuele bedragen'!Q32="",0,'individuele bedragen'!Q32)) ->  | T38: ='individuele bedragen'!T32 ->  | U38: ='individuele bedragen'!S32 -> 
R39: =IF(A39="","",IF('individuele bedragen'!Q33="",0,'individuele bedragen'!Q33)) ->  | T39: ='individuele bedragen'!T33 ->  | V39: =IF(S39="","",IF(U39="J",S39,0)) ->  | W39: =IF(S39="","",IF(U39<>"J",S39,0)) -> 
A40: Bijstandsorganisatie
A41: =IF('individuele bedragen'!G35="","",'individuele bedragen'!G35) ->  | B41: ='individuele bedragen'!H35 ->  | C41: =IF($A41="","",'individuele bedragen'!$I35) ->  | D41: =IF($A41="","",'individuele bedragen'!$I35) ->  | E41: =IF($A41="","",'individuele bedragen'!$I35) ->  | F41: =IF($A41="","",'individuele bedragen'!$I35) ->  | G41: =IF($A41="","",'individuele bedragen'!$I35) ->  | H41: =IF($A41="","",'individuele bedragen'!$I35) ->  | I41: =IF($A41="","",'individuele bedragen'!$I35) ->  | J41: =IF($A41="","",'individuele bedragen'!$I35) ->  | K41: =IF($A41="","",'individuele bedragen'!$I35) ->  | L41: =IF($A41="","",'individuele bedragen'!$I35) ->  | M41: =IF($A41="","",'individuele bedragen'!$I35) ->  | N41: =IF($A41="","",'individuele bedragen'!$I35) ->  | O41: =IF(A41="","",SUM(C41:N41)) ->  | P41: =IF($A41="","",IF('individuele bedragen'!P35="",0,'individuele bedragen'!P35)) ->  | Q41: =IF(A41="","",O41*P41) ->  | R41: =IF(A41="","",IF('individuele bedragen'!Q35="",0,'individuele bedragen'!Q35)) ->  | S41: =IF(A41="","",Q41+R41) ->  | T41: ='individuele bedragen'!T35 ->  | U41: ='individuele bedragen'!S35 ->  | V41: =IF(S41="","",IF(U41="J",S41,0)) ->  | W41: =IF(S41="","",IF(U41<>"J",S41,0)) -> 
R42: =IF(A42="","",IF('individuele bedragen'!Q36="",0,'individuele bedragen'!Q36)) ->  | T42: ='individuele bedragen'!T36 ->  | V42: =IF(S42="","",IF(U42="J",S42,0)) ->  | W42: =IF(S42="","",IF(U42<>"J",S42,0)) -> 
A43: Vervoer | B43: ='individuele bedragen'!H37 ->  | T43: ='individuele bedragen'!T37 -> 
A44: =IF('individuele bedragen'!G38="","",'individuele bedragen'!G38) ->  | B44: ='individuele bedragen'!H38 ->  | C44: =IF($A44="","",'individuele bedragen'!$I38) ->  | D44: =IF($A44="","",'individuele bedragen'!$I38) ->  | E44: =IF($A44="","",'individuele bedragen'!$I38) ->  | F44: =IF($A44="","",'individuele bedragen'!$I38) ->  | G44: =IF($A44="","",'individuele bedragen'!$I38) ->  | H44: =IF($A44="","",'individuele bedragen'!$I38) ->  | I44: =IF($A44="","",'individuele bedragen'!$I38) ->  | J44: =IF($A44="","",'individuele bedragen'!$I38) ->  | K44: =IF($A44="","",'individuele bedragen'!$I38) ->  | L44: =IF($A44="","",'individuele bedragen'!$I38) ->  | M44: =IF($A44="","",'individuele bedragen'!$I38) ->  | N44: =IF($A44="","",'individuele bedragen'!$I38) ->  | O44: =IF(A44="","",SUM(C44:N44)) ->  | P44: =IF($A44="","",IF('individuele bedragen'!P38="",0,'individuele bedragen'!P38)) ->  | Q44: =IF(A44="","",O44*P44) ->  | R44: =IF(A44="","",IF('individuele bedragen'!Q38="",0,'individuele bedragen'!Q38)) ->  | S44: =IF(A44="","",Q44+R44) ->  | T44: ='individuele bedragen'!T38 ->  | U44: ='individuele bedragen'!S38 ->  | V44: =IF(S44="","",IF(U44="J",S44,0)) ->  | W44: =IF(S44="","",IF(U44<>"J",S44,0)) -> 
A45: =IF('individuele bedragen'!G39="","",'individuele bedragen'!G39) ->  | B45: ='individuele bedragen'!H39 ->  | C45: =IF($A45="","",'individuele bedragen'!$I39) ->  | D45: =IF($A45="","",'individuele bedragen'!$I39) ->  | E45: =IF($A45="","",'individuele bedragen'!$I39) ->  | F45: =IF($A45="","",'individuele bedragen'!$I39) ->  | G45: =IF($A45="","",'individuele bedragen'!$I39) ->  | H45: =IF($A45="","",'individuele bedragen'!$I39) ->  | I45: =IF($A45="","",'individuele bedragen'!$I39) ->  | J45: =IF($A45="","",'individuele bedragen'!$I39) ->  | K45: =IF($A45="","",'individuele bedragen'!$I39) ->  | L45: =IF($A45="","",'individuele bedragen'!$I39) ->  | M45: =IF($A45="","",'individuele bedragen'!$I39) ->  | N45: =IF($A45="","",'individuele bedragen'!$I39) ->  | O45: =IF(A45="","",SUM(C45:N45)) ->  | P45: =IF($A45="","",IF('individuele bedragen'!P39="",0,'individuele bedragen'!P39)) ->  | Q45: =IF(A45="","",O45*P45) ->  | R45: =IF(A45="","",IF('individuele bedragen'!Q39="",0,'individuele bedragen'!Q39)) ->  | S45: =IF(A45="","",Q45+R45) ->  | T45: ='individuele bedragen'!T39 ->  | U45: ='individuele bedragen'!S39 ->  | V45: =IF(S45="","",IF(U45="J",S45,0)) ->  | W45: =IF(S45="","",IF(U45<>"J",S45,0)) -> 
A46: =IF('individuele bedragen'!G40="","",'individuele bedragen'!G40) ->  | B46: ='individuele bedragen'!H40 ->  | C46: =IF($A46="","",'individuele bedragen'!$I40) ->  | D46: =IF($A46="","",'individuele bedragen'!$I40) ->  | E46: =IF($A46="","",'individuele bedragen'!$I40) ->  | F46: =IF($A46="","",'individuele bedragen'!$I40) ->  | G46: =IF($A46="","",'individuele bedragen'!$I40) ->  | H46: =IF($A46="","",'individuele bedragen'!$I40) ->  | I46: =IF($A46="","",'individuele bedragen'!$I40) ->  | J46: =IF($A46="","",'individuele bedragen'!$I40) ->  | K46: =IF($A46="","",'individuele bedragen'!$I40) ->  | L46: =IF($A46="","",'individuele bedragen'!$I40) ->  | M46: =IF($A46="","",'individuele bedragen'!$I40) ->  | N46: =IF($A46="","",'individuele bedragen'!$I40) ->  | P46: =IF($A46="","",IF('individuele bedragen'!P40="",0,'individuele bedragen'!P40)) ->  | R46: =IF(A46="","",IF('individuele bedragen'!Q40="",0,'individuele bedragen'!Q40)) ->  | T46: ='individuele bedragen'!T40 ->  | U46: ='individuele bedragen'!S40 -> 
A47: =IF('individuele bedragen'!G41="","",'individuele bedragen'!G41) ->  | B47: ='individuele bedragen'!H41 ->  | C47: =IF($A47="","",'individuele bedragen'!$I41) ->  | D47: =IF($A47="","",'individuele bedragen'!$I41) ->  | E47: =IF($A47="","",'individuele bedragen'!$I41) ->  | F47: =IF($A47="","",'individuele bedragen'!$I41) ->  | G47: =IF($A47="","",'individuele bedragen'!$I41) ->  | H47: =IF($A47="","",'individuele bedragen'!$I41) ->  | I47: =IF($A47="","",'individuele bedragen'!$I41) ->  | J47: =IF($A47="","",'individuele bedragen'!$I41) ->  | K47: =IF($A47="","",'individuele bedragen'!$I41) ->  | L47: =IF($A47="","",'individuele bedragen'!$I41) ->  | M47: =IF($A47="","",'individuele bedragen'!$I41) ->  | N47: =IF($A47="","",'individuele bedragen'!$I41) ->  | P47: =IF($A47="","",IF('individuele bedragen'!P41="",0,'individuele bedragen'!P41)) ->  | R47: =IF(A47="","",IF('individuele bedragen'!Q41="",0,'individuele bedragen'!Q41)) ->  | T47: ='individuele bedragen'!T41 ->  | U47: ='individuele bedragen'!S41 ->  | V47: =IF(S47="","",IF(U47="J",S47,0)) ->  | W47: =IF(S47="","",IF(U47<>"J",S47,0)) -> 
A48: Andere
A49: =IF('individuele bedragen'!G44="","",'individuele bedragen'!G44) ->  | B49: ='individuele bedragen'!H44 ->  | C49: =IF($A49="","",'individuele bedragen'!$I44) ->  | D49: =IF($A49="","",'individuele bedragen'!$I44) ->  | E49: =IF($A49="","",'individuele bedragen'!$I44) ->  | F49: =IF($A49="","",'individuele bedragen'!$I44) ->  | G49: =IF($A49="","",'individuele bedragen'!$I44) ->  | H49: =IF($A49="","",'individuele bedragen'!$I44) ->  | I49: =IF($A49="","",'individuele bedragen'!$I44) ->  | J49: =IF($A49="","",'individuele bedragen'!$I44) ->  | K49: =IF($A49="","",'individuele bedragen'!$I44) ->  | L49: =IF($A49="","",'individuele bedragen'!$I44) ->  | M49: =IF($A49="","",'individuele bedragen'!$I44) ->  | N49: =IF($A49="","",'individuele bedragen'!$I44) ->  | O49: =IF(A49="","",SUM(C49:N49)) ->  | P49: =IF($A49="","",IF('individuele bedragen'!P44="",0,'individuele bedragen'!P44)) ->  | Q49: =IF(A49="","",O49*P49) ->  | R49: =IF(A49="","",IF('individuele bedragen'!Q44="",0,'individuele bedragen'!Q44)) ->  | S49: =IF(A49="","",Q49+R49) ->  | T49: ='individuele bedragen'!T44 ->  | U49: ='individuele bedragen'!S43 -> 0 | V49: =IF(S49="","",IF(U49="J",S49,0)) ->  | W49: =IF(S49="","",IF(U49<>"J",S49,0)) -> 
A50: =IF('individuele bedragen'!G45="","",'individuele bedragen'!G45) ->  | B50: ='individuele bedragen'!H44 ->  | C50: =IF($A50="","",'individuele bedragen'!$I44) ->  | D50: =IF($A50="","",'individuele bedragen'!$I44) ->  | E50: =IF($A50="","",'individuele bedragen'!$I44) ->  | F50: =IF($A50="","",'individuele bedragen'!$I44) ->  | G50: =IF($A50="","",'individuele bedragen'!$I44) ->  | H50: =IF($A50="","",'individuele bedragen'!$I44) ->  | I50: =IF($A50="","",'individuele bedragen'!$I44) ->  | J50: =IF($A50="","",'individuele bedragen'!$I44) ->  | K50: =IF($A50="","",'individuele bedragen'!$I44) ->  | L50: =IF($A50="","",'individuele bedragen'!$I44) ->  | M50: =IF($A50="","",'individuele bedragen'!$I44) ->  | N50: =IF($A50="","",'individuele bedragen'!$I44) ->  | P50: =IF($A50="","",IF('individuele bedragen'!P44="",0,'individuele bedragen'!P44)) ->  | R50: =IF(A50="","",IF('individuele bedragen'!Q44="",0,'individuele bedragen'!Q44)) ->  | T50: ='individuele bedragen'!T44 ->  | U50: ='individuele bedragen'!S44 -> 
A52: Totalen | S52: =SUM(S14:S51) -> 0 | U52: =SUM(U14:U47) -> 0 | V52: =SUM(V14:V51) -> 0 | W52: =SUM(W14:W51) -> 0

Sheet grafiek (hidden)
A1: Totaal budget:

Sheet vrijwilliger
A1: VRIJWILLIGER
B3: FORFAITAIRE ONKOSTENVERGOEDING
B4: Een forfaitaire onkostenvergoeding is een vaste vergoeding per keer. Hou hierbij rekening met het maximumbedrag per dag (€ 35,41 in 2021).
B5: Je vult de blauwe vakken in het invulscherm in met het aantal keer dat de vrijwilliger langskomt en het tarief dat je afgesproken hebt.
C6: In ons voorbeeld: Buddy Lisette komt gemiddeld 4 keer per maand en krijgt een forfait van € 25 per keer.
B7: Bekijk ook of er vaste kosten per jaar zijn, bijvoorbeeld lidgeld of een bijdrage voor de verzekering. Als er een maandelijkse kost is (bvb. Administratiekost) vermenigvuldig dan zelf met 12 om de jaarkost te berekenen.
C8: In ons voorbeeld: een jaarlijkse administratiekost van € 50.
B14: In het jaaroverzicht zal de lijn rood kleuren als het jaarmaximum van € 1416,16 overschreden is (bedrag 2021).
B15: Als de vrijwilliger voor verschillende mensen of organisaties werkt moet het plafond over alle vrijwilligerswerk heen gerespecteerd worden.
B16: Er is een verhoogd jaarplafond mogelijk voor nachtoppas en dagoppas. Je kan best vooraf checken of deze van toepassing is bij de organisatie via dewelke je de vrijwilliger aanstelt.
B18: Een forfaitaire onkostenvergoeding kan je combineren met een kilometervergoeding.
B19: Maak een inschatting van het aantal kilometers op maandbasis en vul dit in bij de rubriek VERVOER.
B20: Bij een forfaitaire onkostenvergoeding is er in principe een maximum van 2000km. Informeer vooraf of er een uitzondering van toepassing is.
C21: In ons voorbeeld: Lisette rijdt maandelijks 100 kilometer en krijgt € 0,35 per kilometer.
B28: REËLE ONKOSTENVERGOEDING
B29: Hier heb je geen vaste vergoeding per keer dat de vrijwilliger langskomt
B30: Je laat de kolom reële prijs dus leeg
B31: Je kan een raming van reële kosten (achteraf altijd te bewijzen met tickets, bvb van een drankje, toegangsbewijs,..) op jaarbasis invullen in de kolom kosten per jaar
B37: Je kan dit combineren met een kilometervergoeding.
B38: Als je een de kilometervergoeding combineert met een reële onkostenvergoeding, geldt er geen maximum op het aantal kilometers.
B39: Maak een inschatting van het aantal kilometers op maandbasis en vul dit in bij de rubriek VERVOER.

Sheet jobstudent
A1: JOBSTUDENT
B3: ALGEMEEN
B4: Jobstudenten kunnen aangeworven via een uitzendkantoor of door rechtstreeks een overeenkomst af te sluiten (ondersteuning door een sociaal secretariaat).
B5: Er zijn minimumlonen die je moet respecteren, die verschillen naargelang de leeftijd van de student en afhankelijk van het "paritair comité".
B6: Het paritair comité van de sector van de uitzendarbeid (PC 337) heeft andere regelingen dan het bevoegde paritiar comité als je rechtstreeks een jobstudent in dienst neemt (PC 319.01).
B7: Tot 475 uur per jaar zijn er verlaagde sociale zekerheidsbijdragen: 2,71 % wordt ingehouden op het loon van de jobstudent en 5,42 % wordt betaald als patronale bijdrage.
B8: TIP: vraag aan de jobstudent of hij ook op andere plaatsen werkt/gewerkt heeft want de 475 uur wordt geteld als totaal bij verschillende werkgevers!
B10: AANSTELLING VIA EEN UITZENDKANTOOR
B11: Een uitzendkantoor hanteert een "factor" waarmee het bruto uurloon van de jobstudent vermenigvuldigd wordt. Dat leidt tot de "all-in prijs".
B12: De all in prijs bevat naast de sociale zekerheidsbijdragen ook de premie voor arbeidsongevallenverzekering, eindejaarspremie, vakantiegeld, ziekte en de administratiekost van het uitzendkantoor
B13: Meestal hanteert een uitzendkantoor 2 "factoren":
B14: 1) het uitzendkantoor zoekt mogelijke kandidaten en doet een (pré)selectie
B15: 2) je hebt al een kandidaat (kan ook een familielid-student zijn) en dan is de factor lager
B16: TIP: Vraag naar de factor die het uitzendkantoor toepast en wat in de all-in prijs zit; vraag voor de zekerheid ook bevestiging dat er geen extra (jaar)kosten aangerekend worden
B22: RECHTSTREEKSE AANSTELLING (VIA SOCIAAL SECRETARIAAT)
B23: Je kan ook rechtstreeks met een jobstudent een overeenkomst afsluiten. Schakel dan een sociaal secretariaat in zodat je zeker voldoet aan alle wettelijke verplichtingen als werkgever.
B24: Ook een sociaal secretatiaat hanteert een "factor" waarmee het bruto uurloon vermenigvuldigd wordt.
B25: Dit ligt altijd lager dan bij een uitzendkantoor omdat zij meestal geen all-in prijs hebben. Ze rekenen wel een factor aan waarmee de eindejaarspremie, vakantiegeld en werkgeversbijdrage sociale zekerheid afgedekt worden.
B26: Je zal merken dat je bij een sociaal secretariaat wel nog extra kosten moet voorzien: bijvoorbeeld premie voor verplichte arbeidsongevallenverzekering en vergoeding voor de dienstverlening van het sociaal secretariaat.
B27: TIP: Vraag naar de factor die men toepast én naar een offerte met de extra kosten waarmee je nog rekening moet houden
B35: ALGEMENE TIPS
B36: Sommige uitzendkantoren en sociaal secretariaten zijn meer dan andere vertrouwd met het systeem van PAB en PVB voor mensen met een handicap
C37: Vraag bij een verkennend contact of ze die specialisatie al in huis hebben; op de website zie je soms al dat er een gespecialiseerd team is.
C38: Vraag aan je bijstandsorganisatie met welke uitzendkantoren en sociaal secretariaten zij goede ervaringen hebben, sommige bijstandsorganisaties hebben samenwerkingsovereenkomsten afgesloten.
C39: Is de dienstverlening ondermaats? Neem contact op met een ander uitzendkantoor of sociaal secretariaat en overweeg over te stappen.
B40: Verfijn de informatie gaandeweg
C41: We beperken ons hier tot de informatie die helpend kan zijn voor een eerste ruwe schatting; er zijn nog wel wat elementen die van belang kunnen zijn
C42: Overweeg je de piste van studentenjobs? Je kan aankloppen bij een bijstandsorganisatie om meer detailleerde informatie, op jouw maat, te bekomen

Sheet assistent
A1: ASSISTENT
B3: ALGEMEEN
B4: Assistenten kunnen ingezet worden via een Dienst Persoonlijke Assistentie, via een uitzendkantoor of rechtstreeks (met ondersteuning van een sociaal secretariaat) door een overeenkomst af te sluiten.
B5: Er zijn minimumlonen die je moet respecteren, die verschillen naargelang het bevoegde "paritair comité".
B6: Het paritair comité van de sector van de uitzendarbeid (PC 337) heeft andere regelingen dan het bevoegde paritiar comité als je rechtstreeks of via een DPA een assistant inzet (PC 319.01).
B8: AANSTELLING VIA EEN UITZENDKANTOOR (HET UITZENDKANTOOR IS WERKGEVER)
B9: Een uitzendkantoor hanteert een "factor" waarmee het bruto uurloon van de assistent vermenigvuldigd wordt en wat tot een all-in prijs leidt.
B10: De all in prijs bevat naast de sociale zekerheidsbijdragen ook de premie voor arbeidsongevallenverzekering, eindejaarspremie, vakantiegeld, ziekte en de administratiekost van het uitzendkantoor.
B11: Je krijgt enkel aanrekening van de effectief gepresteerde uren. Als de assistent bijvoorbeeld ziek is dan moet je die dag niet betalen.
B12: Meestal hanteert een uitzendkantoor 2 "factoren" (wordt soms ook coëfficiënt genoemd):
B13: 1) het uitzendkantoor zoekt mogelijke kandidaten en doet een (pré)selectie
B14: 2) je hebt al een kandidaat (kan ook jijzelf zijn) en dan is de factor lager
B15: TIP: Vraag naar de factor die het uitzendkantoor toepast en wat in de all-in prijs zit; vraag voor de zekerheid ook bevestiging dat er geen extra (jaar)kosten aangerekend worden.
B22: AANSTELLING VIA EEN DIENST PERSOONLIJKE ASSISTENTIE (DE DPA IS WERKGEVER)
B23: De Diensten Persoonlijk Assistentie nemen de rol van werkgever over.
C24: Naast de administratieve verplichtingen nemen ze ook de vorming en begeleiding van de assistenten op.
C25: Ze kunnen daarbij gebruik maken van de expertise die aanwezig is in de VAPH- vergunde voorziening van waaruit de DPA opgestart is.
B26: Zij stellen een bruto-uurloon voor op basis van het gezochte profiel en de geldende verloningsregels (diploma, anciënniteit).
B27: Ook een DPA hanteert een factor om bovenop het bruto uurloon van de assistent de eindejaarspremie, vakantiegeld, sociale zekerheidsbijdragen arbeidsongevallenverzekeringen,… te financieren
B28: TIP: contacteer een DPA voor meer informatie
C29: Check of er naast de "factor" waarmee het brutoloon moet vermenigvuldigd worden extra kosten zijn waarmee je rekening moet houden en vul dit aan in de kolom extra kosten
C30: Vraag welke dienstverlening inbegrepen is (bijvoorbeeld vervanging bij ziekte of vakantie van de assistent)
B32: RECHTSTREEKSE AANSTELLING (VIA SOCIAAL SECRETARIAAT)
B33: Je kan ook rechtstreeks met een assistent een overeenkomst afsluiten. Schakel dan een sociaal secretariaat in zodat je zeker voldoet aan alle wettelijke verplichtingen als werkgever.
B34: Ook een sociaal secretatiaat hanteert een "factor" waarmee het bruto uurloon vermenigvuldigd wordt.
B35: Dit ligt altijd lager dan bij een uitzendkantoor omdat zij meestal geen all-in prijs hebben. Ze rekenen wel een factor aan waarmee de eindejaarspremie, vakantiegeld en werkgeversbijdrage sociale zekerheid afgedekt worden.
C36: Jij bent in dit geval de werkgever en degene die de contractuele afspraken moet nakomen. Als de assistent bijvoorbeeld ziek is dan moet jij toch het afgesproken loon betalen tot de ziekteverzekering het overneemt.
B37: De budgethouder is de werkgever. De kostprijs wordt vaak verlaagd omdat je als werkgever (tijdelijk) gebruik kan maken van verlaagde sociale zekerheidsbijdragen (doelgroepenvermindering, bv. voor de eerste aanwervingen).
C38: TIP: vraag aan je sociaal secretariaat een verfijnde raming van de loonkosten, meer bepaald naar de korting door de doelgroepenvermindering
B39: Je zal merken dat je bij een sociaal secretariaat nog extra kosten moet voorzien: bijvoorbeeld premie(s) voor verplichte arbeidsongevallenverzekering en vergoeding voor de dienstverlening van het sociaal secretariaat.
C40: Elk sociaal secretariaat heeft een eigen prijszetting.
D41: TIP: Vraag naar de details: is er een prijs voor het opstarten van een dossier, een maandelijkse administratieve kost, een extra jaarlijkse kost voor afsluiting met ondermeer opmaak fiscale fiche, …
D42: Op basis van de voorbeelden die we hebben varieert de prijs van 750 tot 1200 euro per jaar (kost van de arbeidsongevallenverzekering niet inbegrepen)
B43: TIP: Vraag naar de factor die men toepast én naar een offerte met de extra kosten waarmee je nog rekening moet houden
B44: TIP: Bekijk ook wat er mogelijk is aan extra-legale voordelen, bijvoorbeeld maaltijdcheques, ecocheques.
C45: Doordat er geen belastingen noch sociale zekerheidsbijdragen op betaald moeten worden kan dit een interessante aanvulling op het uurloon zijn.
B46: TIP: Bij rechtstreekse aanstelling van assistenten kan je gebruik maken van VIA4-middelen en (in 2021) van de VIA5 maatregelen (toevoegingen aan het budget).
C47: Via het e-loket mijnvaph.be kunt u uw totale budget inclusief de VIA 4-middelen raadplegen. Het totale bedrag getoond op de budgetlijn is dus inclusief uw recht op VIA 4-middelen.
B54: Gebruik deze kolom om je raming van extra kosten in te geven
C55: kost voor dienstverlening sociaal secretariaat + premie arbeidsongevallenverzekering + raming kost extra-legale voordelen- korting doelgroepenvermindering….
B57: ALGEMENE TIPS
B58: Sommige uitzendkantoren en sociaal secretariaten zijn meer dan andere vertrouwd met het systeem van PAB en PVB voor mensen met een handicap
C59: Vraag bij een verkennend contact of ze die specialisatie al in huis hebben; op de website zie je soms al dat er een gespecialiseerd team is.
C60: Vraag aan je bijstandsorganisatie met welke uitzendkantoren en sociaal secretariaten zij goede ervaringen hebben, sommige bijstandsorganisaties hebben samenwerkingsovereenkomsten afgesloten.
C61: Is de dienstverlening ondermaats? Neem contact op met een ander uitzendkantoor of sociaal secretariaat en overweeg over te stappen.
B62: Verfijn de informatie gaandeweg
C63: We beperken ons hier tot de informatie die helpend kan zijn voor een eerste ruwe schatting; er zijn nog wel wat elementen die van belang kunnen zijn
C64: Vraag je bijstandsorganisatie om meer gedetailleerde informatie en/of op maat advies

Sheet deeleconomie
A1: SYSTEEM VAN DE DEELECONOMIE
B3: ALGEMEEN
B4: Via het systeem van de deeleconomie kan je mensen vinden die uiteenlopende diensten aanbieden (bijvoorbeeld werken in de tuin, hulp bij administratie,…). | R4: De kosten kan je betalen met je budget.
B5: Er bestaan verschillende deelplatformen (bijvoorbeeld: Helpper, Listminut, Trixxo Exxtra) waarop je terecht kan.
B6: De deelplatformen verschillen in de diensten die ze aanbieden. Daarnaast gebruiken de verschillende deelplatformen vaak een andere manier om de kosten te berekenen.
B7: Bij sommige deelplatformen zal je een abonnement moeten afsluiten. Dan betaal je de abonnementkosten aangevuld met een uurvergoeding per geleverde dienst.
B8: Bij andere deelplatformen worden geen abonnementskosten aangerekend, maar zal je per uur een vaste meerprijs moeten betalen.
B9: Bekijk dus eerst welke kosten het deelplatform van je voorkeur hanteert.
B10: De uurvergoeding wordt steeds bepaald door de budgethouder, liefst in onderling overleg met de aanbieder.
B11: Een assistent mag niet meer dan € 6.390 verdienen, maar je kan wel zoveel assistenten inhuren als je wil.
B13: INGEVEN KOSTEN
B14: Je vult de blauwe vakken in het invulscherm in met het aantal keer dat de assistent langskomt en het tarief dat je afgesproken hebt.
B15: Bekijk of er per uur een bijkomende kost wordt aangerekend. Zo ja, tel dan zelf de bijkomende kost per uur op bij het overeengekomen uurtarief.
C16: In ons voorbeeld: Rudy komt gemiddeld 2 uur per maand langs om de administratie bij te werken. Jullie spraken onderling af om Rudy. Jullie bespraken onderling om € 7 te betalen.
C17: Het deelplatform rekent bijkomend een werkingskost van € 2 per uur aan. In de kolommen factor moet er dus "+ 2" komen.
C18: Dat doe je door naar het tabblad 'individuele bedragen' te gaan. Vul bij deeleconomie een "+" gevolgd door een "enter" in de kolom "+ of *" en een "2" in de volgende kolom.
C19: De raming van de kostprijs wordt dan automatisch berekend (groene kolom).
B20: Bekijk ook of er vaste kosten per jaar zijn, bijvoorbeeld een abonnementskost. Als er een maandelijkse kost is, vermenigvuldig die dan zelf met 12 om de jaarkost te berekenen.
C21: in ons voorbeeld: het deelplatform rekent € 80 per jaar aan voor het afsluiten van een abonnement.

Sheet zelfstandige
A1: ZELFSTANDIGE
B5: Nog in ontwikkeling.
B7: Input van personen die persoonlijke assistentie verschaffen aan een familielid (en/of eventuele andere mensen met een budget) is welkom.
B8: Je kan mailen naar magentatobe@kuleuven.be

Sheet gezins- en thuiszorg
A1: GEZINS- EN THUISZORG
B3: GEZINSZORG
B4: Met gezinszorg ligt het accent op persoonsverzorging, hulp in het huishouden en psychosociale/pedagogische ondersteuning.
B5: Voor de tarieven moet we een onderscheid tussen het budgetsysteem voor meerderjarigen (PVB) en het systeem voor minderjarigen (PAB).
B7: Persoonsvolgend budget (PVB)
B8: gewone gebruikersbijdrage
B9: Je valt onder het gesubsidieerd systeem: er wordt een tarief bepaald rekening houden met het gezinsinkomen en de gezinslast.
B10: De diensten voor gezinszorg zijn verplicht de bijdragentabel en de instructies voor eventuele kortingen te volgen.
B11: De gebruikersbijdrage varieert tussen € 0,51 en € 14,14 per uur.
B12: Er worden geen extra (jaarlijkse) kosten aangerekend.
C13: In ons voorbeeld: Sonja werkt voor een dienst gezinszorg en biedt elke maand gemiddeld 30 uur ondersteuning.
C14: De loonkost van Sonja bedraagt € 40 per uur.
C15: Ik ontvang echter een PVB waardoor ik niet de gehele loonkost moeten betalen, maar gebruik kan maken van het gesubsidieerde tarief. Dat tarief ligt tussen € 0,51 en € 14,14 per uur.
C16: In ons voorbeeld betaal ik als gebruiker € 10 per uur.
C17: Er worden geen extra jaarlijkse kosten aangerekend, deze tabel laat ik dan ook leeg.
C18: Ik kan de kosten volledig met mijn PVB betalen.
B25: Persoonlijk assistentiebudget (PAB)
B26: reële loonkost van de zorgkundige
B27: Met het PAB kan je geen gebruik maken van het gesubidieerde stelsel van gezinszorg.
B28: De loonkost moet door de dienst doorgerekend worden aan de gebruiker (bijvoorbeeld € 40 per uur).
B29: TIP: overweeg om gezinszorg niet vanuit je budget te betalen maar vanuit eigen middelen.
B30: Dan is het gesubsidieerd tarief (zie uitleg bij PVB) dat veel lager ligt van toepassing.
C31: We nemen hetzelfde voorbeeld als bij het PVB, maar gaan er deze keer vanuit dat ik een PAB ontvang.
C32: Sonja werkt voor een dienst gezinszorg en biedt elke maand gemiddeld 30 uur ondersteuning.
C33: De loonkost van Sonja bedraagt € 40 per uur.
C34: Aangezien ik een PAB ontvang, kan ik geen gebruik maken van het gesubsidieerd stelsel van gezinszorg. Ik zal dus de gehele loonkost van € 40 per uur moeten betalen.
C35: Er worden geen extra jaarlijkse kosten aangerekend, deze tabel laat ik dan ook leeg.
C36: Ik kan de kosten volledig met mijn PAB betalen.
B43: AANVULLENDE THUISZORG
B44: Aanvullende thuiszorg omvat schoonmaak en, naargelang de dienst, ook oppashulp en karweihulp
B45: Bij aanvullende thuiszorg moeten de diensten de prijs bepalen rekening houdend met inkomen en gezinssamenstelling.
B46: Er is echter geen gedetailleerde bijdragentabel. Er is dus meer vrijheid om aan prijszetting te doen.
B47: De meeste diensten hanteren verschillende prijzen voor schoonmaakhulp en karweihulp (iets duurder).
B49: Schoonmaakhulp
B50: In de praktijk zal het tarief voor schoonmaakhulp rond € 9 per uur liggen.
C51: In ons voorbeeld: Boris biedt gemiddeld 12 uur per maand schoonmaakhulp.
C52: Op basis van mijn inkomen en gezinssamenstelling heeft mijn dienst voor aanvullende thuiszorg een tarief van € 9 per uur bepaald.
C53: Er worden geen extra jaarlijkse kosten aangerekend, deze tabel laat ik dan ook leeg.
C54: Ik kan de kosten volledig met mijn budget betalen.
B60: Karweihulp
B61: Voor karweihulp kunnen de prijzen meer uiteenlopen (gebruik voor een eerste simulatie € 16 per uur).
C62: In ons voorbeeld: Anouar biedt mandelijk gemiddeld 8 uur karweihulp.
C63: Op basis van mijn inkomen en gezinssamenstelling heeft mijn dienst voor aanvullende thuiszorg een tarief van € 16 per uur bepaald.
C64: Er worden volgens onze informatie geen extra (administratie)kosten aangerekend.
C65: Ik kan de kosten volledig met mijn budget betalen.

Sheet dienstencheques
A1: DIENSTENCHEQUES
B3: ALGEMEEN
B4: Als individuele gebruiker kan je 500 dienstencheques per jaar aankopen. Voor de eerste 400 cheques betaal je € 9, voor de overige 100 cheques betaal je € 10.
B5: Als gezin heb je recht op 1.000 dienstencheques per jaar. Je betaalt € 9 voor de eerste 800 cheques en € 10 voor de overige 200 cheques.
B7: Personen met een beperking
B8: Mensen met een beperking en ouders van een kind met een beperking kunnen tot 2.000 dienstencheques per jaar bestellen tegen 9 euro.
B9: Om recht te hebben op dit verhoogd plafond dien je aan bepaalde voorwaarden te voldoen.
C10: Om beschouwd te worden als een persoon met een beperking, moet je aan één van de volgende voorwaarden voldoen:
D11: * je bent erkend door het Vlaams Agentschap voor Personen met een Handicap (VAPH)
D12: * of je ontvangt:
E13: een inkomensvervangende tegemoetkoming
E14: of een integratietegemoetkoming
E15: of een tegemoetkoming voor hulp aan bejaarden
D16: * of je bent minstens 7 punten toegekend op de zelfredzaamheidsschaal
C17: Om beschouwd te worden als kind met een handicap moet aan één van volgende voorwaarden voldaan zijn:
D18: * het kind
E19: geniet een verhoogde kinderbijslag voor kinderen met een beperking
E20: lijdt aan een zware ziekte
E21: geniet een zorgtoeslag voor een specifieke ondersteuningsbehoefte op basis van artikel 16 van het decreet van 27 april 2018 tot regeling van de toelagen in het kader van het gezinsbeleid
D22: * of het kind is jonger dan 21 jaar en is als kind met een handicap erkend door het Vlaams Agentschap voor Personen met een Handicap (VAPH)
D23: * of het kind is jonger dan 21 jaar en werd minstens 7 punten toegekend op de zelfredzaamheidsschaal
B25: Fiscale aftrekbaarheid
B26: In deze rekentool maken we een onderscheid tussen dienstencheques die met het budget betaald worden en dienstencheques die niet met het budget betaald worden.
B27: Dat onderscheid maken we omdat dienstencheques die niet met het budget aangekocht worden fiscaal aftrekbaar zijn.
B28: Zo geldt voor het aanslagjaar 2022 (inkomsten 2021) een belastingvermindering van 20% waardoor een cheque in werkelijkheid € 7,2 kost.
B29: Let wel op! Het belastingsvoordeel geldt enkel voor de eerste 170 cheques die niet met het budget aangekocht worden.
B30: Dienstencheques die je aankoopt met het budget mag je niet inbrengen in de personenbelasting.
B31: Het is de opdracht van de budgethouder om erop toe te zien dat de dienstencheques niet als fiscaal voordeel op de belastingaangifte staan.
B33: INVULLEN VAN DE TABEL
B34: Alleerst kies je of je de dienstencheques met je budget wilt betalen of niet.
B35: Kies je ervoor om de dienstencheques met het budget aan te kopen, duid dan 'dienstencheques op budget aan' bij 'Aard ondersteuning'.
B36: Kies je ervoor om de dienstencheques met eigen middelen te betalen, duid dan 'dienstencheques niet op budget' aan bij 'Aard ondersteuning'.
B37: In de kolom 'gemiddeld maandaantal' vul je het aantal uur per maand in dat je gebruik wil maken van dienstencheques.
B38: In het blauwe vak bij 'reële prijs' vul je de prijs van een dienstencheque in.
B39: Bij dienstencheques komen geen extra kosten per jaar kijken. Daarom laat je de kolom 'extra kosten per jaar' leeg.
C40: in ons voorbeeld: Simon komt 5 uur per week schoonmaken via een dienstenchequekantoor.
C41: Om het maandaantal te berekenen vermenigvuldig ik dat aantal met 4. Dat komt op 20 uur per maand uit. Op jaarbasis heb ik dus 240 dienstencheques nodig.
C42: Ik beslis om 168 cheques aan te kopen met mijn eigen middelen om gebruik te maken van het belastingsvoordeel. De overige 72 cheques koop ik aan met mijn budget.
C43: De 168 cheques die ik met eigen middelen wil aankopen, vul ik in bij 'dienstencheques niet op budget'.
C44: Om te weten hoeveel cheques per maand ik nodig heb, deel ik dat aantal door 12. Ik kom uit dat ik 14 cheques per maand met mijn eigen middelen aankoop.
C45: Een cheque kost op het moment van de aankoop € 9. Vul dat bedrag in. Later kan je deze cheques fiscaal aftrekken waardoor de eerste 170 cheques in werkelijkheid € 7,2 zullen kost.
C52: De 72 cheques die ik met mijn budget betaal vul ik in bij 'dienstencheques op budget'.
C53: Om te weten hoeveel cheques per maand ik nodig heb, deel ik dat aantal door 12. Ik kom uit dat ik 6 cheques per maand met mijn budget aankoop.
C54: Een cheque kost € 9.

Sheet wijkwerkcheques
A1: WIJKWERKCHEQUES
B3: ALGEMEEN
B4: Een wijkwerkcheque kost tussen € 5,95 en € 7,45. De prijs hangt af van de gemeente of stad waarin je woont.
B5: Er staat geen maximum op het aantal cheques dat je per jaar kan kopen.
B6: In deze rekentool maken we een onderscheid tussen wijkwerkcheques die met het budget betaald worden en wijkwerkcheques die niet met het budget betaald worden.
B7: Dat onderscheid maken we omdat wijkwerkcheques die niet met het budget betaald worden fiscaal aftrekbaar zijn.
B8: Zo geldt voor het aanslagjaar 2022 (inkomsten 2021) er een belastingvermindering van 20% waardoor een cheque in werkelijkheid minder kost.
B9: Let wel op! Het belastingsvoordeel geldt enkel voor de eerste 170 cheques die niet met het budget aangekocht worden.
B11: Cheques die met het budget aangekocht worden, zijn nooit fiscaal aftrekbaar.
B13: INVULLEN VAN DE TABEL
B14: Alleerst kies je of je de wijkwerkcheques met je budget wilt betalen of niet.
B15: Kies je ervoor om de wijkwerkcheques met het budget aan te kopen, duid dan 'wijkwerkcheques op budget aan' bij 'Aard ondersteuning'.
B16: Kies je ervoor om de wijkwerkcheques met eigen middelen te betalen, duid dan 'wijkwerkcheques niet op budget' aan bij 'Aard ondersteuning'.
B17: In de kolom 'gemiddeld maandaantal' vul je het aantal uur per maand in dat je gebruik wil maken van wijkwerkcheques.
B18: In het blauwe vak bij 'reële prijs' vul je de prijs van een wijkwerkcheque in.
B19: Bij wijkwerkcheques komt jaarlijks een exta kost van bijvoorbeeld € 7,50 kijken. Daarom vul bijvoorbeeld € 7,50 in bij 'extra kosten per jaar'.
B21: in ons voorbeeld: Luc ondersteunt mij 5 uur per week bij logistieke en huishoudelijke taken.
B22: Om het maandaantal te berekenen vermenigvuldig ik dat aantal met 4. Dat komt op 20 uur per maand uit. Op jaarbasis heb ik dus 240 wijkwerkcheques nodig.
B23: Ik beslis om 168 cheques aan te kopen met mijn eigen middelen om gebruik te maken van het belastingsvoordeel. De overige 72 cheques koop ik aan met mijn budget.
B24: De 168 cheques die ik met eigen middelen wil aankopen, vul ik in bij 'wijkwerkcheques niet op budget'.
B25: Om te weten hoeveel cheques per maand ik nodig heb, deel ik dat aantal door 12. Ik kom uit dat ik 14 cheques per maand met mijn eigen middelen aankoop.
B26: In mijn gemeente kost een cheque € 7,45. Ik vul dat bedrag in. Later kan ik deze cheques fiscaal aftrekken waardoor een cheque in werkelijkheid € 5,96 zal kost.
B33: De 72 cheques die ik met mijn budget betaal vul ik in bij 'wijkwerkcheques op budget'.
B34: Om te weten hoeveel cheques per maand ik nodig heb, deel ik dat aantal door 12. Ik kom uit dat ik 6 cheques per maand met mijn budget aankoop.
B35: In mijn gemeente kost een wijkwerkcheque € 7,45. Ik vul dat bedrag in. Later kan ik deze cheques fiscaal aftrekken waardoor een cheque in werkelijkheid € 5,96 zal kost.

Sheet vergunde zorgaanbieders
A1: VERGUNDE ZORGAANBIEDERS
B3: VOUCHER, CASH OF DE COMBINATIE VAN VOUCHER EN CASH
B4: Sommige personen kiezen voor voltijds verblijf in een voorziening.
B5: Meer en meer organisaties zetten in op inclusieve trajecten vanuit die thuisbasis. Anderen bieden veiligheid en comfort van een vertrouwde setting.
B6: Bij voltijds verblijf in een voorziening neem je het budget op in vouchers; we gaan hierop niet verder in omdat dit buiten het thema van deze toolbox gaat.
B7: TIP: Het budgetsysteem laat combinatie met cash toe; in principe zijn deeltijdse regelingen mogelijk. De ene voorziening gaat er soepeler mee om dan de andere.
B9: CASHBUDGET BESTEDEN AAN DIENSTVERLENING DOOR EEN VERGUNDE ZORGAANBIEDER
B10: Het aanbod van vergunde zorgaanbieders is zeer breed en zeer divers. Elke dienst en voorziening legt zijn eigen accenten.
B11: Het kan een aantal kansen en ondersteuningsmogelijkheden bieden die zeer waardevol zijn voor de persoon met een beperking:
B12: * bepaalde vormen van individuele begeleiding
B13: voorbeelden: inzet van een begeleider met handicapspecifieke expertise/ trajectbegeleiding op vlak van werken, wonen, algemene ontwikkeling/ psychosociale ondersteuning
B14: * dagopvang met een aanbod van actitiviteiten die aansluiten bij de interesses of ontwikkelingsvragen van de persoon en sociale contacten bieden
B15: voorbeelden: kunstatelier, soepatelier, begeleide uitstappen, sportieve activiteiten, muziekgroep, uitbaten buurtwinkel of brasserie, ontwikkelingstraject met andere jongeren,….
B16: * verblijf
B17: voorbeelden: gedeeltelijke opvang in de week, weekendopvang, kortverblijf,...
B18: TIP: Ga op zoek naar een aanbod dat echt past bij de noden en wensen van de persoon met de beperking. Je kan als je dat wenst verschillende aanbieders combineren.
B19: De gehanteerde prijzen zijn afhankelijk van de aard van de dienstverlening, nodige personeelsbezetting en de prijspolitiek van de organisatie.
B20: Enkele indicatieve prijzen op basis van voorbeelden die we konden inkijken
B21: * individuele begeleiding: 75 tot 130 euro per uur of per sessie (+ eventueel bijkomende verplaatsinskosten)
B22: * dagopvang/dagactiviteiten: zeer uiteenlopende prijzen; neem contact op met enkele diensten en voorzieningen
B23: * verblijf/nachtopvang: 130 tot 160 euro per nacht (zonder woon- en leefkosten)
B24: Met het budget kunnen enkel de kosten voor zorg en ondersteuning betaald worden. Woon- en leefkosten of een vergoeding voor extra uitgaven (bvb een drankje) moeten van eigen middelen betaald worden.
B25: Er mogen geen extra administratie- of beheerskosten aangerekend worden.
B26: TIP: Heb je een gepast aanbod gevonden en wil je er op geregelde basis gebruik van maken? Bekijk samen met de voorziening of je dan beter een deel van het budget in vouchers opneemt.
B28: Voorbeeld
B29: Elke week komt er een thuisbegeleider langs en 1 weekend per maand (2 dagen) wordt gebruik gemaakt van de logeerformule

Sheet vervoer
A1: VERVOER
B3: ALGEMEEN
B4: In dit tabblad vindt u hulp om snel de vervoerkosten te berekenen
B5: Er zijn 2 berekeningsmodellen
B6: VASTE KILOMETERKOST
B7: Heel wat vrijwilligersinitiatieven (ziekenfonds, mindermobielencentrale,…) hanteren een vlak tarief (zelfde prijs ongeacht het aantal kilometers) | P7: Kilometerkosten van een 'eigen' vrijwilliger: maximum 0,3542 euro per kilometer (2021); beperkt tot 2000 km per jaar als de vrijwilliger een forfaitaire vergoeding krijgt
B8: Aandachtspunten:
B9: * welke kilometers moeten vergoed worden? Bvb ook vergoeding voor de kilometers van de woonplaats van de chauffeur tot uw thuisadres? | P9: Kilometerkosten van persoonlijk assistent: bekijk met uitzendkantoor of sociaal secretariaat wat mogelijk is en wat verplicht is
B10: * is er een jaarlijks lidgeld te betalen? | P10: 1) Woon-werkverkeer
P11: 2) Verplaatsingen in opdracht van/met de persoon met beperking
B12: Voorbeeld (u kan de cellen overschrijven met uw eigen gegevens)
B13: Wie: mindermobielencentrale | P13: Mindermobielencentrale (https://www.mindermobielencentrale.be/nl/node/38 )
B14: Naar: | G14: ziekenhuis | H14: sport | I14: therapie | J14: TOTAAL | P14: Jaarlijks lidgeld van 12 euro, kilometerkost tussen 0,30 en 0,35 euro , kilometers vanaf thuisadres chauffeur moeten ook betaald worden.
B15: Aantal kilometer voor vervoer (heen en terug): | G15: 30 | H15: 15 | I15: 9
B16: Extra kilometers van/naar adres chauffeur | G16: 12 | H16: 12 | I16: 12
B17: TOTAAL KILOMETERS per keer | G17: =SUM(G15:G16) -> 42 | H17: =SUM(H15:H16) -> 27 | I17: 21 | R17: totaal kilometers invullen | AB17: jaarkost invullen
B18: Aantal ritten per maand | G18: 4 | H18: 1 | I18: 1
B19: Aantal kilometers per maand | G19: =G17*4 -> 168 | H19: =H17*4 -> 108 | I19: 84 | J19: =SUM(G19:I19) -> 360
B20: Lidgeld/Jaarlijkse kost | D20: 12 | E20: euro
B21: VARIABEL TARIEF
B22: De diensten aangepast vervoer hanteren een tarief dat afhankelijk is van het aantal gereden kilometers | P22: ODAV (Overleg Diensten Aangepast Vervoer)
P23: Eerst wordt bekeken of een andere vervoeroplossing (vb. Mindermobielencentrale) mogelijk is.
B24: Voorbeeld (u kan de cellen overschrijven met uw eigen gegevens) | P24: "Leeggereden" kilometers en wachttijden worden niet aangerekend
B25: Wie: Dienst aangepast vervoer (geebruiker met rolstoel) | V25: VOOR EEN GEBRUIKER MET ROLSTOEL | Z25: VOOR EEN GEBRUIKER ZONDER ROLSTOEL
B26: Naar: | G26: ziekenhuis | H26: sport | I26: therapie | J26: TOTAAL | P26: instapgeld; | V26: 0 tot 2 euro | Z26: 0 tot 2 euro
B27: Aantal kilometer: | G27: 30 | H27: 15 | I27: 9 | P27: per gereden kilometer t.e.m. 25 km; | V27: 0 tot 1 euro | Z27: 0.60 euro tot 1,50 euro
B28: Instapgeld: | D28: 1 | G28: =$D$28 -> 1 | H28: =$D$28 -> 1 | I28: =$D$28 -> 1 | P28: per gereden kilometer vanaf 26 km en t.e.m. 50 km | V28: 0 tot 1,75 euro | Z28: 0,90 euro tot 1,75 euro
B29: km <25 | C29: 25 | D29: 0.9 | G29: =IF(G27<$C$29,G27*$D$29,$C$29*$D$29) -> 22.5 | H29: =IF(H27<$C$29,H27*$D$29,$C$29*$D$29) -> 13.5 | I29: =IF(I27<$C$29,I27*$D$29,$C$29*$D$29) -> 8.1 | P29: Vanaf 51 kilometer | V29: kan de vervoerder het tarief per gereden kilometer vrij bepalen.
B30: km 25 - 50 | C30: 50 | D30: 1.2 | G30: =IF(G27-$C$29<0,"",(G27-$C$29)*$D$30) -> 6 | H30: =IF(H27-$C$29<0,"",(H27-$C$29)*$D$30) ->  | I30: =IF(I27-$C$29<0,"",(I27-$C$29)*$D$30) -> 
B31: km > 50 | D31: 2 | G31: =IF(G27-$C$30<0,"",(G27-$C$30)*$D$31) ->  | H31: =IF(H27-$C$30<0,"",(H27-$C$30)*$D$31) ->  | I31: =IF(I27-$C$30<0,"",(I27-$C$30)*$D$31) -> 
B32: Totaal bedrag per keer | G32: =SUM(G28:G31) -> 29.5 | H32: =SUM(H28:H31) -> 14.5 | I32: 9.1 | R32: geen kilometers invullen | Z32: bedrag per maand invullen
B33: aantal ritten per maand | G33: 4 | H33: 1 | I33: 1
B34: bedrag per maand | G34: =G32*G33 -> 118 | H34: =H32*H33 -> 14.5 | I34: =I32*I33 -> 9.1 | J34: =SUM(G34:I34) -> 141.6

Sheet bijstandsorganisaties
A1: BIJSTANDSORGANISATIE
B3: ALGEMEEN
B4: Bij een bijstandsorganisatie kan je terecht voor informatie en advies over je budget.
B5: Daarnaast biedt een bijstandsorganisatie ook intensieve ondersteuning op maat rond de besteding en administratie van het budget.
B6: In Vlaanderen en het Brussels hoofstedelijk gewest bestaan er vijf bijstandsorganisaties (Absoluut vzw, alin vzw, MyAssist vzw, Onafhankelijk leven vzw en Zoom vzw).
B7: De gegevens van de verschillende bijstandsorganisaties vind je onderaan dit tabblad.
B8: In essentie verschillen de bijstandsorganisaties niet in de ondersteuning die ze bieden.
B10: Alle bijstandsorganisaties vragen € 50 lidgeld.
B11: Voor intensieve ondersteuning vragen de organisaties daarnaast een bedrag per uur. Het uurbedrag voor intensieve ondersteuning varieërt van organisatie tot organisatie.
B12: Voor een huisbezoek rekenen sommige organisaties een bijkomende (forfaitaire) prijs of verplaatsingskosten aan.
B13: Bekijk dus eerst welke kosten de bijstandsorganisatie van je voorkeur hanteert. Deze kan je gemakkelijk terugvinden op de website van de organisatie.
B14: Je kosten voor een bijstandsorganisatie kan je integraal betalen met je budget.
B16: INVULLEN VAN DE TABEL
B17: In de kolom 'gemiddeld maandaantal' vul je het aantal uur per maand in dat je beroep wilt doen op een bijstandsorganisatie.
B18: In het blauwe vak bij 'reële prijs' vul je de prijs in die jouw organisatie per uur vraagt voor intensieve ondersteuning.
C19: In ons voorbeeld: ik doe gemiddeld 2 uur per maand beroep op mijn bijstandsorganisatie voor intensieve hulp bij de administratie van mijn budget.
C20: Mijn bijstandsorganisatie rekent daarvoor € 80 per uur aan.
C21: Ik kan me moeilijk verplaatsen waardoor mijn bijstandsorganisatie 2 keer (gedurende een uur) aan huis komt.
C22: Per huisbezoek rekent mijn bijstandsorganisatie € 30 aan.
C23: Ik betaal in totaal dus € 110 per uur (namelijk de uurvergoeding van € 80 en de huisbezoekskost van € 30).
C24: Deze kost vul ik in bij 'reële prijs'.
B25: In het blauwe vak bij 'extra kosten per jaar' vul je de extra jaarlijkse kosten in.
C26: In ons voorbeeld: mijn bijstandsorganisatie vraagt jaarlijks lidgeld van € 50. Deze vul ik in bij 'extra kosten per jaar'.
B33: DE GEGEVENS VAN DE VERSCHILLENDE BIJSTANDSORGANISATIES
B34: Organisatie | D34: E-mailadres | F34: Tel | G34: Fax | H34: Link | I34: Straat | J34: Postcode | K34: Stad | L34: Provincie
B35: Absoluut vzw | D35: info@absoluutvzw.be | F35: 03 259 08 85 | G35: 03 248 14 42 | H35: www.absoluutvzw.be | I35: Arthur Goemaerelei 66 | J35: 2018 | K35: ANTWERPEN | L35: Antwerpen
B36: alin vzw | D36: info@alin-vzw.be | F36: 0478 96 02 16 | H36: www.alin-vzw.be | I36: Gasthuisstraat 31 | J36: 1000 | K36: BRUSSEL | L36: Brussels Hoofdstedelijk Gewest
B37: MyAssist vzw | D37: info@myassist.be | F37: 016 23 95 82 | H37: www.myassist.be | I37: Kapucijnenvoer 33B/1 | J37: 3000 | K37: LEUVEN | L37: Vlaams-Brabant
B38: Onafhankelijk Leven vzw | D38: advies@onafhankelijkleven.be | F38: 03 808 22 99 | H38: www.onafhankelijkleven.be | I38: Groot Begijnhof 31 | J38: 9040 | K38: SINT-AMANDSBERG | L38: Oost-Vlaanderen
B39: ZOOM vzw | D39: info@zoomvzw.be | F39: 0468 406 606 | H39: www.zoomvzw.be | I39: Albert Giraudlaan 24 | J39: 1030 | K39: BRUSSEL | L39: Brussels Hoofdstedelijk Gewest

Sheet Blad4 (hidden)
A1: ipv gemiddeld: voorgesteld gebruiken

Sheet Blad2 (hidden)
A1: jaarkalender eenheden
A2: MENSENTAAL | B2: VAPH categorie | C2: eenheid | D2: tarief | E2: bedrag ten laste van budget per eenheid | F2: verpl.kost in tarief incalculeren? | G2: Totaal eenheden op jaarbasis | H2: Totaal kost op jaarbasis op budget | I2: januari | J2: februari | K2: maart | L2: april | M2: mei | N2: juni | O2: juli | P2: augustus | Q2: september | R2: oktober | S2: november | T2: december
A3: Gezinszorg | C3: uur | D3: 20 | E3: 20 | G3: 176 | H3: 3,520 | I3: 16 | J3: 16 | K3: 16 | L3: 16 | M3: 16 | N3: 16 | O3: 16 | P3: 8 | Q3: 16 | R3: 16 | S3: 16 | T3: 8
A4: buddy -vrijwilliger | C4: keer | D4: 32 | E4: 32 | G4: 40 | H4: 1,280 | I4: 4 | J4: 4 | K4: 4 | L4: 4 | M4: 4 | N4: 4 | O4: 0 | P4: 0 | Q4: 4 | R4: 4 | S4: 4 | T4: 4
A5: nRTH dagopvang | C5: (halve) dag | E5: 0 | G5: 0 | H5: 0
A6: nRTH verblijf | C6: nacht | E6: 0 | G6: 0 | H6: 0
A7: thuisverpleging | C7: keer | D7: 0 | E7: 0 | G7: 50 | H7: 0
A8: dienstencheques op budget | C8: uur | D8: 9 | E8: 9 | G8: 200 | H8: 1,800
A9: dienstencheques niet op budget (belastingvoordeel) | C9: uur | D9: 7.2 | E9: 0 | G9: 200 | H9: 0
A10: naam onbezoldigde mantelzorger | C10: uur | D10: 0 | E10: 0 | G10: 0 | H10: 0
A11: Naam PA via interimkantoor | C11: uur | D11: 12 | E11: 23.76 | G11: 240 | H11: 5,702 | I11: 20 | J11: 20 | K11: 20 | L11: 20 | M11: 20 | N11: 20 | O11: 20 | P11: 20 | Q11: 20 | R11: 20 | S11: 20 | T11: 20
A12: Naam PA via sociaal secretariaat | C12: uur | D12: 12 | E12: 17.4 | G12: 240 | H12: 4,176
A13: Naam PA via DPA | C13: uur | G13: 0 | H13: 0
A14: ondersteuning bijstandsorganisatie | G14: 0 | H14: 0
A15: Jobstudent X via interimkantoor | C15: uur | D15: 9 | G15: 0 | H15: 0
A16: Jobstudent X rechtstreeks | D16: 9 | G16: 0 | H16: 0
A17: mindermobielencentrale | C17: kilometer | D17: 0.3 | G17: 300 | H17: 90

Sheet Blad1 (hidden)
A1: MENSENTAAL | B1: VAPH categorie | C1: eenheid | D1: tarief | E1: bedrag ten laste van budget per eenheid | F1: verpl.kost in tarief incalculeren? | G1: Totaal eenheden op jaarbasis | H1: Totaal kost op jaarbasis op budget | I1: januari | J1: februari | K1: maart | L1: april | M1: mei | N1: juni | O1: juli | P1: augustus | Q1: september | R1: oktober | S1: november | T1: december
A2: Gezinszorg | C2: uur | D2: 20 | E2: 20 | G2: 176 | H2: 3,520 | I2: 16 | J2: 16 | K2: 16 | L2: 16 | M2: 16 | N2: 16 | O2: 16 | P2: 8 | Q2: 16 | R2: 16 | S2: 16 | T2: 8
A3: buddy -vrijwilliger | C3: keer | D3: 32 | E3: 32 | G3: 40 | H3: 1,280 | I3: 4 | J3: 4 | K3: 4 | L3: 4 | M3: 4 | N3: 4 | O3: 0 | P3: 0 | Q3: 4 | R3: 4 | S3: 4 | T3: 4
A4: nRTH dagopvang | C4: (halve) dag | E4: 0 | G4: 0 | H4: 0
A5: nRTH verblijf | C5: nacht | E5: 0 | G5: 0 | H5: 0
A6: thuisverpleging | C6: keer | D6: 0 | E6: 0 | G6: 50 | H6: 0
A7: dienstencheques op budget | C7: uur | D7: 9 | E7: 9 | G7: 200 | H7: 1,800
A8: dienstencheques niet op budget (belastingvoordeel) | C8: uur | D8: 7.2 | E8: 0 | G8: 200 | H8: 0
A9: naam onbezoldigde mantelzorger | C9: uur | D9: 0 | E9: 0 | G9: 0 | H9: 0
A10: Naam PA via interimkantoor | C10: uur | D10: 12 | E10: 23.76 | G10: 240 | H10: 5,702 | I10: 20 | J10: 20 | K10: 20 | L10: 20 | M10: 20 | N10: 20 | O10: 20 | P10: 20 | Q10: 20 | R10: 20 | S10: 20 | T10: 20
A11: Naam PA via sociaal secretariaat | C11: uur | D11: 12 | E11: 17.4 | G11: 240 | H11: 4,176
A12: Naam PA via DPA | C12: uur | G12: 0 | H12: 0
A13: ondersteuning bijstandsorganisatie | G13: 0 | H13: 0
A14: Jobstudent X via interimkantoor | C14: uur | D14: 9 | G14: 0 | H14: 0
A15: Jobstudent X rechtstreeks | D15: 9 | G15: 0 | H15: 0
A16: mindermobielencentrale | C16: kilometer | D16: 0.3 | G16: 300 | H16: 90
E17: Uitgaven op budget | H17: 16,568
E18: uitgaven naast budget | H18: 1,440
A19: bijkomend budget
A20: VIA4 (soc secr.)
A21: sociale Maribel (soc.secr.)
A25: jaarkosten
A26: jaarlijkse vergoeding ingeschakelde organisaties
A27: arbeidsongevallenverzekering

Sheet jaartabel (hidden)
A2: Totaal budget | P2: Jaarroverzicht (samenvatting)
B3: Uren | C3: wie | D3: Kost | K3: Nog te bsteden
A4: Jan | P4: a | Q4: €
K5: Bedrag | P5: b | Q5: €
K6: Uren: | P6: c | Q6: €
A7: Feb | P7: d | Q7: €
Q9: =SUM(Q4:Q8) -> 0
A10: Maart
A13: April

Sheet alg (hidden)
A2: Jaarbudget: | C2: (exclusief lidgeld bijstandsorganisatie)
A4: * tabellen voorbereiden met mogelijke cijfers,
A5: * parameters door gebruikers laten wijzigen
A6: * invullen in agenda /
A7: * later onderhoud,
C8: Algem | H8: Tabel activiteiten
A13: Andere kosten
A14: Lidgeld bijstandsorganisatie | B14: 50 € | C14: absoluut | D14: jaarbedrag
A23: ofwel evt een knop - terugbrengen oude cijfers, of nieuw maandcijfer ingeven?
A26: in bouwen:
A27: wijziging van keuze = uitblanken van ingevulde tabel
A29: mindermobielencentrale : niet van budget??

Sheet alg2 (hidden)
C2: (exclusief lidgeld bijstandsorganisatie)
A3: * tabellen voorbereiden met mogelijke cijfers,
A4: * parameters door gebruikers laten wijzigen
A5: * invullen in agenda /
A6: * later onderhoud,
A8: Aantal uren op jaarbasis / op maandbasis? | C8: Algem | H8: Tabel activiteiten
B9: Aantal uren | E9: Te doen door | H9: Wie mag wat doen
A10: Activiteit 1 | E10: Soort 1 | F10: Soort 2
A11: Activiteit 2
A12: Activiteit 3
A13: Activiteit 4
A16: Soorten
A17: Vrijwilligerswerk | B17: Bedrag | C17: min | D17: max | E17: Eenheid | F17: Vaste kost | G17: periodiciteit vaste kost | H17: categorie vaph | I17: Opmerkingen:
A19: Thuisverpleging | B19: Gemiddeld bedrag voorstel, evt min en max meegeven, wijzigbaar binnen de grenzen
A20: Interimarbeid
A21: Via Soc secretariaat
A22: Maaltijdcheques
A23: Dienstencheques (huishoudhulp)
A24: Kortverblijf
A25: Vergunde zorgaanbieder
A26: Buddy
A27: Studentenjob
C32: 57791233@videocomf.kuleuven.be
A38: Familiehulp)

Sheet opmerkingen (hidden)
A1: Geen exacte raming maar “ongeveer”, tot 2000 euro marge
A2: Enkel planning, geen opvolging
A3: Proberen met gemiddelde te werken (en aangeven min of max waar mogelijk)
A7: In formules inbouwen: van bruto uurloon naar kost/ afrekening op budget
A8: Jaar kosten voorzien bvb opstartkosten verzekeringen,
A9: Nog checken bij Marianne voucherkost moet eraf getrokken worden
A10: Maaltijdcheques over 6 dagen ipv 5 (lastenvrije uitbetaling)
A11: Structurele vermindering als KMO => teruggave van RSZ
A12: Ook administratie, dingen uitzoeken als taak van PA inschrijven; evt als vrijwilliger
A13: Hoe meer partners, hoe meer werk
A14: Opties om PA’s te houden: degelijk uurloon, maaltijdcheques en doorbetalen in de vakantie
A15: Tijd kopen met budget: wat is helpend in mijn situatie? Wat maakt dat de situatie verlicht wordt?
A16: Tool Securex bruto-netto
A17: Contracten moeten op naam kind staan
A18: Kortverblijf 153 euro per keer
A19: Gezinszorg kan al op naam Sander maar heel duur (40 euro per uur) nog te checken
A20: Via 4 middelen, surplus van 11% (bvb om kosten sociaal secretariaat te gaan
A21: over budget gaan is een dure grap??? Iets met de Via 4 middelen
C25: website::www.datisdevraag.be

Sheet overzichten (hidden)
A1: interimkantoren
A2: https://agilitas.be/nl/care.
A12: ssistentie via diensten persoonlijke assistenten | B12: Deze vorm van assistentie kan je zowel bij vergunde als bij niet-vergunde zorgaanbieders
A16: Alle diensten voor gezinszorg kan je terugvinden via de website van het Agentschap Zorg en Gezondheid: https://www.zorg-en-gezondheid.be/thuiszorg.
A18: Werkgever zijn
A19: Als je ervoor kiest om te werken als werkgever, neem je de belangrijkste verantwoordelijkheden in verband met personeelsbeheer op jou: vacatures opstellen, kandidaten uitnodigen, contracten opstellen, vakantieregeling uitwerken, de administratie in orde houden, ...
A20: Je kan je hiervoor laten bijstaan door een sociaal secretariaat. Dit is een externe dienst, gespecialiseerd in personeelsadministratie. Ze overlopen samen met jou alle wettelijke verplichtingen en houden je op de hoogte wanneer je iets in orde moet brengen.
A21: Een sociaal secretariaat:
A22: ondersteunt bij het opstellen van de contracten;
A23: berekent de lonen, sociale bijdragen, vakantiegeld;
A24: sluit een ongevallenverzekering af (sommige);
A25: zorgt voor de Dimona-aangifte;
A26: …
A27: Deze dienst betaal je via een maandelijkse factuur. Deze factuur kan je betalen met je PAB.
A28: Je krijgt hulp, maar je blijft voor het geheel verantwoordelijk. Werkgever worden vraagt veel administratie en opvolging.
A29: Lees meer bij 'Werken met een PAB' en vraag onze brochure aan.

Sheet jaarkalender eenheden (hidden)
A1: jaarkalender eenheden | N1: totaal | O1: eenheid | P1: budget/eenheid | Q1: nog te besteden | R1: nog te besteden euro's
B2: januari | C2: februari | D2: maart | E2: april | F2: mei | G2: juni | H2: juli | I2: augustus | J2: september | K2: oktober | L2: november | M2: december
A3: Gezinszorg | B3: 16 | C3: 16 | D3: 16 | E3: 16 | F3: 16 | G3: 16 | H3: 16 | I3: 8 | J3: 16 | K3: 16 | L3: 16 | M3: 8 | N3: =SUM(B3:M3) -> 176 | O3: =#REF! ->  | P3: =#REF! ->  | Q3: =P3-N3 -> 
A4: buddy -vrijwilliger | B4: 15 | C4: 4 | D4: 4 | E4: 4 | F4: 4 | G4: 4 | H4: 0 | I4: 0 | J4: 4 | K4: 4 | L4: 4 | M4: 4 | N4: =SUM(B4:M4) -> 51 | O4: =#REF! ->  | P4: =#REF! ->  | Q4: =P4-N4 -> 
B15: evt 12 tabbladen, 1 per maand, waar hierbij naar verwezen wordt

Sheet Blad3 (hidden)
A1: vervoerskosten
A3: apart tabblad voor berekening gemiddelde prijs 1 rit
A4: ingave kilometers….
A6: dan bij keuze als naam de verplaatsing ingeven (dokter, …) en het bedrag ingeven, bij de parameters het aantal ritten
A10: tabblad algemene gegevens - opmerking invoegen, kijken hoe het werkt bij

Sheet Budgetplan OL (hidden)
A1: Budgetplan PVB | C1: Graag enkel de cellen met lichtgroene achtergrond wijzigen!
A3: Voornaam
A4: Naam
A5: VF-nummer
A6: Rijksregisternummer
A8: Zorggebonden budget
C10: Ik ben van plan | E10: Ik kan dus nog
E11: =C8-C11 -> 0
C12: te besteden bij een vergunde zorgaanbieder | E12: besteden bij een niet-vergunde zorgaanbieder
A14: Beheerskosten | C14: =E11 -> € 0.00 x 11,94% | E14: =E11*0.1194 -> 0
A15: ="Jaarbudget "&F2 -> Jaarbudget | C15: =SUM(C8,E14) -> 0
A17: Vink hieronder alles aan wat van toepassing is | E17: Kostprijs
E18: Geschat | F18: Werkelijk
F19: =IF(C8=0,"",50) -> 
E20: =IF(C8=0,"",IF(C8>=35000,3600,1800)) -> 
D21: 4 x per jaar | E21: =IF(C8=0,"",300*D21+45) -> 
E22: =IF(C8=0,"",500) -> 
A23: Beschikbaar voor ondersteuning | C23: 0
C25: 0
A26: Bestedingsmogelijkheden De voorgestelde bedragen zijn richtprijzen; je dient ze te wijzigen naar de werkelijke prijzen. | C26: OPGELET: regels met een sterretje gelden voor een volle dag
C27: € / uur | D27: uren / dag | E27: dagen / week | F27: € / jaar
A28: Een persoonlijk assistent | B28: met vrijwilligersvergoeding * | C28: € 33.36 | F28: =C28*E28*365.25/7 -> 0
B29: met dienstencheques | C29: € 9.00 | F29: =C29*D29*E29*365.25/7 -> 0
B30: via sociaal secretariaat | C30: € 22.00 | F30: =C30*D30*E30*365.25/7 -> 0
B31: via interim | C31: € 21.00 | F31: =C31*D31*E31*365.25/7 -> 0
B32: door een dienst PA | C32: € 30.00 | F32: =C32*D32*E32*365.25/7 -> 0
B33: als zelfstandige | C33: € 30.00 | F33: 0
A34: Oproepbare permanentie | B34: vergunde zorgaanbieder | C34: € 8.00 | F34: =C34*D34*E34*365.25/7 -> 0
B35: niet-vergunde zorgaanbieder | C35: € 11.00 | F35: =C35*D35*E35*365.25/7 -> 0
A36: Dagbesteding | B36: vergunde zorgaanbieder | C36: € 12.00 | F36: 0
B37: niet-vergunde zorgaanbieder | C37: € 16.00 | F37: 0
A38: Collectieve woon- en dagondersteuning bij een vergunde zorgaanbieder * | C38: € 160.00 | F38: =C38*E38*365.25/7 -> 0
A39: Resterend bedrag | C39: =IF(C8=0,"",C23-SUM(F28:F38)) -> 

Sheet absoluut (hidden)
A1: info absoluut
A3: Andere partners:
A4: Agilitas care: | E4: https://agilitas.be/nl
B5: persoonlijke assistent
B6: huishoudhulp via dienstencheques
B7: voordelige tarieven als lid van absoluut
A9: Randstat assistentie en zorg | E9: https://www.randstad.be/nl/werkgevers/specialisaties/medisch-verzorgend
A11: Stegmann Medica solutions | E11: https://www.stegmann.be/
A13: Groep S | E13: https://www.groups.be/
A15: Securex | E15: https://www.securex.be/nl
A17: Helpper | E17: https://www.helpper.be/nl/
A21: ntensieve bijstand betaal je aan 78,5 euro per uur met je budget. Wij factureren enkel de huis- of kantoorbezoeken, inclusief de afgesproken voorbereiding en nazorg. De verplaatsingstijd en kilometers betaal je ook. Dit alles aan hetzelfde tarief nl. 78,5 euro per uur. Verplaatsingen worden gerekend vanuit het dichtstbijzijnde regionale kantoor. Op deze manier kan je geen andere verplaatsingstijd krijgen als er eens een andere coach moet komen. Als je op kantoor komt, vallen deze kosten dus weg. Wij streven ernaar om in elke provincie meerdere locaties te hebben waar we zitdagen kunnen organiseren.
A22: Naast het huisbezoek of kantoorbezoek volgen we je dossier ook verder op. Vaak moet er tussendoor nog eens gebeld worden of iets nagekeken worden. Hier rekenen wij geen extra kost voor aan. Wij proberen echt de prijs zo laag mogelijk te houden en verwittigen altijd indien de prijs hoger zou zijn dan gewoonlijk. Het VAPH geeft ook 11,94 % beheerskosten bovenop je budget om onze kosten te kunnen betalen (enkel voor Persoonsvolgend Budget).

Sheet pab (hidden)
A1: WAT KAN IK DOEN MET EEN PAB?
A2: Wat je met een PAB kunt doen is vastgelegd door het VAPH. Het geld is bedoeld om de hulp van één of meerdere persoonlijke assistenten te betalen. De persoonlijke assistent is feitelijk in dienst van de persoon met een handicap. Je kunt zelf werkgever zijn of de assistent is bij jou tewerkgesteld via een dienst. De assistent voert allerlei taken uit voor jou en helpt je bij de organisatie van je dagelijks leven.
A4: De assistenten kunnen hulp bieden in de volgende domeinen:
A5: huishoudelijke taken (koken, opruimen, poetsen, enz.)
A6: lichamelijke taken (wassen en aankleden, enz.)
A7: verplaatsingen
A8: dagactiviteiten (deelname aan dagcentrumactiviteiten, uitstappen, zorgboerderij,enz.)
A9: administratie
A10: tuinonderhoud
A11: agogische, pedagogische of orthopedagogische begeleiding van de persoon met een handicap of zijn of haar ouders
A12: PAB mag niet gebruikt worden voor:
A13: medische of para-medische hulp(kinesitherapie, logopedist, ergotherapeut)
A14: psychologische begeleiding
A15: hulpmiddelen
A16: klusjes in huis
A17: budgetbegeleiding
A18: onderwijs
A19: internaat
